Body Name,Date Paid,Transaction Number,Amount,Supplier Name,Supplier Type,Expense Area,Cost Centre Description,Expense Type
Cambridgeshire County Council,01-Mar-22,51301735532,"-15,800.00",Keys PCE Ltd,CARE ESTABLISHMENT,LAC Placements,Placements - residential disability,Agency Placements - Out of  County
Cambridgeshire County Council,01-Mar-22,51301735536,"-15,800.00",Keys PCE Ltd,CARE ESTABLISHMENT,LAC Placements,Placements - residential homes,Agency Placements - In County
Cambridgeshire County Council,01-Mar-22,51301735526,"-15,800.00",Keys PCE Ltd,CARE ESTABLISHMENT,LAC Placements,Placements - residential homes,Agency Placements - In County
Cambridgeshire County Council,01-Mar-22,51301735520,"-15,800.00",Keys PCE Ltd,CARE ESTABLISHMENT,LAC Placements,Placements - residential homes,Agency Placements - In County
Cambridgeshire County Council,01-Mar-22,51301735529,"-15,800.00",Keys PCE Ltd,CARE ESTABLISHMENT,LAC Placements,Placements - residential homes,Agency Placements - Out of  County
Cambridgeshire County Council,01-Mar-22,51301735539,"-15,800.00",Keys PCE Ltd,CARE ESTABLISHMENT,LAC Placements,Placements - residential homes,Agency Placements - Out of  County
Cambridgeshire County Council,01-Mar-22,51301735523,"-15,800.00",Keys PCE Ltd,CARE ESTABLISHMENT,LAC Placements,Placements - residential homes,Agency Placements - In County
Cambridgeshire County Council,01-Mar-22,51301735511,-636.00,FEVACA,CARE ESTABLISHMENT,LAC Placements,Placements - supported accommodation,Agency Placements - In County
Cambridgeshire County Council,01-Mar-22,51301735510,-530.00,FEVACA,CARE ESTABLISHMENT,LAC Placements,Placements - supported accommodation,Agency Placements - In County
Cambridgeshire County Council,01-Mar-22,51301735512,530.00,FEVACA,CARE ESTABLISHMENT,LAC Placements,Placements - supported accommodation,Agency Placements - In County
Cambridgeshire County Council,01-Mar-22,51301727350,552.18,Pathfinder Legal Services Limited,TRADE SUPPLIER,Corporate Offices,Shire Hall Area,Building Repair and Maintenance
Cambridgeshire County Council,01-Mar-22,51301722192,577.42,Magic Words Therapy Limited,EDUCATION,Early Years Specialist Support,Procurement - TA Therapy in Schools,Independent School Placements
Cambridgeshire County Council,01-Mar-22,51301735564,600.60,Redacted Personal Data,INDIVIDUAL,Nursery Schools,Early Years - Funded 3s/4s,Care & Ed Childcare Settings
Cambridgeshire County Council,01-Mar-22,51301723725,625.25,Team Q Maintenance Ltd,COMPANY,Corporate Offices,March Highways Depot,Building Structural Maintenance - Reactive
Cambridgeshire County Council,01-Mar-22,51301735470,630.00,Redacted Personal Data,INDIVIDUAL,Children's Disability Direct Payments,CSC Direct Payments,Direct Payments
Cambridgeshire County Council,01-Mar-22,51301735421,639.00,Redacted Personal Data,INDIVIDUAL,Regional Adoption Agency,Adoption Support Fund,Professional Fees and Hired Services
Cambridgeshire County Council,01-Mar-22,51301735384,720.00,Prospero Group,EDUCATION,Out of School Tuition,Out of School Provision - Education and Settings,Independent School Placements
Cambridgeshire County Council,01-Mar-22,51301735382,720.00,Prospero Group,EDUCATION,Out of School Tuition,Out of School Provision - Education and Settings,Independent School Placements
Cambridgeshire County Council,01-Mar-22,51301735383,720.00,Prospero Group,EDUCATION,Out of School Tuition,Out of School Provision - Education and Settings,Independent School Placements
Cambridgeshire County Council,01-Mar-22,51301735381,720.00,Prospero Group,EDUCATION,Out of School Tuition,Out of School Provision - Education and Settings,Independent School Placements
Cambridgeshire County Council,01-Mar-22,51301735386,720.00,Prospero Group,EDUCATION,Out of School Tuition,Out of School Provision - Education and Settings,Independent School Placements
Cambridgeshire County Council,01-Mar-22,51301721296,768.00,TRL Software Ltd,COMPANY,TIPF - Strategy & Scheme Dev,TIPF - Strategy & Scheme Dev,Construction - External Professional Fees
Cambridgeshire County Council,01-Mar-22,51301735611,818.74,ENTERPRISE FLEX-E-RENT,TRADE SUPPLIER,Corporate Offices,Pool Cars,Leased Vehicle Costs
Cambridgeshire County Council,01-Mar-22,51301735441,870.00,CLARETIAN MISSIONARIES TRUST,CHARITY,Outdoor Education,"Education, Health, Safety and Wellbeing - Outdoor Education",Casual hire of facilities
Cambridgeshire County Council,01-Mar-22,51301731201,894.24,Pathfinder Legal Services Limited,TRADE SUPPLIER,Strategic Management - Children & Safeguarding,C&S Restructure,External Legal Fees
Cambridgeshire County Council,01-Mar-22,51301735431,900.00,Oakdale Centre CiC,COMPANY,Regional Adoption Agency,Adoption Support Fund,Professional Fees and Hired Services
Cambridgeshire County Council,01-Mar-22,51301720646,948.62,METRIC GROUP LTD,TRADE SUPPLIER,Parking Enforcement,On Street Parking,Professional Fees and Hired Services
Cambridgeshire County Council,01-Mar-22,51301727287,998.00,Curry�s PC World Business,COMPANY,Libraries - Support,Support - Business Support,Specialist Equipment For Service Delivery
Cambridgeshire County Council,01-Mar-22,51301735407,"1,175.24",THE HELPING HANDS GROUP,CARE ESTABLISHMENT,SEND High Needs Top Up,SEND Specialist Services-High needs top-up-Post 16,Independent School Placements
Cambridgeshire County Council,01-Mar-22,51301721340,"1,200.00",Cambridge Electric Transport Ltd,COMPANY,Travel Plan,Smart Journeys,Advertising / Publicity (non Recruitment)
Cambridgeshire County Council,01-Mar-22,51301728002,"1,464.08",EARLY YEARS RESOURCES,TRADE SUPPLIER,Early Help - Wisbech Child and Family Centres,EH Child and Family Centre - Wisbech,Educational equipment
Cambridgeshire County Council,01-Mar-22,51301723893,"1,468.90",Younique Healthcare Ltd,COMPANY,Disability Units,DCSWT Fenland,Specialist Equipment For Service Delivery
Cambridgeshire County Council,01-Mar-22,51301719947,"1,500.00",Downing Place United Reformed Church,CHARITY,Lateral Flow Testing Grant,Lateral Flow Testing Grant,Casual hire of facilities
Cambridgeshire County Council,01-Mar-22,51301719986,"1,541.48",NETWORK RAIL LTD,COMPANY,Highways - Bridges,Highways - Bridges,Highways - Bridges
Cambridgeshire County Council,01-Mar-22,51301735425,"1,650.00",The Centre for FASD Limited,TRADE SUPPLIER,Regional Adoption Agency,Adoption Support Fund,Professional Fees and Hired Services
Cambridgeshire County Council,01-Mar-22,51301735398,"1,728.00",NATIONAL TEACHING & ADVISORY SERVICE FOR LOOKED AFTER CHILDREN (NT & AS),OTHER PUBLIC BODIES,Out of School Tuition,Out of School Provision - Education and Settings,Independent School Placements
Cambridgeshire County Council,01-Mar-22,51301722795,"1,800.00",Pathfinder Legal Services Limited,TRADE SUPPLIER,Highways General,Highways,External Legal Fees
Cambridgeshire County Council,01-Mar-22,51301732651,"1,800.00",Eden Brown Limited,COMPANY,Strategic Management - Children & Safeguarding,C&S Restructure,Agency Staff
Cambridgeshire County Council,01-Mar-22,51301735452,"1,828.80",M Lamming c/o Spotless Cambridge Ltd,COMPANY,Cambs Music Head of Business Development,Cambs Music Connect,Building Cleaning
Cambridgeshire County Council,01-Mar-22,51301727813,"1,864.68",Venue Audio Visual,COMPANY,Democratic Services and Member Services,Democratic and Member Services,Equipment and Tools
Cambridgeshire County Council,01-Mar-22,51301735515,"1,870.00",FosteringUK Ltd,CARE ESTABLISHMENT,LAC Placements,Placements - independent fostering,Agency Placements - Out of  County
Cambridgeshire County Council,01-Mar-22,51301730790,"2,100.00",Pathfinder Legal Services Limited,TRADE SUPPLIER,Early Years Specialist Support,SEND - Tribunal,Independent School Placements
Cambridgeshire County Council,01-Mar-22,51301735478,"2,104.62",VOYAGE,CARE ESTABLISHMENT,LD - South Locality - Cost of Care,LD - South Cambs - Care,Service User Transport
Cambridgeshire County Council,01-Mar-22,51301732245,"2,300.00",THE EDMUND TRUST,CARE ESTABLISHMENT,Workforce Development,WFD - Skills for Care,Grants to Voluntary Bodies
Cambridgeshire County Council,01-Mar-22,51301732292,"2,400.00",Therapeutic Thinking Ltd,TRADE SUPPLIER,SEND Specialist Services - SEND Training,SEND Specialist Services - SEND Training,Professional Fees and Hired Services
Cambridgeshire County Council,01-Mar-22,51301719950,"2,451.64",Low Carbon Contracts Company Ltd,COMPANY,County Farms,"Triangle Solar Farm, Soham",Electricity
Cambridgeshire County Council,01-Mar-22,51301735395,"2,496.00",NATIONAL TEACHING & ADVISORY SERVICE FOR LOOKED AFTER CHILDREN (NT & AS),OTHER PUBLIC BODIES,Out of School Tuition,Out of School Provision - Education and Settings,Independent School Placements
Cambridgeshire County Council,01-Mar-22,51301735427,"2,500.00",The Centre for FASD Limited,TRADE SUPPLIER,Regional Adoption Agency,Adoption Support Fund,Professional Fees and Hired Services
Cambridgeshire County Council,01-Mar-22,51301735406,"2,592.00",NATIONAL TEACHING & ADVISORY SERVICE FOR LOOKED AFTER CHILDREN (NT & AS),OTHER PUBLIC BODIES,Out of School Tuition,Out of School Provision - Education and Settings,Independent School Placements
Cambridgeshire County Council,01-Mar-22,51301732609,"2,625.00",HAYS SPECIALIST RECRUITMENT,COMPANY,Brokerage,Commissioning Brokerage and Quality Improvement,Recruitment Costs
Cambridgeshire County Council,01-Mar-22,51301732619,"2,625.00",HAYS SPECIALIST RECRUITMENT,COMPANY,Brokerage,Commissioning Brokerage and Quality Improvement,Recruitment Costs
Cambridgeshire County Council,01-Mar-22,51301735435,"2,718.00",NATIONAL TEACHING & ADVISORY SERVICE FOR LOOKED AFTER CHILDREN (NT & AS),OTHER PUBLIC BODIES,Out of School Tuition,Out of School Provision - Education and Settings,Independent School Placements
Cambridgeshire County Council,01-Mar-22,51301735518,"2,792.93",FosteringUK Ltd,CARE ESTABLISHMENT,LAC Placements,Placements - independent fostering,Agency Placements - Out of  County
Cambridgeshire County Council,01-Mar-22,51301735538,"2,821.43",Keys PCE Ltd,CARE ESTABLISHMENT,LAC Placements,Placements - residential homes,Agency Placements - Out of  County
Cambridgeshire County Council,01-Mar-22,51301719957,"2,988.00",TMP (UK) LTD T/A TMP WORLDWIDE,TRADE SUPPLIER,County Farms,County Farms,Advertising / Publicity (non Recruitment)
Cambridgeshire County Council,01-Mar-22,51301723812,"3,130.92",CRACKER JACKS DAY NURSERY,NURSERY,SEND High Needs Top Up,SEND Specialist Services-High needs top-up-Early Years,Independent School Placements
Cambridgeshire County Council,01-Mar-22,51301735429,"3,200.00",Adoptionplus,CARE ESTABLISHMENT,Regional Adoption Agency,Adoption Support Fund,Professional Fees and Hired Services
Cambridgeshire County Council,01-Mar-22,51301735432,"3,528.00",NATIONAL TEACHING & ADVISORY SERVICE FOR LOOKED AFTER CHILDREN (NT & AS),OTHER PUBLIC BODIES,Out of School Tuition,Out of School Provision - Education and Settings,Independent School Placements
Cambridgeshire County Council,01-Mar-22,51301735408,"3,556.80",NATIONAL TEACHING & ADVISORY SERVICE FOR LOOKED AFTER CHILDREN (NT & AS),OTHER PUBLIC BODIES,Out of School Tuition,Out of School Provision - Education and Settings,Independent School Placements
Cambridgeshire County Council,01-Mar-22,51301735513,"3,600.00",FEVACA,CARE ESTABLISHMENT,LAC Placements,Placements - supported accommodation,Agency Placements - In County
Cambridgeshire County Council,01-Mar-22,51301719908,"3,776.58",TIDEY ELECTRICAL LTD,TRADE SUPPLIER,Investment in the CCC Asset Portfolio,Spokes - CPDC,Buildings - Mechanical and Electrical
Cambridgeshire County Council,01-Mar-22,51301735451,"4,375.00",BIDWELLS LLP,TRADE SUPPLIER,Buildings and Capital,Education Property Strategy Manager,Rents and Leases
Cambridgeshire County Council,01-Mar-22,51301719985,"4,468.02",MLL Telecom Limited,TRADE SUPPLIER,EastNet,EastNet,Computer hardware - purchase
Cambridgeshire County Council,01-Mar-22,51301735504,"4,980.38",ARC HD SERVICES LTD,CARE ESTABLISHMENT,LAC Placements,Placements - residential disability,Agency Placements - Out of  County
Cambridgeshire County Council,01-Mar-22,51301735388,"5,000.00",THE BROOK STREET BAND TRUST,EDUCATION,Cambs Music Head of Ensembles,Cambs Music Roots,Professional Fees and Hired Services
Cambridgeshire County Council,01-Mar-22,51301735434,"5,338.51",NATIONAL TEACHING & ADVISORY SERVICE FOR LOOKED AFTER CHILDREN (NT & AS),OTHER PUBLIC BODIES,Out of School Tuition,Out of School Provision - Education and Settings,Independent School Placements
Cambridgeshire County Council,01-Mar-22,51301721165,"6,288.00",LITTLEPORT COMMUNITY PRIMARY SCHOOL,EDUCATION,Corporate Offices,Littleport Children's Centre,Rents and Leases
Cambridgeshire County Council,01-Mar-22,51301723683,"6,951.66",BORRAS CONSTRUCTION LTD,COMPANY,Decarbonisation Fund,Roger Ascham Library Renewable Heating,Buildings - Externals
Cambridgeshire County Council,01-Mar-22,51301735405,"7,776.00",NATIONAL TEACHING & ADVISORY SERVICE FOR LOOKED AFTER CHILDREN (NT & AS),OTHER PUBLIC BODIES,Out of School Tuition,Out of School Provision - Education and Settings,Independent School Placements
Cambridgeshire County Council,01-Mar-22,51301735397,"7,920.00",NATIONAL TEACHING & ADVISORY SERVICE FOR LOOKED AFTER CHILDREN (NT & AS),OTHER PUBLIC BODIES,Out of School Tuition,Out of School Provision - Education and Settings,Independent School Placements
Cambridgeshire County Council,01-Mar-22,51301735399,"8,026.20",NATIONAL TEACHING & ADVISORY SERVICE FOR LOOKED AFTER CHILDREN (NT & AS),OTHER PUBLIC BODIES,Out of School Tuition,Out of School Provision - Education and Settings,Independent School Placements
Cambridgeshire County Council,01-Mar-22,51301735613,"8,130.08",THE HESLEY GROUP,CARE ESTABLISHMENT,SEND High Needs Top Up,SEND Specialist Services-High needs top-up-Post 16,Independent School Placements
Cambridgeshire County Council,01-Mar-22,51301720509,"8,404.56",ATKINS LTD,COMPANY,GCP - Communications,GCP - Strategic Communicatations,Staffing Recharges - External
Cambridgeshire County Council,01-Mar-22,51301735396,"9,477.00",NATIONAL TEACHING & ADVISORY SERVICE FOR LOOKED AFTER CHILDREN (NT & AS),OTHER PUBLIC BODIES,Out of School Tuition,Out of School Provision - Education and Settings,Independent School Placements
Cambridgeshire County Council,01-Mar-22,51301733568,"10,200.00",Link Asset Services,TRADE SUPPLIER,Debt Charges and Interest,Debt Charges General,Investment Manager Fees
Cambridgeshire County Council,01-Mar-22,51301735419,"10,240.25",Link Maker Systems Ltd,COMPANY,Regional Adoption Agency,Regional Adoption Agency,Professional Fees and Hired Services
Cambridgeshire County Council,01-Mar-22,51301720702,"10,640.45",MOTT MACDONALD LTD,TRADE SUPPLIER,GCP - West of Cambridge Package,GCP - West of Cambridge Package,Construction - External Professional Fees
Cambridgeshire County Council,01-Mar-22,51301735535,"12,978.57",Keys PCE Ltd,CARE ESTABLISHMENT,LAC Placements,Placements - residential homes,Agency Placements - In County
Cambridgeshire County Council,01-Mar-22,51301721670,"15,065.00",NORFOLK COUNTY COUNCIL,OTHER PUBLIC BODIES,Opportunity Area,Opportunity Area,Payments to Other Local Authorities
Cambridgeshire County Council,01-Mar-22,51301719925,"15,250.00",RICHMOND FELLOWSHIP,CHARITY,Mental Health Commissioning,Mental Health Commissioning,Domiciliary Care
Cambridgeshire County Council,01-Mar-22,51301735533,"15,800.00",Keys PCE Ltd,CARE ESTABLISHMENT,LAC Placements,Placements - residential disability,Agency Placements - Out of  County
Cambridgeshire County Council,01-Mar-22,51301735530,"15,800.00",Keys PCE Ltd,CARE ESTABLISHMENT,LAC Placements,Placements - residential homes,Agency Placements - Out of  County
Cambridgeshire County Council,01-Mar-22,51301735527,"15,800.00",Keys PCE Ltd,CARE ESTABLISHMENT,LAC Placements,Placements - residential homes,Agency Placements - In County
Cambridgeshire County Council,01-Mar-22,51301735521,"15,800.00",Keys PCE Ltd,CARE ESTABLISHMENT,LAC Placements,Placements - residential homes,Agency Placements - In County
Cambridgeshire County Council,01-Mar-22,51301735524,"15,800.00",Keys PCE Ltd,CARE ESTABLISHMENT,LAC Placements,Placements - residential homes,Agency Placements - In County
Cambridgeshire County Council,01-Mar-22,51301735540,"15,800.00",Keys PCE Ltd,CARE ESTABLISHMENT,LAC Placements,Placements - residential homes,Agency Placements - Out of  County
Cambridgeshire County Council,01-Mar-22,51301735508,"16,696.51",Keys PCE Ltd,CARE ESTABLISHMENT,LAC Placements,Placements - residential homes,Agency Placements - Out of  County
Cambridgeshire County Council,01-Mar-22,51301734363,"18,747.06",Pathfinder Legal Services Limited,TRADE SUPPLIER,Early Years Specialist Support,SEND - Tribunal,Independent School Placements
Cambridgeshire County Council,01-Mar-22,51301735531,"18,960.00",Keys PCE Ltd,CARE ESTABLISHMENT,LAC Placements,Placements - residential homes,Agency Placements - Out of  County
Cambridgeshire County Council,01-Mar-22,51301735522,"18,960.00",Keys PCE Ltd,CARE ESTABLISHMENT,LAC Placements,Placements - residential homes,Agency Placements - In County
Cambridgeshire County Council,01-Mar-22,51301735525,"18,960.00",Keys PCE Ltd,CARE ESTABLISHMENT,LAC Placements,Placements - residential homes,Agency Placements - In County
Cambridgeshire County Council,01-Mar-22,51301735537,"18,960.00",Keys PCE Ltd,CARE ESTABLISHMENT,LAC Placements,Placements - residential homes,Agency Placements - In County
Cambridgeshire County Council,01-Mar-22,51301735541,"18,960.00",Keys PCE Ltd,CARE ESTABLISHMENT,LAC Placements,Placements - residential homes,Agency Placements - Out of  County
Cambridgeshire County Council,01-Mar-22,51301735528,"18,960.00",Keys PCE Ltd,CARE ESTABLISHMENT,LAC Placements,Placements - residential homes,Agency Placements - In County
Cambridgeshire County Council,01-Mar-22,51301735505,"18,960.00",Keys PCE Ltd,CARE ESTABLISHMENT,LAC Placements,Placements - residential homes,Agency Placements - Out of  County
Cambridgeshire County Council,01-Mar-22,51301735509,"18,960.00",Keys PCE Ltd,CARE ESTABLISHMENT,LAC Placements,Placements - residential homes,Agency Placements - In County
Cambridgeshire County Council,01-Mar-22,51301735534,"18,960.00",Keys PCE Ltd,CARE ESTABLISHMENT,LAC Placements,Placements - residential disability,Agency Placements - Out of  County
Cambridgeshire County Council,01-Mar-22,51301723779,"28,158.00",SUTTON CE (VC) PRIMARY SCHOOL,EDUCATION,Out of School Tuition,Out of School Provision - Education and Settings,Independent School Placements
Cambridgeshire County Council,01-Mar-22,51301731377,"28,776.01",THE BEECHES UK LIMITED,CARE ESTABLISHMENT,SEN Placements,Placements - Education,Independent School Placements
Cambridgeshire County Council,01-Mar-22,51301732538,"98,733.25",CAMBRIDGESHIRE AND PETERBOROUGH NHS FOUNDATION TRUST,TRUST (OTHER),Drug & Alcohol Misuse,Young People Treatment Contract,Joint Partnership Funding
Cambridgeshire County Council,01-Mar-22,51301735601,"172,963.47",TEACHERS PENSIONS,OTHER PUBLIC BODIES,Teachers Pensions,HR - Pensions,Pension Fund Codes
Cambridgeshire County Council,01-Mar-22,51301731092,"225,793.20",PETERBOROUGH CITY COUNCIL,OTHER PUBLIC BODIES,Service Director,Service Director Commissioning,Payments to Other Local Authorities
Cambridgeshire County Council,01-Mar-22,51301564343,"924,601.00",Cambridgeshire and Peterborough Combined Authority,OTHER PUBLIC BODIES,Financing items,Combined Authority,Agency Precepts and Levies
Cambridgeshire County Council,02-Mar-22,51301735810,"-2,398.67",AFFINITY TRUST,CARE ESTABLISHMENT,LD - Fenland Locality - Cost of Care,LD - Fenland  - Care,Homecare
Cambridgeshire County Council,02-Mar-22,51301735810,"-2,398.67",AFFINITY TRUST,CARE ESTABLISHMENT,LD - Fenland Locality - Cost of Care,LD - Fenland  - Care,Homecare
Cambridgeshire County Council,02-Mar-22,51301735810,"-2,398.67",AFFINITY TRUST,CARE ESTABLISHMENT,LD - Fenland Locality - Cost of Care,LD - Fenland  - Care,Homecare
Cambridgeshire County Council,02-Mar-22,51301735810,"-2,398.67",AFFINITY TRUST,CARE ESTABLISHMENT,LD - Fenland Locality - Cost of Care,LD - Fenland  - Care,Homecare
Cambridgeshire County Council,02-Mar-22,51301735810,"-2,398.67",AFFINITY TRUST,CARE ESTABLISHMENT,LD - Fenland Locality - Cost of Care,LD - Fenland  - Care,Homecare
Cambridgeshire County Council,02-Mar-22,51301735810,"-2,398.67",AFFINITY TRUST,CARE ESTABLISHMENT,LD - Fenland Locality - Cost of Care,LD - Fenland  - Care,Homecare
Cambridgeshire County Council,02-Mar-22,51301735810,"-2,398.67",AFFINITY TRUST,CARE ESTABLISHMENT,LD - Fenland Locality - Cost of Care,LD - Fenland  - Care,Homecare
Cambridgeshire County Council,02-Mar-22,51301735810,"-2,398.67",AFFINITY TRUST,CARE ESTABLISHMENT,LD - Fenland Locality - Cost of Care,LD - Fenland  - Care,Homecare
Cambridgeshire County Council,02-Mar-22,51301735810,"-2,398.67",AFFINITY TRUST,CARE ESTABLISHMENT,LD - Fenland Locality - Cost of Care,LD - Fenland  - Care,Homecare
Cambridgeshire County Council,02-Mar-22,51301735810,"-2,398.67",AFFINITY TRUST,CARE ESTABLISHMENT,LD - Fenland Locality - Cost of Care,LD - Fenland  - Care,Homecare
Cambridgeshire County Council,02-Mar-22,51301735810,"-2,398.67",AFFINITY TRUST,CARE ESTABLISHMENT,LD - Fenland Locality - Cost of Care,LD - Fenland  - Care,Homecare
Cambridgeshire County Council,02-Mar-22,51301735810,"-2,398.67",AFFINITY TRUST,CARE ESTABLISHMENT,LD - Fenland Locality - Cost of Care,LD - Fenland  - Care,Homecare
Cambridgeshire County Council,02-Mar-22,51301735810,"-2,398.67",AFFINITY TRUST,CARE ESTABLISHMENT,LD - Fenland Locality - Cost of Care,LD - Fenland  - Care,Homecare
Cambridgeshire County Council,02-Mar-22,51301735810,"-2,398.67",AFFINITY TRUST,CARE ESTABLISHMENT,LD - Fenland Locality - Cost of Care,LD - Fenland  - Care,Homecare
Cambridgeshire County Council,02-Mar-22,51301735810,"-2,398.67",AFFINITY TRUST,CARE ESTABLISHMENT,LD - Fenland Locality - Cost of Care,LD - Fenland  - Care,Homecare
Cambridgeshire County Council,02-Mar-22,51301735810,"-2,398.67",AFFINITY TRUST,CARE ESTABLISHMENT,LD - Fenland Locality - Cost of Care,LD - Fenland  - Care,Homecare
Cambridgeshire County Council,02-Mar-22,51301735810,"-2,398.67",AFFINITY TRUST,CARE ESTABLISHMENT,LD - Fenland Locality - Cost of Care,LD - Fenland  - Care,Homecare
Cambridgeshire County Council,02-Mar-22,51301735810,"-2,398.67",AFFINITY TRUST,CARE ESTABLISHMENT,LD - Fenland Locality - Cost of Care,LD - Fenland  - Care,Homecare
Cambridgeshire County Council,02-Mar-22,51301735810,"-2,398.67",AFFINITY TRUST,CARE ESTABLISHMENT,LD - Fenland Locality - Cost of Care,LD - Fenland  - Care,Homecare
Cambridgeshire County Council,02-Mar-22,51301735810,"-2,398.67",AFFINITY TRUST,CARE ESTABLISHMENT,LD - Fenland Locality - Cost of Care,LD - Fenland  - Care,Homecare
Cambridgeshire County Council,02-Mar-22,51301735810,"-2,398.67",AFFINITY TRUST,CARE ESTABLISHMENT,LD - Fenland Locality - Cost of Care,LD - Fenland  - Care,Homecare
Cambridgeshire County Council,02-Mar-22,51301735810,"-2,398.67",AFFINITY TRUST,CARE ESTABLISHMENT,LD - Fenland Locality - Cost of Care,LD - Fenland  - Care,Homecare
Cambridgeshire County Council,02-Mar-22,51301735810,"-2,398.67",AFFINITY TRUST,CARE ESTABLISHMENT,LD - Fenland Locality - Cost of Care,LD - Fenland  - Care,Homecare
Cambridgeshire County Council,02-Mar-22,51301735810,"-2,398.67",AFFINITY TRUST,CARE ESTABLISHMENT,LD - Fenland Locality - Cost of Care,LD - Fenland  - Care,Homecare
Cambridgeshire County Council,02-Mar-22,51301735810,"-2,398.67",AFFINITY TRUST,CARE ESTABLISHMENT,LD - Fenland Locality - Cost of Care,LD - Fenland  - Care,Homecare
Cambridgeshire County Council,02-Mar-22,51301735810,"-2,398.67",AFFINITY TRUST,CARE ESTABLISHMENT,LD - Fenland Locality - Cost of Care,LD - Fenland  - Care,Homecare
Cambridgeshire County Council,02-Mar-22,51301735810,"-2,398.67",AFFINITY TRUST,CARE ESTABLISHMENT,LD - Fenland Locality - Cost of Care,LD - Fenland  - Care,Homecare
Cambridgeshire County Council,02-Mar-22,51301735810,"-2,398.67",AFFINITY TRUST,CARE ESTABLISHMENT,LD - Fenland Locality - Cost of Care,LD - Fenland  - Care,Homecare
Cambridgeshire County Council,02-Mar-22,51301735810,"-2,398.67",AFFINITY TRUST,CARE ESTABLISHMENT,LD - Fenland Locality - Cost of Care,LD - Fenland  - Care,Homecare
Cambridgeshire County Council,02-Mar-22,51301735810,"-2,398.67",AFFINITY TRUST,CARE ESTABLISHMENT,LD - Fenland Locality - Cost of Care,LD - Fenland  - Care,Homecare
Cambridgeshire County Council,02-Mar-22,51301735810,"-2,398.67",AFFINITY TRUST,CARE ESTABLISHMENT,LD - Fenland Locality - Cost of Care,LD - Fenland  - Care,Homecare
Cambridgeshire County Council,02-Mar-22,51301735810,"-2,398.67",AFFINITY TRUST,CARE ESTABLISHMENT,LD - Fenland Locality - Cost of Care,LD - Fenland  - Care,Homecare
Cambridgeshire County Council,02-Mar-22,51301735810,"-2,398.67",AFFINITY TRUST,CARE ESTABLISHMENT,LD - Fenland Locality - Cost of Care,LD - Fenland  - Care,Homecare
Cambridgeshire County Council,02-Mar-22,51301735810,"-2,398.67",AFFINITY TRUST,CARE ESTABLISHMENT,LD - Fenland Locality - Cost of Care,LD - Fenland  - Care,Homecare
Cambridgeshire County Council,02-Mar-22,51301735810,"-2,398.67",AFFINITY TRUST,CARE ESTABLISHMENT,LD - Fenland Locality - Cost of Care,LD - Fenland  - Care,Homecare
Cambridgeshire County Council,02-Mar-22,51301735810,"-2,398.67",AFFINITY TRUST,CARE ESTABLISHMENT,LD - Fenland Locality - Cost of Care,LD - Fenland  - Care,Homecare
Cambridgeshire County Council,02-Mar-22,51301735810,"-2,398.67",AFFINITY TRUST,CARE ESTABLISHMENT,LD - Fenland Locality - Cost of Care,LD - Fenland  - Care,Homecare
Cambridgeshire County Council,02-Mar-22,51301735810,"-2,398.67",AFFINITY TRUST,CARE ESTABLISHMENT,LD - Fenland Locality - Cost of Care,LD - Fenland  - Care,Homecare
Cambridgeshire County Council,02-Mar-22,51301735810,"-2,398.67",AFFINITY TRUST,CARE ESTABLISHMENT,LD - Fenland Locality - Cost of Care,LD - Fenland  - Care,Homecare
Cambridgeshire County Council,02-Mar-22,51301735810,"-2,398.67",AFFINITY TRUST,CARE ESTABLISHMENT,LD - Fenland Locality - Cost of Care,LD - Fenland  - Care,Homecare
Cambridgeshire County Council,02-Mar-22,51301735810,"-2,398.67",AFFINITY TRUST,CARE ESTABLISHMENT,LD - Fenland Locality - Cost of Care,LD - Fenland  - Care,Homecare
Cambridgeshire County Council,02-Mar-22,51301735810,"-2,398.67",AFFINITY TRUST,CARE ESTABLISHMENT,LD - Fenland Locality - Cost of Care,LD - Fenland  - Care,Homecare
Cambridgeshire County Council,02-Mar-22,51301735810,"-2,398.67",AFFINITY TRUST,CARE ESTABLISHMENT,LD - Fenland Locality - Cost of Care,LD - Fenland  - Care,Homecare
Cambridgeshire County Council,02-Mar-22,51301735810,"-2,398.67",AFFINITY TRUST,CARE ESTABLISHMENT,LD - Fenland Locality - Cost of Care,LD - Fenland  - Care,Homecare
Cambridgeshire County Council,02-Mar-22,51301735810,"-2,398.67",AFFINITY TRUST,CARE ESTABLISHMENT,LD - Fenland Locality - Cost of Care,LD - Fenland  - Care,Homecare
Cambridgeshire County Council,02-Mar-22,51301735810,"-2,398.67",AFFINITY TRUST,CARE ESTABLISHMENT,LD - Fenland Locality - Cost of Care,LD - Fenland  - Care,Homecare
Cambridgeshire County Council,02-Mar-22,51301735810,"-2,398.67",AFFINITY TRUST,CARE ESTABLISHMENT,LD - Fenland Locality - Cost of Care,LD - Fenland  - Care,Homecare
Cambridgeshire County Council,02-Mar-22,51301735798,"-2,336.71",TURNING POINT SERVICES LTD,CARE ESTABLISHMENT,LD - Fenland Locality - Cost of Care,LD - Fenland  - Special Needs,Homecare
Cambridgeshire County Council,02-Mar-22,51301735798,"-2,336.71",TURNING POINT SERVICES LTD,CARE ESTABLISHMENT,LD - Fenland Locality - Cost of Care,LD - Fenland  - Special Needs,Homecare
Cambridgeshire County Council,02-Mar-22,51301735798,"-2,336.71",TURNING POINT SERVICES LTD,CARE ESTABLISHMENT,LD - Fenland Locality - Cost of Care,LD - Fenland  - Special Needs,Homecare
Cambridgeshire County Council,02-Mar-22,51301735798,"-2,336.71",TURNING POINT SERVICES LTD,CARE ESTABLISHMENT,LD - Fenland Locality - Cost of Care,LD - Fenland  - Special Needs,Homecare
Cambridgeshire County Council,02-Mar-22,51301735798,"-2,336.71",TURNING POINT SERVICES LTD,CARE ESTABLISHMENT,LD - Fenland Locality - Cost of Care,LD - Fenland  - Special Needs,Homecare
Cambridgeshire County Council,02-Mar-22,51301735798,"-2,336.71",TURNING POINT SERVICES LTD,CARE ESTABLISHMENT,LD - Fenland Locality - Cost of Care,LD - Fenland  - Special Needs,Homecare
Cambridgeshire County Council,02-Mar-22,51301735798,"-2,336.71",TURNING POINT SERVICES LTD,CARE ESTABLISHMENT,LD - Fenland Locality - Cost of Care,LD - Fenland  - Special Needs,Homecare
Cambridgeshire County Council,02-Mar-22,51301735798,"-2,336.71",TURNING POINT SERVICES LTD,CARE ESTABLISHMENT,LD - Fenland Locality - Cost of Care,LD - Fenland  - Special Needs,Homecare
Cambridgeshire County Council,02-Mar-22,51301735798,"-2,336.71",TURNING POINT SERVICES LTD,CARE ESTABLISHMENT,LD - Fenland Locality - Cost of Care,LD - Fenland  - Special Needs,Homecare
Cambridgeshire County Council,02-Mar-22,51301735798,"-2,336.71",TURNING POINT SERVICES LTD,CARE ESTABLISHMENT,LD - Fenland Locality - Cost of Care,LD - Fenland  - Special Needs,Homecare
Cambridgeshire County Council,02-Mar-22,51301735798,"-2,336.71",TURNING POINT SERVICES LTD,CARE ESTABLISHMENT,LD - Fenland Locality - Cost of Care,LD - Fenland  - Special Needs,Homecare
Cambridgeshire County Council,02-Mar-22,51301735798,"-2,336.71",TURNING POINT SERVICES LTD,CARE ESTABLISHMENT,LD - Fenland Locality - Cost of Care,LD - Fenland  - Special Needs,Homecare
Cambridgeshire County Council,02-Mar-22,51301735798,"-2,336.71",TURNING POINT SERVICES LTD,CARE ESTABLISHMENT,LD - Fenland Locality - Cost of Care,LD - Fenland  - Special Needs,Homecare
Cambridgeshire County Council,02-Mar-22,51301735798,"-2,336.71",TURNING POINT SERVICES LTD,CARE ESTABLISHMENT,LD - Fenland Locality - Cost of Care,LD - Fenland  - Special Needs,Homecare
Cambridgeshire County Council,02-Mar-22,51301735798,"-2,336.71",TURNING POINT SERVICES LTD,CARE ESTABLISHMENT,LD - Fenland Locality - Cost of Care,LD - Fenland  - Special Needs,Homecare
Cambridgeshire County Council,02-Mar-22,51301735798,"-2,336.71",TURNING POINT SERVICES LTD,CARE ESTABLISHMENT,LD - Fenland Locality - Cost of Care,LD - Fenland  - Special Needs,Homecare
Cambridgeshire County Council,02-Mar-22,51301735798,"-2,336.71",TURNING POINT SERVICES LTD,CARE ESTABLISHMENT,LD - Fenland Locality - Cost of Care,LD - Fenland  - Special Needs,Homecare
Cambridgeshire County Council,02-Mar-22,51301735798,"-2,336.71",TURNING POINT SERVICES LTD,CARE ESTABLISHMENT,LD - Fenland Locality - Cost of Care,LD - Fenland  - Special Needs,Homecare
Cambridgeshire County Council,02-Mar-22,51301735798,"-2,336.71",TURNING POINT SERVICES LTD,CARE ESTABLISHMENT,LD - Fenland Locality - Cost of Care,LD - Fenland  - Special Needs,Homecare
Cambridgeshire County Council,02-Mar-22,51301735798,"-2,336.71",TURNING POINT SERVICES LTD,CARE ESTABLISHMENT,LD - Fenland Locality - Cost of Care,LD - Fenland  - Special Needs,Homecare
Cambridgeshire County Council,02-Mar-22,51301735798,"-2,336.71",TURNING POINT SERVICES LTD,CARE ESTABLISHMENT,LD - Fenland Locality - Cost of Care,LD - Fenland  - Special Needs,Homecare
Cambridgeshire County Council,02-Mar-22,51301735798,"-2,336.71",TURNING POINT SERVICES LTD,CARE ESTABLISHMENT,LD - Fenland Locality - Cost of Care,LD - Fenland  - Special Needs,Homecare
Cambridgeshire County Council,02-Mar-22,51301735798,"-2,336.71",TURNING POINT SERVICES LTD,CARE ESTABLISHMENT,LD - Fenland Locality - Cost of Care,LD - Fenland  - Special Needs,Homecare
Cambridgeshire County Council,02-Mar-22,51301735798,"-2,336.71",TURNING POINT SERVICES LTD,CARE ESTABLISHMENT,LD - Fenland Locality - Cost of Care,LD - Fenland  - Special Needs,Homecare
Cambridgeshire County Council,02-Mar-22,51301735798,"-2,336.71",TURNING POINT SERVICES LTD,CARE ESTABLISHMENT,LD - Fenland Locality - Cost of Care,LD - Fenland  - Special Needs,Homecare
Cambridgeshire County Council,02-Mar-22,51301735798,"-2,336.71",TURNING POINT SERVICES LTD,CARE ESTABLISHMENT,LD - Fenland Locality - Cost of Care,LD - Fenland  - Special Needs,Homecare
Cambridgeshire County Council,02-Mar-22,51301735798,"-2,336.71",TURNING POINT SERVICES LTD,CARE ESTABLISHMENT,LD - Fenland Locality - Cost of Care,LD - Fenland  - Special Needs,Homecare
Cambridgeshire County Council,02-Mar-22,51301735798,"-2,336.71",TURNING POINT SERVICES LTD,CARE ESTABLISHMENT,LD - Fenland Locality - Cost of Care,LD - Fenland  - Special Needs,Homecare
Cambridgeshire County Council,02-Mar-22,51301735798,"-2,336.71",TURNING POINT SERVICES LTD,CARE ESTABLISHMENT,LD - Fenland Locality - Cost of Care,LD - Fenland  - Special Needs,Homecare
Cambridgeshire County Council,02-Mar-22,51301735798,"-2,336.71",TURNING POINT SERVICES LTD,CARE ESTABLISHMENT,LD - Fenland Locality - Cost of Care,LD - Fenland  - Special Needs,Homecare
Cambridgeshire County Council,02-Mar-22,51301735798,"-2,336.71",TURNING POINT SERVICES LTD,CARE ESTABLISHMENT,LD - Fenland Locality - Cost of Care,LD - Fenland  - Special Needs,Homecare
Cambridgeshire County Council,02-Mar-22,51301735798,"-2,336.71",TURNING POINT SERVICES LTD,CARE ESTABLISHMENT,LD - Fenland Locality - Cost of Care,LD - Fenland  - Special Needs,Homecare
Cambridgeshire County Council,02-Mar-22,51301735798,"-2,336.71",TURNING POINT SERVICES LTD,CARE ESTABLISHMENT,LD - Fenland Locality - Cost of Care,LD - Fenland  - Special Needs,Homecare
Cambridgeshire County Council,02-Mar-22,51301735798,"-2,336.71",TURNING POINT SERVICES LTD,CARE ESTABLISHMENT,LD - Fenland Locality - Cost of Care,LD - Fenland  - Special Needs,Homecare
Cambridgeshire County Council,02-Mar-22,51301735798,"-2,336.71",TURNING POINT SERVICES LTD,CARE ESTABLISHMENT,LD - Fenland Locality - Cost of Care,LD - Fenland  - Special Needs,Homecare
Cambridgeshire County Council,02-Mar-22,51301735798,"-2,336.71",TURNING POINT SERVICES LTD,CARE ESTABLISHMENT,LD - Fenland Locality - Cost of Care,LD - Fenland  - Special Needs,Homecare
Cambridgeshire County Council,02-Mar-22,51301735798,"-2,336.71",TURNING POINT SERVICES LTD,CARE ESTABLISHMENT,LD - Fenland Locality - Cost of Care,LD - Fenland  - Special Needs,Homecare
Cambridgeshire County Council,02-Mar-22,51301735798,"-2,336.71",TURNING POINT SERVICES LTD,CARE ESTABLISHMENT,LD - Fenland Locality - Cost of Care,LD - Fenland  - Special Needs,Homecare
Cambridgeshire County Council,02-Mar-22,51301735798,"-2,336.71",TURNING POINT SERVICES LTD,CARE ESTABLISHMENT,LD - Fenland Locality - Cost of Care,LD - Fenland  - Special Needs,Homecare
Cambridgeshire County Council,02-Mar-22,51301735798,"-2,336.71",TURNING POINT SERVICES LTD,CARE ESTABLISHMENT,LD - Fenland Locality - Cost of Care,LD - Fenland  - Special Needs,Homecare
Cambridgeshire County Council,02-Mar-22,51301735798,"-2,336.71",TURNING POINT SERVICES LTD,CARE ESTABLISHMENT,LD - Fenland Locality - Cost of Care,LD - Fenland  - Special Needs,Homecare
Cambridgeshire County Council,02-Mar-22,51301735798,"-2,336.71",TURNING POINT SERVICES LTD,CARE ESTABLISHMENT,LD - Fenland Locality - Cost of Care,LD - Fenland  - Special Needs,Homecare
Cambridgeshire County Council,02-Mar-22,51301735798,"-2,336.71",TURNING POINT SERVICES LTD,CARE ESTABLISHMENT,LD - Fenland Locality - Cost of Care,LD - Fenland  - Special Needs,Homecare
Cambridgeshire County Council,02-Mar-22,51301735798,"-2,336.71",TURNING POINT SERVICES LTD,CARE ESTABLISHMENT,LD - Fenland Locality - Cost of Care,LD - Fenland  - Special Needs,Homecare
Cambridgeshire County Council,02-Mar-22,51301735798,"-2,336.71",TURNING POINT SERVICES LTD,CARE ESTABLISHMENT,LD - Fenland Locality - Cost of Care,LD - Fenland  - Special Needs,Homecare
Cambridgeshire County Council,02-Mar-22,51301735798,"-2,336.71",TURNING POINT SERVICES LTD,CARE ESTABLISHMENT,LD - Fenland Locality - Cost of Care,LD - Fenland  - Special Needs,Homecare
Cambridgeshire County Council,02-Mar-22,51301735798,"-2,336.71",TURNING POINT SERVICES LTD,CARE ESTABLISHMENT,LD - Fenland Locality - Cost of Care,LD - Fenland  - Special Needs,Homecare
Cambridgeshire County Council,02-Mar-22,51301735820,"-2,183.40",AUGUSTA CARE LTD,CARE ESTABLISHMENT,OP - Fenland Locality - Cost of Care,Older People - Fenland - Care,Homecare
Cambridgeshire County Council,02-Mar-22,51301735820,"-2,183.40",AUGUSTA CARE LTD,CARE ESTABLISHMENT,OP - Fenland Locality - Cost of Care,Older People - Fenland - Care,Homecare
Cambridgeshire County Council,02-Mar-22,51301735820,"-2,183.40",AUGUSTA CARE LTD,CARE ESTABLISHMENT,OP - Fenland Locality - Cost of Care,Older People - Fenland - Care,Homecare
Cambridgeshire County Council,02-Mar-22,51301735820,"-2,183.40",AUGUSTA CARE LTD,CARE ESTABLISHMENT,OP - Fenland Locality - Cost of Care,Older People - Fenland - Care,Homecare
Cambridgeshire County Council,02-Mar-22,51301735820,"-2,183.40",AUGUSTA CARE LTD,CARE ESTABLISHMENT,OP - Fenland Locality - Cost of Care,Older People - Fenland - Care,Homecare
Cambridgeshire County Council,02-Mar-22,51301735820,"-2,183.40",AUGUSTA CARE LTD,CARE ESTABLISHMENT,OP - Fenland Locality - Cost of Care,Older People - Fenland - Care,Homecare
Cambridgeshire County Council,02-Mar-22,51301735820,"-2,183.40",AUGUSTA CARE LTD,CARE ESTABLISHMENT,OP - Fenland Locality - Cost of Care,Older People - Fenland - Care,Homecare
Cambridgeshire County Council,02-Mar-22,51301735820,"-2,183.40",AUGUSTA CARE LTD,CARE ESTABLISHMENT,OP - Fenland Locality - Cost of Care,Older People - Fenland - Care,Homecare
Cambridgeshire County Council,02-Mar-22,51301735820,"-2,183.40",AUGUSTA CARE LTD,CARE ESTABLISHMENT,OP - Fenland Locality - Cost of Care,Older People - Fenland - Care,Homecare
Cambridgeshire County Council,02-Mar-22,51301735820,"-2,183.40",AUGUSTA CARE LTD,CARE ESTABLISHMENT,OP - Fenland Locality - Cost of Care,Older People - Fenland - Care,Homecare
Cambridgeshire County Council,02-Mar-22,51301735820,"-2,183.40",AUGUSTA CARE LTD,CARE ESTABLISHMENT,OP - Fenland Locality - Cost of Care,Older People - Fenland - Care,Homecare
Cambridgeshire County Council,02-Mar-22,51301735820,"-2,183.40",AUGUSTA CARE LTD,CARE ESTABLISHMENT,OP - Fenland Locality - Cost of Care,Older People - Fenland - Care,Homecare
Cambridgeshire County Council,02-Mar-22,51301735820,"-2,183.40",AUGUSTA CARE LTD,CARE ESTABLISHMENT,OP - Fenland Locality - Cost of Care,Older People - Fenland - Care,Homecare
Cambridgeshire County Council,02-Mar-22,51301735820,"-2,183.40",AUGUSTA CARE LTD,CARE ESTABLISHMENT,OP - Fenland Locality - Cost of Care,Older People - Fenland - Care,Homecare
Cambridgeshire County Council,02-Mar-22,51301735820,"-2,183.40",AUGUSTA CARE LTD,CARE ESTABLISHMENT,OP - Fenland Locality - Cost of Care,Older People - Fenland - Care,Homecare
Cambridgeshire County Council,02-Mar-22,51301735820,"-2,183.40",AUGUSTA CARE LTD,CARE ESTABLISHMENT,OP - Fenland Locality - Cost of Care,Older People - Fenland - Care,Homecare
Cambridgeshire County Council,02-Mar-22,51301735820,"-2,183.40",AUGUSTA CARE LTD,CARE ESTABLISHMENT,OP - Fenland Locality - Cost of Care,Older People - Fenland - Care,Homecare
Cambridgeshire County Council,02-Mar-22,51301735820,"-2,183.40",AUGUSTA CARE LTD,CARE ESTABLISHMENT,OP - Fenland Locality - Cost of Care,Older People - Fenland - Care,Homecare
Cambridgeshire County Council,02-Mar-22,51301735820,"-2,183.40",AUGUSTA CARE LTD,CARE ESTABLISHMENT,OP - Fenland Locality - Cost of Care,Older People - Fenland - Care,Homecare
Cambridgeshire County Council,02-Mar-22,51301735820,"-2,183.40",AUGUSTA CARE LTD,CARE ESTABLISHMENT,OP - Fenland Locality - Cost of Care,Older People - Fenland - Care,Homecare
Cambridgeshire County Council,02-Mar-22,51301735820,"-2,183.40",AUGUSTA CARE LTD,CARE ESTABLISHMENT,OP - Fenland Locality - Cost of Care,Older People - Fenland - Care,Homecare
Cambridgeshire County Council,02-Mar-22,51301735820,"-2,183.40",AUGUSTA CARE LTD,CARE ESTABLISHMENT,OP - Fenland Locality - Cost of Care,Older People - Fenland - Care,Homecare
Cambridgeshire County Council,02-Mar-22,51301735820,"-2,183.40",AUGUSTA CARE LTD,CARE ESTABLISHMENT,OP - Fenland Locality - Cost of Care,Older People - Fenland - Care,Homecare
Cambridgeshire County Council,02-Mar-22,51301735820,"-2,183.40",AUGUSTA CARE LTD,CARE ESTABLISHMENT,OP - Fenland Locality - Cost of Care,Older People - Fenland - Care,Homecare
Cambridgeshire County Council,02-Mar-22,51301735820,"-2,183.40",AUGUSTA CARE LTD,CARE ESTABLISHMENT,OP - Fenland Locality - Cost of Care,Older People - Fenland - Care,Homecare
Cambridgeshire County Council,02-Mar-22,51301735820,"-2,183.40",AUGUSTA CARE LTD,CARE ESTABLISHMENT,OP - Fenland Locality - Cost of Care,Older People - Fenland - Care,Homecare
Cambridgeshire County Council,02-Mar-22,51301735820,"-2,183.40",AUGUSTA CARE LTD,CARE ESTABLISHMENT,OP - Fenland Locality - Cost of Care,Older People - Fenland - Care,Homecare
Cambridgeshire County Council,02-Mar-22,51301735820,"-2,183.40",AUGUSTA CARE LTD,CARE ESTABLISHMENT,OP - Fenland Locality - Cost of Care,Older People - Fenland - Care,Homecare
Cambridgeshire County Council,02-Mar-22,51301735820,"-2,183.40",AUGUSTA CARE LTD,CARE ESTABLISHMENT,OP - Fenland Locality - Cost of Care,Older People - Fenland - Care,Homecare
Cambridgeshire County Council,02-Mar-22,51301735820,"-2,183.40",AUGUSTA CARE LTD,CARE ESTABLISHMENT,OP - Fenland Locality - Cost of Care,Older People - Fenland - Care,Homecare
Cambridgeshire County Council,02-Mar-22,51301735820,"-2,183.40",AUGUSTA CARE LTD,CARE ESTABLISHMENT,OP - Fenland Locality - Cost of Care,Older People - Fenland - Care,Homecare
Cambridgeshire County Council,02-Mar-22,51301735820,"-2,183.40",AUGUSTA CARE LTD,CARE ESTABLISHMENT,OP - Fenland Locality - Cost of Care,Older People - Fenland - Care,Homecare
Cambridgeshire County Council,02-Mar-22,51301735820,"-2,183.40",AUGUSTA CARE LTD,CARE ESTABLISHMENT,OP - Fenland Locality - Cost of Care,Older People - Fenland - Care,Homecare
Cambridgeshire County Council,02-Mar-22,51301735820,"-2,183.40",AUGUSTA CARE LTD,CARE ESTABLISHMENT,OP - Fenland Locality - Cost of Care,Older People - Fenland - Care,Homecare
Cambridgeshire County Council,02-Mar-22,51301735820,"-2,183.40",AUGUSTA CARE LTD,CARE ESTABLISHMENT,OP - Fenland Locality - Cost of Care,Older People - Fenland - Care,Homecare
Cambridgeshire County Council,02-Mar-22,51301735820,"-2,183.40",AUGUSTA CARE LTD,CARE ESTABLISHMENT,OP - Fenland Locality - Cost of Care,Older People - Fenland - Care,Homecare
Cambridgeshire County Council,02-Mar-22,51301735820,"-2,183.40",AUGUSTA CARE LTD,CARE ESTABLISHMENT,OP - Fenland Locality - Cost of Care,Older People - Fenland - Care,Homecare
Cambridgeshire County Council,02-Mar-22,51301735820,"-2,183.40",AUGUSTA CARE LTD,CARE ESTABLISHMENT,OP - Fenland Locality - Cost of Care,Older People - Fenland - Care,Homecare
Cambridgeshire County Council,02-Mar-22,51301735820,"-2,183.40",AUGUSTA CARE LTD,CARE ESTABLISHMENT,OP - Fenland Locality - Cost of Care,Older People - Fenland - Care,Homecare
Cambridgeshire County Council,02-Mar-22,51301735820,"-2,183.40",AUGUSTA CARE LTD,CARE ESTABLISHMENT,OP - Fenland Locality - Cost of Care,Older People - Fenland - Care,Homecare
Cambridgeshire County Council,02-Mar-22,51301735820,"-2,183.40",AUGUSTA CARE LTD,CARE ESTABLISHMENT,OP - Fenland Locality - Cost of Care,Older People - Fenland - Care,Homecare
Cambridgeshire County Council,02-Mar-22,51301735820,"-2,183.40",AUGUSTA CARE LTD,CARE ESTABLISHMENT,OP - Fenland Locality - Cost of Care,Older People - Fenland - Care,Homecare
Cambridgeshire County Council,02-Mar-22,51301735820,"-2,183.40",AUGUSTA CARE LTD,CARE ESTABLISHMENT,OP - Fenland Locality - Cost of Care,Older People - Fenland - Care,Homecare
Cambridgeshire County Council,02-Mar-22,51301735820,"-2,183.40",AUGUSTA CARE LTD,CARE ESTABLISHMENT,OP - Fenland Locality - Cost of Care,Older People - Fenland - Care,Homecare
Cambridgeshire County Council,02-Mar-22,51301735820,"-2,183.40",AUGUSTA CARE LTD,CARE ESTABLISHMENT,OP - Fenland Locality - Cost of Care,Older People - Fenland - Care,Homecare
Cambridgeshire County Council,02-Mar-22,51301735820,"-2,183.40",AUGUSTA CARE LTD,CARE ESTABLISHMENT,OP - Fenland Locality - Cost of Care,Older People - Fenland - Care,Homecare
Cambridgeshire County Council,02-Mar-22,51301735820,"-2,183.40",AUGUSTA CARE LTD,CARE ESTABLISHMENT,OP - Fenland Locality - Cost of Care,Older People - Fenland - Care,Homecare
Cambridgeshire County Council,02-Mar-22,51301735809,"-2,177.22",TURNING POINT SERVICES LTD,CARE ESTABLISHMENT,LD - Fenland Locality - Cost of Care,LD - Fenland  - Care,Homecare
Cambridgeshire County Council,02-Mar-22,51301735809,"-2,177.22",TURNING POINT SERVICES LTD,CARE ESTABLISHMENT,LD - Fenland Locality - Cost of Care,LD - Fenland  - Care,Homecare
Cambridgeshire County Council,02-Mar-22,51301735809,"-2,177.22",TURNING POINT SERVICES LTD,CARE ESTABLISHMENT,LD - Fenland Locality - Cost of Care,LD - Fenland  - Care,Homecare
Cambridgeshire County Council,02-Mar-22,51301735809,"-2,177.22",TURNING POINT SERVICES LTD,CARE ESTABLISHMENT,LD - Fenland Locality - Cost of Care,LD - Fenland  - Care,Homecare
Cambridgeshire County Council,02-Mar-22,51301735809,"-2,177.22",TURNING POINT SERVICES LTD,CARE ESTABLISHMENT,LD - Fenland Locality - Cost of Care,LD - Fenland  - Care,Homecare
Cambridgeshire County Council,02-Mar-22,51301735809,"-2,177.22",TURNING POINT SERVICES LTD,CARE ESTABLISHMENT,LD - Fenland Locality - Cost of Care,LD - Fenland  - Care,Homecare
Cambridgeshire County Council,02-Mar-22,51301735809,"-2,177.22",TURNING POINT SERVICES LTD,CARE ESTABLISHMENT,LD - Fenland Locality - Cost of Care,LD - Fenland  - Care,Homecare
Cambridgeshire County Council,02-Mar-22,51301735809,"-2,177.22",TURNING POINT SERVICES LTD,CARE ESTABLISHMENT,LD - Fenland Locality - Cost of Care,LD - Fenland  - Care,Homecare
Cambridgeshire County Council,02-Mar-22,51301735809,"-2,177.22",TURNING POINT SERVICES LTD,CARE ESTABLISHMENT,LD - Fenland Locality - Cost of Care,LD - Fenland  - Care,Homecare
Cambridgeshire County Council,02-Mar-22,51301735809,"-2,177.22",TURNING POINT SERVICES LTD,CARE ESTABLISHMENT,LD - Fenland Locality - Cost of Care,LD - Fenland  - Care,Homecare
Cambridgeshire County Council,02-Mar-22,51301735809,"-2,177.22",TURNING POINT SERVICES LTD,CARE ESTABLISHMENT,LD - Fenland Locality - Cost of Care,LD - Fenland  - Care,Homecare
Cambridgeshire County Council,02-Mar-22,51301735809,"-2,177.22",TURNING POINT SERVICES LTD,CARE ESTABLISHMENT,LD - Fenland Locality - Cost of Care,LD - Fenland  - Care,Homecare
Cambridgeshire County Council,02-Mar-22,51301735809,"-2,177.22",TURNING POINT SERVICES LTD,CARE ESTABLISHMENT,LD - Fenland Locality - Cost of Care,LD - Fenland  - Care,Homecare
Cambridgeshire County Council,02-Mar-22,51301735809,"-2,177.22",TURNING POINT SERVICES LTD,CARE ESTABLISHMENT,LD - Fenland Locality - Cost of Care,LD - Fenland  - Care,Homecare
Cambridgeshire County Council,02-Mar-22,51301735809,"-2,177.22",TURNING POINT SERVICES LTD,CARE ESTABLISHMENT,LD - Fenland Locality - Cost of Care,LD - Fenland  - Care,Homecare
Cambridgeshire County Council,02-Mar-22,51301735809,"-2,177.22",TURNING POINT SERVICES LTD,CARE ESTABLISHMENT,LD - Fenland Locality - Cost of Care,LD - Fenland  - Care,Homecare
Cambridgeshire County Council,02-Mar-22,51301735809,"-2,177.22",TURNING POINT SERVICES LTD,CARE ESTABLISHMENT,LD - Fenland Locality - Cost of Care,LD - Fenland  - Care,Homecare
Cambridgeshire County Council,02-Mar-22,51301735809,"-2,177.22",TURNING POINT SERVICES LTD,CARE ESTABLISHMENT,LD - Fenland Locality - Cost of Care,LD - Fenland  - Care,Homecare
Cambridgeshire County Council,02-Mar-22,51301735809,"-2,177.22",TURNING POINT SERVICES LTD,CARE ESTABLISHMENT,LD - Fenland Locality - Cost of Care,LD - Fenland  - Care,Homecare
Cambridgeshire County Council,02-Mar-22,51301735809,"-2,177.22",TURNING POINT SERVICES LTD,CARE ESTABLISHMENT,LD - Fenland Locality - Cost of Care,LD - Fenland  - Care,Homecare
Cambridgeshire County Council,02-Mar-22,51301735809,"-2,177.22",TURNING POINT SERVICES LTD,CARE ESTABLISHMENT,LD - Fenland Locality - Cost of Care,LD - Fenland  - Care,Homecare
Cambridgeshire County Council,02-Mar-22,51301735809,"-2,177.22",TURNING POINT SERVICES LTD,CARE ESTABLISHMENT,LD - Fenland Locality - Cost of Care,LD - Fenland  - Care,Homecare
Cambridgeshire County Council,02-Mar-22,51301735809,"-2,177.22",TURNING POINT SERVICES LTD,CARE ESTABLISHMENT,LD - Fenland Locality - Cost of Care,LD - Fenland  - Care,Homecare
Cambridgeshire County Council,02-Mar-22,51301735809,"-2,177.22",TURNING POINT SERVICES LTD,CARE ESTABLISHMENT,LD - Fenland Locality - Cost of Care,LD - Fenland  - Care,Homecare
Cambridgeshire County Council,02-Mar-22,51301735809,"-2,177.22",TURNING POINT SERVICES LTD,CARE ESTABLISHMENT,LD - Fenland Locality - Cost of Care,LD - Fenland  - Care,Homecare
Cambridgeshire County Council,02-Mar-22,51301735809,"-2,177.22",TURNING POINT SERVICES LTD,CARE ESTABLISHMENT,LD - Fenland Locality - Cost of Care,LD - Fenland  - Care,Homecare
Cambridgeshire County Council,02-Mar-22,51301735809,"-2,177.22",TURNING POINT SERVICES LTD,CARE ESTABLISHMENT,LD - Fenland Locality - Cost of Care,LD - Fenland  - Care,Homecare
Cambridgeshire County Council,02-Mar-22,51301735809,"-2,177.22",TURNING POINT SERVICES LTD,CARE ESTABLISHMENT,LD - Fenland Locality - Cost of Care,LD - Fenland  - Care,Homecare
Cambridgeshire County Council,02-Mar-22,51301735809,"-2,177.22",TURNING POINT SERVICES LTD,CARE ESTABLISHMENT,LD - Fenland Locality - Cost of Care,LD - Fenland  - Care,Homecare
Cambridgeshire County Council,02-Mar-22,51301735809,"-2,177.22",TURNING POINT SERVICES LTD,CARE ESTABLISHMENT,LD - Fenland Locality - Cost of Care,LD - Fenland  - Care,Homecare
Cambridgeshire County Council,02-Mar-22,51301735809,"-2,177.22",TURNING POINT SERVICES LTD,CARE ESTABLISHMENT,LD - Fenland Locality - Cost of Care,LD - Fenland  - Care,Homecare
Cambridgeshire County Council,02-Mar-22,51301735809,"-2,177.22",TURNING POINT SERVICES LTD,CARE ESTABLISHMENT,LD - Fenland Locality - Cost of Care,LD - Fenland  - Care,Homecare
Cambridgeshire County Council,02-Mar-22,51301735809,"-2,177.22",TURNING POINT SERVICES LTD,CARE ESTABLISHMENT,LD - Fenland Locality - Cost of Care,LD - Fenland  - Care,Homecare
Cambridgeshire County Council,02-Mar-22,51301735809,"-2,177.22",TURNING POINT SERVICES LTD,CARE ESTABLISHMENT,LD - Fenland Locality - Cost of Care,LD - Fenland  - Care,Homecare
Cambridgeshire County Council,02-Mar-22,51301735809,"-2,177.22",TURNING POINT SERVICES LTD,CARE ESTABLISHMENT,LD - Fenland Locality - Cost of Care,LD - Fenland  - Care,Homecare
Cambridgeshire County Council,02-Mar-22,51301735809,"-2,177.22",TURNING POINT SERVICES LTD,CARE ESTABLISHMENT,LD - Fenland Locality - Cost of Care,LD - Fenland  - Care,Homecare
Cambridgeshire County Council,02-Mar-22,51301735809,"-2,177.22",TURNING POINT SERVICES LTD,CARE ESTABLISHMENT,LD - Fenland Locality - Cost of Care,LD - Fenland  - Care,Homecare
Cambridgeshire County Council,02-Mar-22,51301735809,"-2,177.22",TURNING POINT SERVICES LTD,CARE ESTABLISHMENT,LD - Fenland Locality - Cost of Care,LD - Fenland  - Care,Homecare
Cambridgeshire County Council,02-Mar-22,51301735809,"-2,177.22",TURNING POINT SERVICES LTD,CARE ESTABLISHMENT,LD - Fenland Locality - Cost of Care,LD - Fenland  - Care,Homecare
Cambridgeshire County Council,02-Mar-22,51301735809,"-2,177.22",TURNING POINT SERVICES LTD,CARE ESTABLISHMENT,LD - Fenland Locality - Cost of Care,LD - Fenland  - Care,Homecare
Cambridgeshire County Council,02-Mar-22,51301735809,"-2,177.22",TURNING POINT SERVICES LTD,CARE ESTABLISHMENT,LD - Fenland Locality - Cost of Care,LD - Fenland  - Care,Homecare
Cambridgeshire County Council,02-Mar-22,51301735809,"-2,177.22",TURNING POINT SERVICES LTD,CARE ESTABLISHMENT,LD - Fenland Locality - Cost of Care,LD - Fenland  - Care,Homecare
Cambridgeshire County Council,02-Mar-22,51301735809,"-2,177.22",TURNING POINT SERVICES LTD,CARE ESTABLISHMENT,LD - Fenland Locality - Cost of Care,LD - Fenland  - Care,Homecare
Cambridgeshire County Council,02-Mar-22,51301735809,"-2,177.22",TURNING POINT SERVICES LTD,CARE ESTABLISHMENT,LD - Fenland Locality - Cost of Care,LD - Fenland  - Care,Homecare
Cambridgeshire County Council,02-Mar-22,51301735809,"-2,177.22",TURNING POINT SERVICES LTD,CARE ESTABLISHMENT,LD - Fenland Locality - Cost of Care,LD - Fenland  - Care,Homecare
Cambridgeshire County Council,02-Mar-22,51301735809,"-2,177.22",TURNING POINT SERVICES LTD,CARE ESTABLISHMENT,LD - Fenland Locality - Cost of Care,LD - Fenland  - Care,Homecare
Cambridgeshire County Council,02-Mar-22,51301735809,"-2,177.22",TURNING POINT SERVICES LTD,CARE ESTABLISHMENT,LD - Fenland Locality - Cost of Care,LD - Fenland  - Care,Homecare
Cambridgeshire County Council,02-Mar-22,51301735859,"-2,033.79",REDMOND HOUSE (VOYAGE),CARE ESTABLISHMENT,LD - South Locality - Cost of Care,LD - South Cambs - Care,Residential Care
Cambridgeshire County Council,02-Mar-22,51301735859,"-2,033.79",REDMOND HOUSE (VOYAGE),CARE ESTABLISHMENT,LD - South Locality - Cost of Care,LD - South Cambs - Care,Residential Care
Cambridgeshire County Council,02-Mar-22,51301735859,"-2,033.79",REDMOND HOUSE (VOYAGE),CARE ESTABLISHMENT,LD - South Locality - Cost of Care,LD - South Cambs - Care,Residential Care
Cambridgeshire County Council,02-Mar-22,51301735859,"-2,033.79",REDMOND HOUSE (VOYAGE),CARE ESTABLISHMENT,LD - South Locality - Cost of Care,LD - South Cambs - Care,Residential Care
Cambridgeshire County Council,02-Mar-22,51301735859,"-2,033.79",REDMOND HOUSE (VOYAGE),CARE ESTABLISHMENT,LD - South Locality - Cost of Care,LD - South Cambs - Care,Residential Care
Cambridgeshire County Council,02-Mar-22,51301735859,"-2,033.79",REDMOND HOUSE (VOYAGE),CARE ESTABLISHMENT,LD - South Locality - Cost of Care,LD - South Cambs - Care,Residential Care
Cambridgeshire County Council,02-Mar-22,51301735859,"-2,033.79",REDMOND HOUSE (VOYAGE),CARE ESTABLISHMENT,LD - South Locality - Cost of Care,LD - South Cambs - Care,Residential Care
Cambridgeshire County Council,02-Mar-22,51301735859,"-2,033.79",REDMOND HOUSE (VOYAGE),CARE ESTABLISHMENT,LD - South Locality - Cost of Care,LD - South Cambs - Care,Residential Care
Cambridgeshire County Council,02-Mar-22,51301735859,"-2,033.79",REDMOND HOUSE (VOYAGE),CARE ESTABLISHMENT,LD - South Locality - Cost of Care,LD - South Cambs - Care,Residential Care
Cambridgeshire County Council,02-Mar-22,51301735859,"-2,033.79",REDMOND HOUSE (VOYAGE),CARE ESTABLISHMENT,LD - South Locality - Cost of Care,LD - South Cambs - Care,Residential Care
Cambridgeshire County Council,02-Mar-22,51301735859,"-2,033.79",REDMOND HOUSE (VOYAGE),CARE ESTABLISHMENT,LD - South Locality - Cost of Care,LD - South Cambs - Care,Residential Care
Cambridgeshire County Council,02-Mar-22,51301735859,"-2,033.79",REDMOND HOUSE (VOYAGE),CARE ESTABLISHMENT,LD - South Locality - Cost of Care,LD - South Cambs - Care,Residential Care
Cambridgeshire County Council,02-Mar-22,51301735859,"-2,033.79",REDMOND HOUSE (VOYAGE),CARE ESTABLISHMENT,LD - South Locality - Cost of Care,LD - South Cambs - Care,Residential Care
Cambridgeshire County Council,02-Mar-22,51301735859,"-2,033.79",REDMOND HOUSE (VOYAGE),CARE ESTABLISHMENT,LD - South Locality - Cost of Care,LD - South Cambs - Care,Residential Care
Cambridgeshire County Council,02-Mar-22,51301735859,"-2,033.79",REDMOND HOUSE (VOYAGE),CARE ESTABLISHMENT,LD - South Locality - Cost of Care,LD - South Cambs - Care,Residential Care
Cambridgeshire County Council,02-Mar-22,51301735859,"-2,033.79",REDMOND HOUSE (VOYAGE),CARE ESTABLISHMENT,LD - South Locality - Cost of Care,LD - South Cambs - Care,Residential Care
Cambridgeshire County Council,02-Mar-22,51301735859,"-2,033.79",REDMOND HOUSE (VOYAGE),CARE ESTABLISHMENT,LD - South Locality - Cost of Care,LD - South Cambs - Care,Residential Care
Cambridgeshire County Council,02-Mar-22,51301735859,"-2,033.79",REDMOND HOUSE (VOYAGE),CARE ESTABLISHMENT,LD - South Locality - Cost of Care,LD - South Cambs - Care,Residential Care
Cambridgeshire County Council,02-Mar-22,51301735859,"-2,033.79",REDMOND HOUSE (VOYAGE),CARE ESTABLISHMENT,LD - South Locality - Cost of Care,LD - South Cambs - Care,Residential Care
Cambridgeshire County Council,02-Mar-22,51301735859,"-2,033.79",REDMOND HOUSE (VOYAGE),CARE ESTABLISHMENT,LD - South Locality - Cost of Care,LD - South Cambs - Care,Residential Care
Cambridgeshire County Council,02-Mar-22,51301735859,"-2,033.79",REDMOND HOUSE (VOYAGE),CARE ESTABLISHMENT,LD - South Locality - Cost of Care,LD - South Cambs - Care,Residential Care
Cambridgeshire County Council,02-Mar-22,51301735859,"-2,033.79",REDMOND HOUSE (VOYAGE),CARE ESTABLISHMENT,LD - South Locality - Cost of Care,LD - South Cambs - Care,Residential Care
Cambridgeshire County Council,02-Mar-22,51301735859,"-2,033.79",REDMOND HOUSE (VOYAGE),CARE ESTABLISHMENT,LD - South Locality - Cost of Care,LD - South Cambs - Care,Residential Care
Cambridgeshire County Council,02-Mar-22,51301735859,"-2,033.79",REDMOND HOUSE (VOYAGE),CARE ESTABLISHMENT,LD - South Locality - Cost of Care,LD - South Cambs - Care,Residential Care
Cambridgeshire County Council,02-Mar-22,51301735859,"-2,033.79",REDMOND HOUSE (VOYAGE),CARE ESTABLISHMENT,LD - South Locality - Cost of Care,LD - South Cambs - Care,Residential Care
Cambridgeshire County Council,02-Mar-22,51301735859,"-2,033.79",REDMOND HOUSE (VOYAGE),CARE ESTABLISHMENT,LD - South Locality - Cost of Care,LD - South Cambs - Care,Residential Care
Cambridgeshire County Council,02-Mar-22,51301735859,"-2,033.79",REDMOND HOUSE (VOYAGE),CARE ESTABLISHMENT,LD - South Locality - Cost of Care,LD - South Cambs - Care,Residential Care
Cambridgeshire County Council,02-Mar-22,51301735859,"-2,033.79",REDMOND HOUSE (VOYAGE),CARE ESTABLISHMENT,LD - South Locality - Cost of Care,LD - South Cambs - Care,Residential Care
Cambridgeshire County Council,02-Mar-22,51301735859,"-2,033.79",REDMOND HOUSE (VOYAGE),CARE ESTABLISHMENT,LD - South Locality - Cost of Care,LD - South Cambs - Care,Residential Care
Cambridgeshire County Council,02-Mar-22,51301735859,"-2,033.79",REDMOND HOUSE (VOYAGE),CARE ESTABLISHMENT,LD - South Locality - Cost of Care,LD - South Cambs - Care,Residential Care
Cambridgeshire County Council,02-Mar-22,51301735859,"-2,033.79",REDMOND HOUSE (VOYAGE),CARE ESTABLISHMENT,LD - South Locality - Cost of Care,LD - South Cambs - Care,Residential Care
Cambridgeshire County Council,02-Mar-22,51301735859,"-2,033.79",REDMOND HOUSE (VOYAGE),CARE ESTABLISHMENT,LD - South Locality - Cost of Care,LD - South Cambs - Care,Residential Care
Cambridgeshire County Council,02-Mar-22,51301735859,"-2,033.79",REDMOND HOUSE (VOYAGE),CARE ESTABLISHMENT,LD - South Locality - Cost of Care,LD - South Cambs - Care,Residential Care
Cambridgeshire County Council,02-Mar-22,51301735859,"-2,033.79",REDMOND HOUSE (VOYAGE),CARE ESTABLISHMENT,LD - South Locality - Cost of Care,LD - South Cambs - Care,Residential Care
Cambridgeshire County Council,02-Mar-22,51301735859,"-2,033.79",REDMOND HOUSE (VOYAGE),CARE ESTABLISHMENT,LD - South Locality - Cost of Care,LD - South Cambs - Care,Residential Care
Cambridgeshire County Council,02-Mar-22,51301735859,"-2,033.79",REDMOND HOUSE (VOYAGE),CARE ESTABLISHMENT,LD - South Locality - Cost of Care,LD - South Cambs - Care,Residential Care
Cambridgeshire County Council,02-Mar-22,51301735859,"-2,033.79",REDMOND HOUSE (VOYAGE),CARE ESTABLISHMENT,LD - South Locality - Cost of Care,LD - South Cambs - Care,Residential Care
Cambridgeshire County Council,02-Mar-22,51301735859,"-2,033.79",REDMOND HOUSE (VOYAGE),CARE ESTABLISHMENT,LD - South Locality - Cost of Care,LD - South Cambs - Care,Residential Care
Cambridgeshire County Council,02-Mar-22,51301735859,"-2,033.79",REDMOND HOUSE (VOYAGE),CARE ESTABLISHMENT,LD - South Locality - Cost of Care,LD - South Cambs - Care,Residential Care
Cambridgeshire County Council,02-Mar-22,51301735859,"-2,033.79",REDMOND HOUSE (VOYAGE),CARE ESTABLISHMENT,LD - South Locality - Cost of Care,LD - South Cambs - Care,Residential Care
Cambridgeshire County Council,02-Mar-22,51301735859,"-2,033.79",REDMOND HOUSE (VOYAGE),CARE ESTABLISHMENT,LD - South Locality - Cost of Care,LD - South Cambs - Care,Residential Care
Cambridgeshire County Council,02-Mar-22,51301735859,"-2,033.79",REDMOND HOUSE (VOYAGE),CARE ESTABLISHMENT,LD - South Locality - Cost of Care,LD - South Cambs - Care,Residential Care
Cambridgeshire County Council,02-Mar-22,51301735859,"-2,033.79",REDMOND HOUSE (VOYAGE),CARE ESTABLISHMENT,LD - South Locality - Cost of Care,LD - South Cambs - Care,Residential Care
Cambridgeshire County Council,02-Mar-22,51301735859,"-2,033.79",REDMOND HOUSE (VOYAGE),CARE ESTABLISHMENT,LD - South Locality - Cost of Care,LD - South Cambs - Care,Residential Care
Cambridgeshire County Council,02-Mar-22,51301735859,"-2,033.79",REDMOND HOUSE (VOYAGE),CARE ESTABLISHMENT,LD - South Locality - Cost of Care,LD - South Cambs - Care,Residential Care
Cambridgeshire County Council,02-Mar-22,51301735859,"-2,033.79",REDMOND HOUSE (VOYAGE),CARE ESTABLISHMENT,LD - South Locality - Cost of Care,LD - South Cambs - Care,Residential Care
Cambridgeshire County Council,02-Mar-22,51301735859,"-2,033.79",REDMOND HOUSE (VOYAGE),CARE ESTABLISHMENT,LD - South Locality - Cost of Care,LD - South Cambs - Care,Residential Care
Cambridgeshire County Council,02-Mar-22,51301735859,"-2,033.79",REDMOND HOUSE (VOYAGE),CARE ESTABLISHMENT,LD - South Locality - Cost of Care,LD - South Cambs - Care,Residential Care
Cambridgeshire County Council,02-Mar-22,51301735859,"-2,033.79",REDMOND HOUSE (VOYAGE),CARE ESTABLISHMENT,LD - South Locality - Cost of Care,LD - South Cambs - Care,Residential Care
Cambridgeshire County Council,02-Mar-22,51301735859,"-2,033.79",REDMOND HOUSE (VOYAGE),CARE ESTABLISHMENT,LD - South Locality - Cost of Care,LD - South Cambs - Care,Residential Care
Cambridgeshire County Council,02-Mar-22,51301735794,"-1,983.28",DIMENSIONS (UK) LTD,CARE ESTABLISHMENT,LD - South Locality - Cost of Care,LD - South Cambs - Care,Domiciliary Care
Cambridgeshire County Council,02-Mar-22,51301735794,"-1,983.28",DIMENSIONS (UK) LTD,CARE ESTABLISHMENT,LD - South Locality - Cost of Care,LD - South Cambs - Care,Domiciliary Care
Cambridgeshire County Council,02-Mar-22,51301735794,"-1,983.28",DIMENSIONS (UK) LTD,CARE ESTABLISHMENT,LD - South Locality - Cost of Care,LD - South Cambs - Care,Domiciliary Care
Cambridgeshire County Council,02-Mar-22,51301735794,"-1,983.28",DIMENSIONS (UK) LTD,CARE ESTABLISHMENT,LD - South Locality - Cost of Care,LD - South Cambs - Care,Domiciliary Care
Cambridgeshire County Council,02-Mar-22,51301735794,"-1,983.28",DIMENSIONS (UK) LTD,CARE ESTABLISHMENT,LD - South Locality - Cost of Care,LD - South Cambs - Care,Domiciliary Care
Cambridgeshire County Council,02-Mar-22,51301735794,"-1,983.28",DIMENSIONS (UK) LTD,CARE ESTABLISHMENT,LD - South Locality - Cost of Care,LD - South Cambs - Care,Domiciliary Care
Cambridgeshire County Council,02-Mar-22,51301735794,"-1,983.28",DIMENSIONS (UK) LTD,CARE ESTABLISHMENT,LD - South Locality - Cost of Care,LD - South Cambs - Care,Domiciliary Care
Cambridgeshire County Council,02-Mar-22,51301735794,"-1,983.28",DIMENSIONS (UK) LTD,CARE ESTABLISHMENT,LD - South Locality - Cost of Care,LD - South Cambs - Care,Domiciliary Care
Cambridgeshire County Council,02-Mar-22,51301735794,"-1,983.28",DIMENSIONS (UK) LTD,CARE ESTABLISHMENT,LD - South Locality - Cost of Care,LD - South Cambs - Care,Domiciliary Care
Cambridgeshire County Council,02-Mar-22,51301735794,"-1,983.28",DIMENSIONS (UK) LTD,CARE ESTABLISHMENT,LD - South Locality - Cost of Care,LD - South Cambs - Care,Domiciliary Care
Cambridgeshire County Council,02-Mar-22,51301735794,"-1,983.28",DIMENSIONS (UK) LTD,CARE ESTABLISHMENT,LD - South Locality - Cost of Care,LD - South Cambs - Care,Domiciliary Care
Cambridgeshire County Council,02-Mar-22,51301735794,"-1,983.28",DIMENSIONS (UK) LTD,CARE ESTABLISHMENT,LD - South Locality - Cost of Care,LD - South Cambs - Care,Domiciliary Care
Cambridgeshire County Council,02-Mar-22,51301735794,"-1,983.28",DIMENSIONS (UK) LTD,CARE ESTABLISHMENT,LD - South Locality - Cost of Care,LD - South Cambs - Care,Domiciliary Care
Cambridgeshire County Council,02-Mar-22,51301735794,"-1,983.28",DIMENSIONS (UK) LTD,CARE ESTABLISHMENT,LD - South Locality - Cost of Care,LD - South Cambs - Care,Domiciliary Care
Cambridgeshire County Council,02-Mar-22,51301735794,"-1,983.28",DIMENSIONS (UK) LTD,CARE ESTABLISHMENT,LD - South Locality - Cost of Care,LD - South Cambs - Care,Domiciliary Care
Cambridgeshire County Council,02-Mar-22,51301735794,"-1,983.28",DIMENSIONS (UK) LTD,CARE ESTABLISHMENT,LD - South Locality - Cost of Care,LD - South Cambs - Care,Domiciliary Care
Cambridgeshire County Council,02-Mar-22,51301735794,"-1,983.28",DIMENSIONS (UK) LTD,CARE ESTABLISHMENT,LD - South Locality - Cost of Care,LD - South Cambs - Care,Domiciliary Care
Cambridgeshire County Council,02-Mar-22,51301735794,"-1,983.28",DIMENSIONS (UK) LTD,CARE ESTABLISHMENT,LD - South Locality - Cost of Care,LD - South Cambs - Care,Domiciliary Care
Cambridgeshire County Council,02-Mar-22,51301735794,"-1,983.28",DIMENSIONS (UK) LTD,CARE ESTABLISHMENT,LD - South Locality - Cost of Care,LD - South Cambs - Care,Domiciliary Care
Cambridgeshire County Council,02-Mar-22,51301735794,"-1,983.28",DIMENSIONS (UK) LTD,CARE ESTABLISHMENT,LD - South Locality - Cost of Care,LD - South Cambs - Care,Domiciliary Care
Cambridgeshire County Council,02-Mar-22,51301735794,"-1,983.28",DIMENSIONS (UK) LTD,CARE ESTABLISHMENT,LD - South Locality - Cost of Care,LD - South Cambs - Care,Domiciliary Care
Cambridgeshire County Council,02-Mar-22,51301735794,"-1,983.28",DIMENSIONS (UK) LTD,CARE ESTABLISHMENT,LD - South Locality - Cost of Care,LD - South Cambs - Care,Domiciliary Care
Cambridgeshire County Council,02-Mar-22,51301735794,"-1,983.28",DIMENSIONS (UK) LTD,CARE ESTABLISHMENT,LD - South Locality - Cost of Care,LD - South Cambs - Care,Domiciliary Care
Cambridgeshire County Council,02-Mar-22,51301735794,"-1,983.28",DIMENSIONS (UK) LTD,CARE ESTABLISHMENT,LD - South Locality - Cost of Care,LD - South Cambs - Care,Domiciliary Care
Cambridgeshire County Council,02-Mar-22,51301735794,"-1,983.28",DIMENSIONS (UK) LTD,CARE ESTABLISHMENT,LD - South Locality - Cost of Care,LD - South Cambs - Care,Domiciliary Care
Cambridgeshire County Council,02-Mar-22,51301735794,"-1,983.28",DIMENSIONS (UK) LTD,CARE ESTABLISHMENT,LD - South Locality - Cost of Care,LD - South Cambs - Care,Domiciliary Care
Cambridgeshire County Council,02-Mar-22,51301735794,"-1,983.28",DIMENSIONS (UK) LTD,CARE ESTABLISHMENT,LD - South Locality - Cost of Care,LD - South Cambs - Care,Domiciliary Care
Cambridgeshire County Council,02-Mar-22,51301735794,"-1,983.28",DIMENSIONS (UK) LTD,CARE ESTABLISHMENT,LD - South Locality - Cost of Care,LD - South Cambs - Care,Domiciliary Care
Cambridgeshire County Council,02-Mar-22,51301735794,"-1,983.28",DIMENSIONS (UK) LTD,CARE ESTABLISHMENT,LD - South Locality - Cost of Care,LD - South Cambs - Care,Domiciliary Care
Cambridgeshire County Council,02-Mar-22,51301735794,"-1,983.28",DIMENSIONS (UK) LTD,CARE ESTABLISHMENT,LD - South Locality - Cost of Care,LD - South Cambs - Care,Domiciliary Care
Cambridgeshire County Council,02-Mar-22,51301735794,"-1,983.28",DIMENSIONS (UK) LTD,CARE ESTABLISHMENT,LD - South Locality - Cost of Care,LD - South Cambs - Care,Domiciliary Care
Cambridgeshire County Council,02-Mar-22,51301735794,"-1,983.28",DIMENSIONS (UK) LTD,CARE ESTABLISHMENT,LD - South Locality - Cost of Care,LD - South Cambs - Care,Domiciliary Care
Cambridgeshire County Council,02-Mar-22,51301735794,"-1,983.28",DIMENSIONS (UK) LTD,CARE ESTABLISHMENT,LD - South Locality - Cost of Care,LD - South Cambs - Care,Domiciliary Care
Cambridgeshire County Council,02-Mar-22,51301735794,"-1,983.28",DIMENSIONS (UK) LTD,CARE ESTABLISHMENT,LD - South Locality - Cost of Care,LD - South Cambs - Care,Domiciliary Care
Cambridgeshire County Council,02-Mar-22,51301735794,"-1,983.28",DIMENSIONS (UK) LTD,CARE ESTABLISHMENT,LD - South Locality - Cost of Care,LD - South Cambs - Care,Domiciliary Care
Cambridgeshire County Council,02-Mar-22,51301735794,"-1,983.28",DIMENSIONS (UK) LTD,CARE ESTABLISHMENT,LD - South Locality - Cost of Care,LD - South Cambs - Care,Domiciliary Care
Cambridgeshire County Council,02-Mar-22,51301735794,"-1,983.28",DIMENSIONS (UK) LTD,CARE ESTABLISHMENT,LD - South Locality - Cost of Care,LD - South Cambs - Care,Domiciliary Care
Cambridgeshire County Council,02-Mar-22,51301735794,"-1,983.28",DIMENSIONS (UK) LTD,CARE ESTABLISHMENT,LD - South Locality - Cost of Care,LD - South Cambs - Care,Domiciliary Care
Cambridgeshire County Council,02-Mar-22,51301735794,"-1,983.28",DIMENSIONS (UK) LTD,CARE ESTABLISHMENT,LD - South Locality - Cost of Care,LD - South Cambs - Care,Domiciliary Care
Cambridgeshire County Council,02-Mar-22,51301735794,"-1,983.28",DIMENSIONS (UK) LTD,CARE ESTABLISHMENT,LD - South Locality - Cost of Care,LD - South Cambs - Care,Domiciliary Care
Cambridgeshire County Council,02-Mar-22,51301735794,"-1,983.28",DIMENSIONS (UK) LTD,CARE ESTABLISHMENT,LD - South Locality - Cost of Care,LD - South Cambs - Care,Domiciliary Care
Cambridgeshire County Council,02-Mar-22,51301735794,"-1,983.28",DIMENSIONS (UK) LTD,CARE ESTABLISHMENT,LD - South Locality - Cost of Care,LD - South Cambs - Care,Domiciliary Care
Cambridgeshire County Council,02-Mar-22,51301735794,"-1,983.28",DIMENSIONS (UK) LTD,CARE ESTABLISHMENT,LD - South Locality - Cost of Care,LD - South Cambs - Care,Domiciliary Care
Cambridgeshire County Council,02-Mar-22,51301735794,"-1,983.28",DIMENSIONS (UK) LTD,CARE ESTABLISHMENT,LD - South Locality - Cost of Care,LD - South Cambs - Care,Domiciliary Care
Cambridgeshire County Council,02-Mar-22,51301735794,"-1,983.28",DIMENSIONS (UK) LTD,CARE ESTABLISHMENT,LD - South Locality - Cost of Care,LD - South Cambs - Care,Domiciliary Care
Cambridgeshire County Council,02-Mar-22,51301735794,"-1,983.28",DIMENSIONS (UK) LTD,CARE ESTABLISHMENT,LD - South Locality - Cost of Care,LD - South Cambs - Care,Domiciliary Care
Cambridgeshire County Council,02-Mar-22,51301735794,"-1,983.28",DIMENSIONS (UK) LTD,CARE ESTABLISHMENT,LD - South Locality - Cost of Care,LD - South Cambs - Care,Domiciliary Care
Cambridgeshire County Council,02-Mar-22,51301735793,"-1,951.37",AFFINITY TRUST,CARE ESTABLISHMENT,LD - Fenland Locality - Cost of Care,LD - Fenland  - Care,Homecare
Cambridgeshire County Council,02-Mar-22,51301735793,"-1,951.37",AFFINITY TRUST,CARE ESTABLISHMENT,LD - Fenland Locality - Cost of Care,LD - Fenland  - Care,Homecare
Cambridgeshire County Council,02-Mar-22,51301735793,"-1,951.37",AFFINITY TRUST,CARE ESTABLISHMENT,LD - Fenland Locality - Cost of Care,LD - Fenland  - Care,Homecare
Cambridgeshire County Council,02-Mar-22,51301735793,"-1,951.37",AFFINITY TRUST,CARE ESTABLISHMENT,LD - Fenland Locality - Cost of Care,LD - Fenland  - Care,Homecare
Cambridgeshire County Council,02-Mar-22,51301735793,"-1,951.37",AFFINITY TRUST,CARE ESTABLISHMENT,LD - Fenland Locality - Cost of Care,LD - Fenland  - Care,Homecare
Cambridgeshire County Council,02-Mar-22,51301735793,"-1,951.37",AFFINITY TRUST,CARE ESTABLISHMENT,LD - Fenland Locality - Cost of Care,LD - Fenland  - Care,Homecare
Cambridgeshire County Council,02-Mar-22,51301735793,"-1,951.37",AFFINITY TRUST,CARE ESTABLISHMENT,LD - Fenland Locality - Cost of Care,LD - Fenland  - Care,Homecare
Cambridgeshire County Council,02-Mar-22,51301735793,"-1,951.37",AFFINITY TRUST,CARE ESTABLISHMENT,LD - Fenland Locality - Cost of Care,LD - Fenland  - Care,Homecare
Cambridgeshire County Council,02-Mar-22,51301735793,"-1,951.37",AFFINITY TRUST,CARE ESTABLISHMENT,LD - Fenland Locality - Cost of Care,LD - Fenland  - Care,Homecare
Cambridgeshire County Council,02-Mar-22,51301735793,"-1,951.37",AFFINITY TRUST,CARE ESTABLISHMENT,LD - Fenland Locality - Cost of Care,LD - Fenland  - Care,Homecare
Cambridgeshire County Council,02-Mar-22,51301735793,"-1,951.37",AFFINITY TRUST,CARE ESTABLISHMENT,LD - Fenland Locality - Cost of Care,LD - Fenland  - Care,Homecare
Cambridgeshire County Council,02-Mar-22,51301735793,"-1,951.37",AFFINITY TRUST,CARE ESTABLISHMENT,LD - Fenland Locality - Cost of Care,LD - Fenland  - Care,Homecare
Cambridgeshire County Council,02-Mar-22,51301735793,"-1,951.37",AFFINITY TRUST,CARE ESTABLISHMENT,LD - Fenland Locality - Cost of Care,LD - Fenland  - Care,Homecare
Cambridgeshire County Council,02-Mar-22,51301735793,"-1,951.37",AFFINITY TRUST,CARE ESTABLISHMENT,LD - Fenland Locality - Cost of Care,LD - Fenland  - Care,Homecare
Cambridgeshire County Council,02-Mar-22,51301735793,"-1,951.37",AFFINITY TRUST,CARE ESTABLISHMENT,LD - Fenland Locality - Cost of Care,LD - Fenland  - Care,Homecare
Cambridgeshire County Council,02-Mar-22,51301735793,"-1,951.37",AFFINITY TRUST,CARE ESTABLISHMENT,LD - Fenland Locality - Cost of Care,LD - Fenland  - Care,Homecare
Cambridgeshire County Council,02-Mar-22,51301735793,"-1,951.37",AFFINITY TRUST,CARE ESTABLISHMENT,LD - Fenland Locality - Cost of Care,LD - Fenland  - Care,Homecare
Cambridgeshire County Council,02-Mar-22,51301735793,"-1,951.37",AFFINITY TRUST,CARE ESTABLISHMENT,LD - Fenland Locality - Cost of Care,LD - Fenland  - Care,Homecare
Cambridgeshire County Council,02-Mar-22,51301735793,"-1,951.37",AFFINITY TRUST,CARE ESTABLISHMENT,LD - Fenland Locality - Cost of Care,LD - Fenland  - Care,Homecare
Cambridgeshire County Council,02-Mar-22,51301735793,"-1,951.37",AFFINITY TRUST,CARE ESTABLISHMENT,LD - Fenland Locality - Cost of Care,LD - Fenland  - Care,Homecare
Cambridgeshire County Council,02-Mar-22,51301735793,"-1,951.37",AFFINITY TRUST,CARE ESTABLISHMENT,LD - Fenland Locality - Cost of Care,LD - Fenland  - Care,Homecare
Cambridgeshire County Council,02-Mar-22,51301735793,"-1,951.37",AFFINITY TRUST,CARE ESTABLISHMENT,LD - Fenland Locality - Cost of Care,LD - Fenland  - Care,Homecare
Cambridgeshire County Council,02-Mar-22,51301735793,"-1,951.37",AFFINITY TRUST,CARE ESTABLISHMENT,LD - Fenland Locality - Cost of Care,LD - Fenland  - Care,Homecare
Cambridgeshire County Council,02-Mar-22,51301735793,"-1,951.37",AFFINITY TRUST,CARE ESTABLISHMENT,LD - Fenland Locality - Cost of Care,LD - Fenland  - Care,Homecare
Cambridgeshire County Council,02-Mar-22,51301735793,"-1,951.37",AFFINITY TRUST,CARE ESTABLISHMENT,LD - Fenland Locality - Cost of Care,LD - Fenland  - Care,Homecare
Cambridgeshire County Council,02-Mar-22,51301735793,"-1,951.37",AFFINITY TRUST,CARE ESTABLISHMENT,LD - Fenland Locality - Cost of Care,LD - Fenland  - Care,Homecare
Cambridgeshire County Council,02-Mar-22,51301735793,"-1,951.37",AFFINITY TRUST,CARE ESTABLISHMENT,LD - Fenland Locality - Cost of Care,LD - Fenland  - Care,Homecare
Cambridgeshire County Council,02-Mar-22,51301735859,"-1,743.25",REDMOND HOUSE (VOYAGE),CARE ESTABLISHMENT,LD - South Locality - Cost of Care,LD - South Cambs - Care,Residential Care
Cambridgeshire County Council,02-Mar-22,51301735805,"-1,678.77",AFFINITY TRUST,CARE ESTABLISHMENT,LD - Fenland Locality - Cost of Care,LD - Fenland  - Care,Homecare
Cambridgeshire County Council,02-Mar-22,51301735805,"-1,678.77",AFFINITY TRUST,CARE ESTABLISHMENT,LD - Fenland Locality - Cost of Care,LD - Fenland  - Care,Homecare
Cambridgeshire County Council,02-Mar-22,51301735805,"-1,678.77",AFFINITY TRUST,CARE ESTABLISHMENT,LD - Fenland Locality - Cost of Care,LD - Fenland  - Care,Homecare
Cambridgeshire County Council,02-Mar-22,51301735805,"-1,678.77",AFFINITY TRUST,CARE ESTABLISHMENT,LD - Fenland Locality - Cost of Care,LD - Fenland  - Care,Homecare
Cambridgeshire County Council,02-Mar-22,51301735805,"-1,678.77",AFFINITY TRUST,CARE ESTABLISHMENT,LD - Fenland Locality - Cost of Care,LD - Fenland  - Care,Homecare
Cambridgeshire County Council,02-Mar-22,51301735805,"-1,678.77",AFFINITY TRUST,CARE ESTABLISHMENT,LD - Fenland Locality - Cost of Care,LD - Fenland  - Care,Homecare
Cambridgeshire County Council,02-Mar-22,51301735805,"-1,678.77",AFFINITY TRUST,CARE ESTABLISHMENT,LD - Fenland Locality - Cost of Care,LD - Fenland  - Care,Homecare
Cambridgeshire County Council,02-Mar-22,51301735805,"-1,678.77",AFFINITY TRUST,CARE ESTABLISHMENT,LD - Fenland Locality - Cost of Care,LD - Fenland  - Care,Homecare
Cambridgeshire County Council,02-Mar-22,51301735805,"-1,678.77",AFFINITY TRUST,CARE ESTABLISHMENT,LD - Fenland Locality - Cost of Care,LD - Fenland  - Care,Homecare
Cambridgeshire County Council,02-Mar-22,51301735805,"-1,678.77",AFFINITY TRUST,CARE ESTABLISHMENT,LD - Fenland Locality - Cost of Care,LD - Fenland  - Care,Homecare
Cambridgeshire County Council,02-Mar-22,51301735805,"-1,678.77",AFFINITY TRUST,CARE ESTABLISHMENT,LD - Fenland Locality - Cost of Care,LD - Fenland  - Care,Homecare
Cambridgeshire County Council,02-Mar-22,51301735805,"-1,678.77",AFFINITY TRUST,CARE ESTABLISHMENT,LD - Fenland Locality - Cost of Care,LD - Fenland  - Care,Homecare
Cambridgeshire County Council,02-Mar-22,51301735805,"-1,678.77",AFFINITY TRUST,CARE ESTABLISHMENT,LD - Fenland Locality - Cost of Care,LD - Fenland  - Care,Homecare
Cambridgeshire County Council,02-Mar-22,51301735805,"-1,678.77",AFFINITY TRUST,CARE ESTABLISHMENT,LD - Fenland Locality - Cost of Care,LD - Fenland  - Care,Homecare
Cambridgeshire County Council,02-Mar-22,51301735805,"-1,678.77",AFFINITY TRUST,CARE ESTABLISHMENT,LD - Fenland Locality - Cost of Care,LD - Fenland  - Care,Homecare
Cambridgeshire County Council,02-Mar-22,51301735805,"-1,678.77",AFFINITY TRUST,CARE ESTABLISHMENT,LD - Fenland Locality - Cost of Care,LD - Fenland  - Care,Homecare
Cambridgeshire County Council,02-Mar-22,51301735805,"-1,678.77",AFFINITY TRUST,CARE ESTABLISHMENT,LD - Fenland Locality - Cost of Care,LD - Fenland  - Care,Homecare
Cambridgeshire County Council,02-Mar-22,51301735805,"-1,678.77",AFFINITY TRUST,CARE ESTABLISHMENT,LD - Fenland Locality - Cost of Care,LD - Fenland  - Care,Homecare
Cambridgeshire County Council,02-Mar-22,51301735805,"-1,678.77",AFFINITY TRUST,CARE ESTABLISHMENT,LD - Fenland Locality - Cost of Care,LD - Fenland  - Care,Homecare
Cambridgeshire County Council,02-Mar-22,51301735805,"-1,678.77",AFFINITY TRUST,CARE ESTABLISHMENT,LD - Fenland Locality - Cost of Care,LD - Fenland  - Care,Homecare
Cambridgeshire County Council,02-Mar-22,51301735805,"-1,678.77",AFFINITY TRUST,CARE ESTABLISHMENT,LD - Fenland Locality - Cost of Care,LD - Fenland  - Care,Homecare
Cambridgeshire County Council,02-Mar-22,51301735805,"-1,678.77",AFFINITY TRUST,CARE ESTABLISHMENT,LD - Fenland Locality - Cost of Care,LD - Fenland  - Care,Homecare
Cambridgeshire County Council,02-Mar-22,51301735805,"-1,678.77",AFFINITY TRUST,CARE ESTABLISHMENT,LD - Fenland Locality - Cost of Care,LD - Fenland  - Care,Homecare
Cambridgeshire County Council,02-Mar-22,51301735805,"-1,678.77",AFFINITY TRUST,CARE ESTABLISHMENT,LD - Fenland Locality - Cost of Care,LD - Fenland  - Care,Homecare
Cambridgeshire County Council,02-Mar-22,51301735805,"-1,678.77",AFFINITY TRUST,CARE ESTABLISHMENT,LD - Fenland Locality - Cost of Care,LD - Fenland  - Care,Homecare
Cambridgeshire County Council,02-Mar-22,51301735805,"-1,678.77",AFFINITY TRUST,CARE ESTABLISHMENT,LD - Fenland Locality - Cost of Care,LD - Fenland  - Care,Homecare
Cambridgeshire County Council,02-Mar-22,51301735805,"-1,678.77",AFFINITY TRUST,CARE ESTABLISHMENT,LD - Fenland Locality - Cost of Care,LD - Fenland  - Care,Homecare
Cambridgeshire County Council,02-Mar-22,51301735805,"-1,678.77",AFFINITY TRUST,CARE ESTABLISHMENT,LD - Fenland Locality - Cost of Care,LD - Fenland  - Care,Homecare
Cambridgeshire County Council,02-Mar-22,51301735805,"-1,678.77",AFFINITY TRUST,CARE ESTABLISHMENT,LD - Fenland Locality - Cost of Care,LD - Fenland  - Care,Homecare
Cambridgeshire County Council,02-Mar-22,51301735805,"-1,678.77",AFFINITY TRUST,CARE ESTABLISHMENT,LD - Fenland Locality - Cost of Care,LD - Fenland  - Care,Homecare
Cambridgeshire County Council,02-Mar-22,51301735805,"-1,678.77",AFFINITY TRUST,CARE ESTABLISHMENT,LD - Fenland Locality - Cost of Care,LD - Fenland  - Care,Homecare
Cambridgeshire County Council,02-Mar-22,51301735805,"-1,678.77",AFFINITY TRUST,CARE ESTABLISHMENT,LD - Fenland Locality - Cost of Care,LD - Fenland  - Care,Homecare
Cambridgeshire County Council,02-Mar-22,51301735805,"-1,678.77",AFFINITY TRUST,CARE ESTABLISHMENT,LD - Fenland Locality - Cost of Care,LD - Fenland  - Care,Homecare
Cambridgeshire County Council,02-Mar-22,51301735805,"-1,678.77",AFFINITY TRUST,CARE ESTABLISHMENT,LD - Fenland Locality - Cost of Care,LD - Fenland  - Care,Homecare
Cambridgeshire County Council,02-Mar-22,51301735805,"-1,678.77",AFFINITY TRUST,CARE ESTABLISHMENT,LD - Fenland Locality - Cost of Care,LD - Fenland  - Care,Homecare
Cambridgeshire County Council,02-Mar-22,51301735805,"-1,678.77",AFFINITY TRUST,CARE ESTABLISHMENT,LD - Fenland Locality - Cost of Care,LD - Fenland  - Care,Homecare
Cambridgeshire County Council,02-Mar-22,51301735805,"-1,678.77",AFFINITY TRUST,CARE ESTABLISHMENT,LD - Fenland Locality - Cost of Care,LD - Fenland  - Care,Homecare
Cambridgeshire County Council,02-Mar-22,51301735805,"-1,678.77",AFFINITY TRUST,CARE ESTABLISHMENT,LD - Fenland Locality - Cost of Care,LD - Fenland  - Care,Homecare
Cambridgeshire County Council,02-Mar-22,51301735805,"-1,678.77",AFFINITY TRUST,CARE ESTABLISHMENT,LD - Fenland Locality - Cost of Care,LD - Fenland  - Care,Homecare
Cambridgeshire County Council,02-Mar-22,51301735805,"-1,678.77",AFFINITY TRUST,CARE ESTABLISHMENT,LD - Fenland Locality - Cost of Care,LD - Fenland  - Care,Homecare
Cambridgeshire County Council,02-Mar-22,51301735805,"-1,678.77",AFFINITY TRUST,CARE ESTABLISHMENT,LD - Fenland Locality - Cost of Care,LD - Fenland  - Care,Homecare
Cambridgeshire County Council,02-Mar-22,51301735805,"-1,678.77",AFFINITY TRUST,CARE ESTABLISHMENT,LD - Fenland Locality - Cost of Care,LD - Fenland  - Care,Homecare
Cambridgeshire County Council,02-Mar-22,51301735805,"-1,678.77",AFFINITY TRUST,CARE ESTABLISHMENT,LD - Fenland Locality - Cost of Care,LD - Fenland  - Care,Homecare
Cambridgeshire County Council,02-Mar-22,51301735805,"-1,678.77",AFFINITY TRUST,CARE ESTABLISHMENT,LD - Fenland Locality - Cost of Care,LD - Fenland  - Care,Homecare
Cambridgeshire County Council,02-Mar-22,51301735805,"-1,678.77",AFFINITY TRUST,CARE ESTABLISHMENT,LD - Fenland Locality - Cost of Care,LD - Fenland  - Care,Homecare
Cambridgeshire County Council,02-Mar-22,51301735805,"-1,678.77",AFFINITY TRUST,CARE ESTABLISHMENT,LD - Fenland Locality - Cost of Care,LD - Fenland  - Care,Homecare
Cambridgeshire County Council,02-Mar-22,51301735805,"-1,678.77",AFFINITY TRUST,CARE ESTABLISHMENT,LD - Fenland Locality - Cost of Care,LD - Fenland  - Care,Homecare
Cambridgeshire County Council,02-Mar-22,51301735793,"-1,672.60",AFFINITY TRUST,CARE ESTABLISHMENT,LD - Fenland Locality - Cost of Care,LD - Fenland  - Care,Homecare
Cambridgeshire County Council,02-Mar-22,51301735793,"-1,638.96",AFFINITY TRUST,CARE ESTABLISHMENT,LD - Fenland Locality - Cost of Care,LD - Fenland  - Care,Homecare
Cambridgeshire County Council,02-Mar-22,51301735793,"-1,638.96",AFFINITY TRUST,CARE ESTABLISHMENT,LD - Fenland Locality - Cost of Care,LD - Fenland  - Care,Homecare
Cambridgeshire County Council,02-Mar-22,51301735793,"-1,638.96",AFFINITY TRUST,CARE ESTABLISHMENT,LD - Fenland Locality - Cost of Care,LD - Fenland  - Care,Homecare
Cambridgeshire County Council,02-Mar-22,51301735793,"-1,638.96",AFFINITY TRUST,CARE ESTABLISHMENT,LD - Fenland Locality - Cost of Care,LD - Fenland  - Care,Homecare
Cambridgeshire County Council,02-Mar-22,51301735793,"-1,638.96",AFFINITY TRUST,CARE ESTABLISHMENT,LD - Fenland Locality - Cost of Care,LD - Fenland  - Care,Homecare
Cambridgeshire County Council,02-Mar-22,51301735793,"-1,638.96",AFFINITY TRUST,CARE ESTABLISHMENT,LD - Fenland Locality - Cost of Care,LD - Fenland  - Care,Homecare
Cambridgeshire County Council,02-Mar-22,51301735793,"-1,638.96",AFFINITY TRUST,CARE ESTABLISHMENT,LD - Fenland Locality - Cost of Care,LD - Fenland  - Care,Homecare
Cambridgeshire County Council,02-Mar-22,51301735793,"-1,638.96",AFFINITY TRUST,CARE ESTABLISHMENT,LD - Fenland Locality - Cost of Care,LD - Fenland  - Care,Homecare
Cambridgeshire County Council,02-Mar-22,51301735793,"-1,638.96",AFFINITY TRUST,CARE ESTABLISHMENT,LD - Fenland Locality - Cost of Care,LD - Fenland  - Care,Homecare
Cambridgeshire County Council,02-Mar-22,51301735793,"-1,638.96",AFFINITY TRUST,CARE ESTABLISHMENT,LD - Fenland Locality - Cost of Care,LD - Fenland  - Care,Homecare
Cambridgeshire County Council,02-Mar-22,51301735793,"-1,638.96",AFFINITY TRUST,CARE ESTABLISHMENT,LD - Fenland Locality - Cost of Care,LD - Fenland  - Care,Homecare
Cambridgeshire County Council,02-Mar-22,51301735793,"-1,638.96",AFFINITY TRUST,CARE ESTABLISHMENT,LD - Fenland Locality - Cost of Care,LD - Fenland  - Care,Homecare
Cambridgeshire County Council,02-Mar-22,51301735793,"-1,638.96",AFFINITY TRUST,CARE ESTABLISHMENT,LD - Fenland Locality - Cost of Care,LD - Fenland  - Care,Homecare
Cambridgeshire County Council,02-Mar-22,51301735793,"-1,638.96",AFFINITY TRUST,CARE ESTABLISHMENT,LD - Fenland Locality - Cost of Care,LD - Fenland  - Care,Homecare
Cambridgeshire County Council,02-Mar-22,51301735793,"-1,638.96",AFFINITY TRUST,CARE ESTABLISHMENT,LD - Fenland Locality - Cost of Care,LD - Fenland  - Care,Homecare
Cambridgeshire County Council,02-Mar-22,51301735793,"-1,638.96",AFFINITY TRUST,CARE ESTABLISHMENT,LD - Fenland Locality - Cost of Care,LD - Fenland  - Care,Homecare
Cambridgeshire County Council,02-Mar-22,51301735793,"-1,638.96",AFFINITY TRUST,CARE ESTABLISHMENT,LD - Fenland Locality - Cost of Care,LD - Fenland  - Care,Homecare
Cambridgeshire County Council,02-Mar-22,51301735793,"-1,638.96",AFFINITY TRUST,CARE ESTABLISHMENT,LD - Fenland Locality - Cost of Care,LD - Fenland  - Care,Homecare
Cambridgeshire County Council,02-Mar-22,51301735793,"-1,638.96",AFFINITY TRUST,CARE ESTABLISHMENT,LD - Fenland Locality - Cost of Care,LD - Fenland  - Care,Homecare
Cambridgeshire County Council,02-Mar-22,51301735813,"-1,628.91",Ambito Care and Education,COMPANY,LD - South Locality - Cost of Care,LD - South Cambs - Care,Domiciliary Care
Cambridgeshire County Council,02-Mar-22,51301735813,"-1,628.91",Ambito Care and Education,COMPANY,LD - South Locality - Cost of Care,LD - South Cambs - Care,Domiciliary Care
Cambridgeshire County Council,02-Mar-22,51301735813,"-1,628.91",Ambito Care and Education,COMPANY,LD - South Locality - Cost of Care,LD - South Cambs - Care,Domiciliary Care
Cambridgeshire County Council,02-Mar-22,51301735813,"-1,628.91",Ambito Care and Education,COMPANY,LD - South Locality - Cost of Care,LD - South Cambs - Care,Domiciliary Care
Cambridgeshire County Council,02-Mar-22,51301735813,"-1,628.91",Ambito Care and Education,COMPANY,LD - South Locality - Cost of Care,LD - South Cambs - Care,Domiciliary Care
Cambridgeshire County Council,02-Mar-22,51301735813,"-1,628.91",Ambito Care and Education,COMPANY,LD - South Locality - Cost of Care,LD - South Cambs - Care,Domiciliary Care
Cambridgeshire County Council,02-Mar-22,51301735813,"-1,628.91",Ambito Care and Education,COMPANY,LD - South Locality - Cost of Care,LD - South Cambs - Care,Domiciliary Care
Cambridgeshire County Council,02-Mar-22,51301735813,"-1,628.91",Ambito Care and Education,COMPANY,LD - South Locality - Cost of Care,LD - South Cambs - Care,Domiciliary Care
Cambridgeshire County Council,02-Mar-22,51301735813,"-1,628.91",Ambito Care and Education,COMPANY,LD - South Locality - Cost of Care,LD - South Cambs - Care,Domiciliary Care
Cambridgeshire County Council,02-Mar-22,51301735813,"-1,628.91",Ambito Care and Education,COMPANY,LD - South Locality - Cost of Care,LD - South Cambs - Care,Domiciliary Care
Cambridgeshire County Council,02-Mar-22,51301735813,"-1,628.91",Ambito Care and Education,COMPANY,LD - South Locality - Cost of Care,LD - South Cambs - Care,Domiciliary Care
Cambridgeshire County Council,02-Mar-22,51301735813,"-1,628.91",Ambito Care and Education,COMPANY,LD - South Locality - Cost of Care,LD - South Cambs - Care,Domiciliary Care
Cambridgeshire County Council,02-Mar-22,51301735813,"-1,628.91",Ambito Care and Education,COMPANY,LD - South Locality - Cost of Care,LD - South Cambs - Care,Domiciliary Care
Cambridgeshire County Council,02-Mar-22,51301735813,"-1,628.91",Ambito Care and Education,COMPANY,LD - South Locality - Cost of Care,LD - South Cambs - Care,Domiciliary Care
Cambridgeshire County Council,02-Mar-22,51301735813,"-1,628.91",Ambito Care and Education,COMPANY,LD - South Locality - Cost of Care,LD - South Cambs - Care,Domiciliary Care
Cambridgeshire County Council,02-Mar-22,51301735813,"-1,628.91",Ambito Care and Education,COMPANY,LD - South Locality - Cost of Care,LD - South Cambs - Care,Domiciliary Care
Cambridgeshire County Council,02-Mar-22,51301735813,"-1,628.91",Ambito Care and Education,COMPANY,LD - South Locality - Cost of Care,LD - South Cambs - Care,Domiciliary Care
Cambridgeshire County Council,02-Mar-22,51301735813,"-1,628.91",Ambito Care and Education,COMPANY,LD - South Locality - Cost of Care,LD - South Cambs - Care,Domiciliary Care
Cambridgeshire County Council,02-Mar-22,51301735813,"-1,628.91",Ambito Care and Education,COMPANY,LD - South Locality - Cost of Care,LD - South Cambs - Care,Domiciliary Care
Cambridgeshire County Council,02-Mar-22,51301735813,"-1,628.91",Ambito Care and Education,COMPANY,LD - South Locality - Cost of Care,LD - South Cambs - Care,Domiciliary Care
Cambridgeshire County Council,02-Mar-22,51301735813,"-1,628.91",Ambito Care and Education,COMPANY,LD - South Locality - Cost of Care,LD - South Cambs - Care,Domiciliary Care
Cambridgeshire County Council,02-Mar-22,51301735813,"-1,628.91",Ambito Care and Education,COMPANY,LD - South Locality - Cost of Care,LD - South Cambs - Care,Domiciliary Care
Cambridgeshire County Council,02-Mar-22,51301735813,"-1,628.91",Ambito Care and Education,COMPANY,LD - South Locality - Cost of Care,LD - South Cambs - Care,Domiciliary Care
Cambridgeshire County Council,02-Mar-22,51301735813,"-1,628.91",Ambito Care and Education,COMPANY,LD - South Locality - Cost of Care,LD - South Cambs - Care,Domiciliary Care
Cambridgeshire County Council,02-Mar-22,51301735813,"-1,628.91",Ambito Care and Education,COMPANY,LD - South Locality - Cost of Care,LD - South Cambs - Care,Domiciliary Care
Cambridgeshire County Council,02-Mar-22,51301735813,"-1,628.91",Ambito Care and Education,COMPANY,LD - South Locality - Cost of Care,LD - South Cambs - Care,Domiciliary Care
Cambridgeshire County Council,02-Mar-22,51301735813,"-1,628.91",Ambito Care and Education,COMPANY,LD - South Locality - Cost of Care,LD - South Cambs - Care,Domiciliary Care
Cambridgeshire County Council,02-Mar-22,51301735813,"-1,628.91",Ambito Care and Education,COMPANY,LD - South Locality - Cost of Care,LD - South Cambs - Care,Domiciliary Care
Cambridgeshire County Council,02-Mar-22,51301735813,"-1,628.91",Ambito Care and Education,COMPANY,LD - South Locality - Cost of Care,LD - South Cambs - Care,Domiciliary Care
Cambridgeshire County Council,02-Mar-22,51301735813,"-1,628.91",Ambito Care and Education,COMPANY,LD - South Locality - Cost of Care,LD - South Cambs - Care,Domiciliary Care
Cambridgeshire County Council,02-Mar-22,51301735813,"-1,628.91",Ambito Care and Education,COMPANY,LD - South Locality - Cost of Care,LD - South Cambs - Care,Domiciliary Care
Cambridgeshire County Council,02-Mar-22,51301735813,"-1,628.91",Ambito Care and Education,COMPANY,LD - South Locality - Cost of Care,LD - South Cambs - Care,Domiciliary Care
Cambridgeshire County Council,02-Mar-22,51301735813,"-1,628.91",Ambito Care and Education,COMPANY,LD - South Locality - Cost of Care,LD - South Cambs - Care,Domiciliary Care
Cambridgeshire County Council,02-Mar-22,51301735813,"-1,628.91",Ambito Care and Education,COMPANY,LD - South Locality - Cost of Care,LD - South Cambs - Care,Domiciliary Care
Cambridgeshire County Council,02-Mar-22,51301735813,"-1,628.91",Ambito Care and Education,COMPANY,LD - South Locality - Cost of Care,LD - South Cambs - Care,Domiciliary Care
Cambridgeshire County Council,02-Mar-22,51301735813,"-1,628.91",Ambito Care and Education,COMPANY,LD - South Locality - Cost of Care,LD - South Cambs - Care,Domiciliary Care
Cambridgeshire County Council,02-Mar-22,51301735813,"-1,628.91",Ambito Care and Education,COMPANY,LD - South Locality - Cost of Care,LD - South Cambs - Care,Domiciliary Care
Cambridgeshire County Council,02-Mar-22,51301735813,"-1,628.91",Ambito Care and Education,COMPANY,LD - South Locality - Cost of Care,LD - South Cambs - Care,Domiciliary Care
Cambridgeshire County Council,02-Mar-22,51301735813,"-1,628.91",Ambito Care and Education,COMPANY,LD - South Locality - Cost of Care,LD - South Cambs - Care,Domiciliary Care
Cambridgeshire County Council,02-Mar-22,51301735813,"-1,628.91",Ambito Care and Education,COMPANY,LD - South Locality - Cost of Care,LD - South Cambs - Care,Domiciliary Care
Cambridgeshire County Council,02-Mar-22,51301735813,"-1,628.91",Ambito Care and Education,COMPANY,LD - South Locality - Cost of Care,LD - South Cambs - Care,Domiciliary Care
Cambridgeshire County Council,02-Mar-22,51301735813,"-1,628.91",Ambito Care and Education,COMPANY,LD - South Locality - Cost of Care,LD - South Cambs - Care,Domiciliary Care
Cambridgeshire County Council,02-Mar-22,51301735813,"-1,628.91",Ambito Care and Education,COMPANY,LD - South Locality - Cost of Care,LD - South Cambs - Care,Domiciliary Care
Cambridgeshire County Council,02-Mar-22,51301735813,"-1,628.91",Ambito Care and Education,COMPANY,LD - South Locality - Cost of Care,LD - South Cambs - Care,Domiciliary Care
Cambridgeshire County Council,02-Mar-22,51301735813,"-1,628.91",Ambito Care and Education,COMPANY,LD - South Locality - Cost of Care,LD - South Cambs - Care,Domiciliary Care
Cambridgeshire County Council,02-Mar-22,51301735813,"-1,628.91",Ambito Care and Education,COMPANY,LD - South Locality - Cost of Care,LD - South Cambs - Care,Domiciliary Care
Cambridgeshire County Council,02-Mar-22,51301735813,"-1,628.91",Ambito Care and Education,COMPANY,LD - South Locality - Cost of Care,LD - South Cambs - Care,Domiciliary Care
Cambridgeshire County Council,02-Mar-22,51301735858,"-1,605.00",VOYAGE,CARE ESTABLISHMENT,LD - South Locality - Cost of Care,LD - South Cambs - Special Needs,Residential Care
Cambridgeshire County Council,02-Mar-22,51301735858,"-1,605.00",VOYAGE,CARE ESTABLISHMENT,LD - South Locality - Cost of Care,LD - South Cambs - Special Needs,Residential Care
Cambridgeshire County Council,02-Mar-22,51301735858,"-1,605.00",VOYAGE,CARE ESTABLISHMENT,LD - South Locality - Cost of Care,LD - South Cambs - Special Needs,Residential Care
Cambridgeshire County Council,02-Mar-22,51301735858,"-1,605.00",VOYAGE,CARE ESTABLISHMENT,LD - South Locality - Cost of Care,LD - South Cambs - Special Needs,Residential Care
Cambridgeshire County Council,02-Mar-22,51301735858,"-1,605.00",VOYAGE,CARE ESTABLISHMENT,LD - South Locality - Cost of Care,LD - South Cambs - Special Needs,Residential Care
Cambridgeshire County Council,02-Mar-22,51301735858,"-1,605.00",VOYAGE,CARE ESTABLISHMENT,LD - South Locality - Cost of Care,LD - South Cambs - Special Needs,Residential Care
Cambridgeshire County Council,02-Mar-22,51301735858,"-1,605.00",VOYAGE,CARE ESTABLISHMENT,LD - South Locality - Cost of Care,LD - South Cambs - Special Needs,Residential Care
Cambridgeshire County Council,02-Mar-22,51301735858,"-1,605.00",VOYAGE,CARE ESTABLISHMENT,LD - South Locality - Cost of Care,LD - South Cambs - Special Needs,Residential Care
Cambridgeshire County Council,02-Mar-22,51301735858,"-1,605.00",VOYAGE,CARE ESTABLISHMENT,LD - South Locality - Cost of Care,LD - South Cambs - Special Needs,Residential Care
Cambridgeshire County Council,02-Mar-22,51301735858,"-1,605.00",VOYAGE,CARE ESTABLISHMENT,LD - South Locality - Cost of Care,LD - South Cambs - Special Needs,Residential Care
Cambridgeshire County Council,02-Mar-22,51301735858,"-1,605.00",VOYAGE,CARE ESTABLISHMENT,LD - South Locality - Cost of Care,LD - South Cambs - Special Needs,Residential Care
Cambridgeshire County Council,02-Mar-22,51301735858,"-1,605.00",VOYAGE,CARE ESTABLISHMENT,LD - South Locality - Cost of Care,LD - South Cambs - Special Needs,Residential Care
Cambridgeshire County Council,02-Mar-22,51301735858,"-1,605.00",VOYAGE,CARE ESTABLISHMENT,LD - South Locality - Cost of Care,LD - South Cambs - Special Needs,Residential Care
Cambridgeshire County Council,02-Mar-22,51301735858,"-1,605.00",VOYAGE,CARE ESTABLISHMENT,LD - South Locality - Cost of Care,LD - South Cambs - Special Needs,Residential Care
Cambridgeshire County Council,02-Mar-22,51301735858,"-1,605.00",VOYAGE,CARE ESTABLISHMENT,LD - South Locality - Cost of Care,LD - South Cambs - Special Needs,Residential Care
Cambridgeshire County Council,02-Mar-22,51301735858,"-1,605.00",VOYAGE,CARE ESTABLISHMENT,LD - South Locality - Cost of Care,LD - South Cambs - Special Needs,Residential Care
Cambridgeshire County Council,02-Mar-22,51301735858,"-1,605.00",VOYAGE,CARE ESTABLISHMENT,LD - South Locality - Cost of Care,LD - South Cambs - Special Needs,Residential Care
Cambridgeshire County Council,02-Mar-22,51301735858,"-1,605.00",VOYAGE,CARE ESTABLISHMENT,LD - South Locality - Cost of Care,LD - South Cambs - Special Needs,Residential Care
Cambridgeshire County Council,02-Mar-22,51301735858,"-1,605.00",VOYAGE,CARE ESTABLISHMENT,LD - South Locality - Cost of Care,LD - South Cambs - Special Needs,Residential Care
Cambridgeshire County Council,02-Mar-22,51301735858,"-1,605.00",VOYAGE,CARE ESTABLISHMENT,LD - South Locality - Cost of Care,LD - South Cambs - Special Needs,Residential Care
Cambridgeshire County Council,02-Mar-22,51301735858,"-1,605.00",VOYAGE,CARE ESTABLISHMENT,LD - South Locality - Cost of Care,LD - South Cambs - Special Needs,Residential Care
Cambridgeshire County Council,02-Mar-22,51301735858,"-1,605.00",VOYAGE,CARE ESTABLISHMENT,LD - South Locality - Cost of Care,LD - South Cambs - Special Needs,Residential Care
Cambridgeshire County Council,02-Mar-22,51301735858,"-1,605.00",VOYAGE,CARE ESTABLISHMENT,LD - South Locality - Cost of Care,LD - South Cambs - Special Needs,Residential Care
Cambridgeshire County Council,02-Mar-22,51301735858,"-1,605.00",VOYAGE,CARE ESTABLISHMENT,LD - South Locality - Cost of Care,LD - South Cambs - Special Needs,Residential Care
Cambridgeshire County Council,02-Mar-22,51301735858,"-1,605.00",VOYAGE,CARE ESTABLISHMENT,LD - South Locality - Cost of Care,LD - South Cambs - Special Needs,Residential Care
Cambridgeshire County Council,02-Mar-22,51301735858,"-1,605.00",VOYAGE,CARE ESTABLISHMENT,LD - South Locality - Cost of Care,LD - South Cambs - Special Needs,Residential Care
Cambridgeshire County Council,02-Mar-22,51301735858,"-1,605.00",VOYAGE,CARE ESTABLISHMENT,LD - South Locality - Cost of Care,LD - South Cambs - Special Needs,Residential Care
Cambridgeshire County Council,02-Mar-22,51301735858,"-1,605.00",VOYAGE,CARE ESTABLISHMENT,LD - South Locality - Cost of Care,LD - South Cambs - Special Needs,Residential Care
Cambridgeshire County Council,02-Mar-22,51301735858,"-1,605.00",VOYAGE,CARE ESTABLISHMENT,LD - South Locality - Cost of Care,LD - South Cambs - Special Needs,Residential Care
Cambridgeshire County Council,02-Mar-22,51301735858,"-1,605.00",VOYAGE,CARE ESTABLISHMENT,LD - South Locality - Cost of Care,LD - South Cambs - Special Needs,Residential Care
Cambridgeshire County Council,02-Mar-22,51301735858,"-1,605.00",VOYAGE,CARE ESTABLISHMENT,LD - South Locality - Cost of Care,LD - South Cambs - Special Needs,Residential Care
Cambridgeshire County Council,02-Mar-22,51301735858,"-1,605.00",VOYAGE,CARE ESTABLISHMENT,LD - South Locality - Cost of Care,LD - South Cambs - Special Needs,Residential Care
Cambridgeshire County Council,02-Mar-22,51301735858,"-1,605.00",VOYAGE,CARE ESTABLISHMENT,LD - South Locality - Cost of Care,LD - South Cambs - Special Needs,Residential Care
Cambridgeshire County Council,02-Mar-22,51301735858,"-1,605.00",VOYAGE,CARE ESTABLISHMENT,LD - South Locality - Cost of Care,LD - South Cambs - Special Needs,Residential Care
Cambridgeshire County Council,02-Mar-22,51301735858,"-1,605.00",VOYAGE,CARE ESTABLISHMENT,LD - South Locality - Cost of Care,LD - South Cambs - Special Needs,Residential Care
Cambridgeshire County Council,02-Mar-22,51301735858,"-1,605.00",VOYAGE,CARE ESTABLISHMENT,LD - South Locality - Cost of Care,LD - South Cambs - Special Needs,Residential Care
Cambridgeshire County Council,02-Mar-22,51301735858,"-1,605.00",VOYAGE,CARE ESTABLISHMENT,LD - South Locality - Cost of Care,LD - South Cambs - Special Needs,Residential Care
Cambridgeshire County Council,02-Mar-22,51301735858,"-1,605.00",VOYAGE,CARE ESTABLISHMENT,LD - South Locality - Cost of Care,LD - South Cambs - Special Needs,Residential Care
Cambridgeshire County Council,02-Mar-22,51301735858,"-1,605.00",VOYAGE,CARE ESTABLISHMENT,LD - South Locality - Cost of Care,LD - South Cambs - Special Needs,Residential Care
Cambridgeshire County Council,02-Mar-22,51301735858,"-1,605.00",VOYAGE,CARE ESTABLISHMENT,LD - South Locality - Cost of Care,LD - South Cambs - Special Needs,Residential Care
Cambridgeshire County Council,02-Mar-22,51301735858,"-1,605.00",VOYAGE,CARE ESTABLISHMENT,LD - South Locality - Cost of Care,LD - South Cambs - Special Needs,Residential Care
Cambridgeshire County Council,02-Mar-22,51301735858,"-1,605.00",VOYAGE,CARE ESTABLISHMENT,LD - South Locality - Cost of Care,LD - South Cambs - Special Needs,Residential Care
Cambridgeshire County Council,02-Mar-22,51301735858,"-1,605.00",VOYAGE,CARE ESTABLISHMENT,LD - South Locality - Cost of Care,LD - South Cambs - Special Needs,Residential Care
Cambridgeshire County Council,02-Mar-22,51301735858,"-1,605.00",VOYAGE,CARE ESTABLISHMENT,LD - South Locality - Cost of Care,LD - South Cambs - Special Needs,Residential Care
Cambridgeshire County Council,02-Mar-22,51301735858,"-1,605.00",VOYAGE,CARE ESTABLISHMENT,LD - South Locality - Cost of Care,LD - South Cambs - Special Needs,Residential Care
Cambridgeshire County Council,02-Mar-22,51301735858,"-1,605.00",VOYAGE,CARE ESTABLISHMENT,LD - South Locality - Cost of Care,LD - South Cambs - Special Needs,Residential Care
Cambridgeshire County Council,02-Mar-22,51301735858,"-1,605.00",VOYAGE,CARE ESTABLISHMENT,LD - South Locality - Cost of Care,LD - South Cambs - Special Needs,Residential Care
Cambridgeshire County Council,02-Mar-22,51301735858,"-1,605.00",VOYAGE,CARE ESTABLISHMENT,LD - South Locality - Cost of Care,LD - South Cambs - Special Needs,Residential Care
Cambridgeshire County Council,02-Mar-22,51301735858,"-1,605.00",VOYAGE,CARE ESTABLISHMENT,LD - South Locality - Cost of Care,LD - South Cambs - Special Needs,Residential Care
Cambridgeshire County Council,02-Mar-22,51301735858,"-1,605.00",VOYAGE,CARE ESTABLISHMENT,LD - South Locality - Cost of Care,LD - South Cambs - Special Needs,Residential Care
Cambridgeshire County Council,02-Mar-22,51301735858,"-1,605.00",VOYAGE,CARE ESTABLISHMENT,LD - South Locality - Cost of Care,LD - South Cambs - Special Needs,Residential Care
Cambridgeshire County Council,02-Mar-22,51301735870,"-1,583.77",VOYAGE,CARE ESTABLISHMENT,LD - South Locality - Cost of Care,LD - South Cambs - Care,Domiciliary Care
Cambridgeshire County Council,02-Mar-22,51301735870,"-1,583.77",VOYAGE,CARE ESTABLISHMENT,LD - South Locality - Cost of Care,LD - South Cambs - Care,Domiciliary Care
Cambridgeshire County Council,02-Mar-22,51301735870,"-1,583.77",VOYAGE,CARE ESTABLISHMENT,LD - South Locality - Cost of Care,LD - South Cambs - Care,Domiciliary Care
Cambridgeshire County Council,02-Mar-22,51301735870,"-1,583.77",VOYAGE,CARE ESTABLISHMENT,LD - South Locality - Cost of Care,LD - South Cambs - Care,Domiciliary Care
Cambridgeshire County Council,02-Mar-22,51301735870,"-1,583.77",VOYAGE,CARE ESTABLISHMENT,LD - South Locality - Cost of Care,LD - South Cambs - Care,Domiciliary Care
Cambridgeshire County Council,02-Mar-22,51301735870,"-1,583.77",VOYAGE,CARE ESTABLISHMENT,LD - South Locality - Cost of Care,LD - South Cambs - Care,Domiciliary Care
Cambridgeshire County Council,02-Mar-22,51301735870,"-1,583.77",VOYAGE,CARE ESTABLISHMENT,LD - South Locality - Cost of Care,LD - South Cambs - Care,Domiciliary Care
Cambridgeshire County Council,02-Mar-22,51301735870,"-1,583.77",VOYAGE,CARE ESTABLISHMENT,LD - South Locality - Cost of Care,LD - South Cambs - Care,Domiciliary Care
Cambridgeshire County Council,02-Mar-22,51301735870,"-1,583.77",VOYAGE,CARE ESTABLISHMENT,LD - South Locality - Cost of Care,LD - South Cambs - Care,Domiciliary Care
Cambridgeshire County Council,02-Mar-22,51301735870,"-1,583.77",VOYAGE,CARE ESTABLISHMENT,LD - South Locality - Cost of Care,LD - South Cambs - Care,Domiciliary Care
Cambridgeshire County Council,02-Mar-22,51301735870,"-1,583.77",VOYAGE,CARE ESTABLISHMENT,LD - South Locality - Cost of Care,LD - South Cambs - Care,Domiciliary Care
Cambridgeshire County Council,02-Mar-22,51301735870,"-1,583.77",VOYAGE,CARE ESTABLISHMENT,LD - South Locality - Cost of Care,LD - South Cambs - Care,Domiciliary Care
Cambridgeshire County Council,02-Mar-22,51301735870,"-1,583.77",VOYAGE,CARE ESTABLISHMENT,LD - South Locality - Cost of Care,LD - South Cambs - Care,Domiciliary Care
Cambridgeshire County Council,02-Mar-22,51301735870,"-1,583.77",VOYAGE,CARE ESTABLISHMENT,LD - South Locality - Cost of Care,LD - South Cambs - Care,Domiciliary Care
Cambridgeshire County Council,02-Mar-22,51301735870,"-1,583.77",VOYAGE,CARE ESTABLISHMENT,LD - South Locality - Cost of Care,LD - South Cambs - Care,Domiciliary Care
Cambridgeshire County Council,02-Mar-22,51301735870,"-1,583.77",VOYAGE,CARE ESTABLISHMENT,LD - South Locality - Cost of Care,LD - South Cambs - Care,Domiciliary Care
Cambridgeshire County Council,02-Mar-22,51301735870,"-1,583.77",VOYAGE,CARE ESTABLISHMENT,LD - South Locality - Cost of Care,LD - South Cambs - Care,Domiciliary Care
Cambridgeshire County Council,02-Mar-22,51301735870,"-1,583.77",VOYAGE,CARE ESTABLISHMENT,LD - South Locality - Cost of Care,LD - South Cambs - Care,Domiciliary Care
Cambridgeshire County Council,02-Mar-22,51301735870,"-1,583.77",VOYAGE,CARE ESTABLISHMENT,LD - South Locality - Cost of Care,LD - South Cambs - Care,Domiciliary Care
Cambridgeshire County Council,02-Mar-22,51301735870,"-1,583.77",VOYAGE,CARE ESTABLISHMENT,LD - South Locality - Cost of Care,LD - South Cambs - Care,Domiciliary Care
Cambridgeshire County Council,02-Mar-22,51301735870,"-1,583.77",VOYAGE,CARE ESTABLISHMENT,LD - South Locality - Cost of Care,LD - South Cambs - Care,Domiciliary Care
Cambridgeshire County Council,02-Mar-22,51301735870,"-1,583.77",VOYAGE,CARE ESTABLISHMENT,LD - South Locality - Cost of Care,LD - South Cambs - Care,Domiciliary Care
Cambridgeshire County Council,02-Mar-22,51301735870,"-1,583.77",VOYAGE,CARE ESTABLISHMENT,LD - South Locality - Cost of Care,LD - South Cambs - Care,Domiciliary Care
Cambridgeshire County Council,02-Mar-22,51301735870,"-1,583.77",VOYAGE,CARE ESTABLISHMENT,LD - South Locality - Cost of Care,LD - South Cambs - Care,Domiciliary Care
Cambridgeshire County Council,02-Mar-22,51301735870,"-1,583.77",VOYAGE,CARE ESTABLISHMENT,LD - South Locality - Cost of Care,LD - South Cambs - Care,Domiciliary Care
Cambridgeshire County Council,02-Mar-22,51301735870,"-1,583.77",VOYAGE,CARE ESTABLISHMENT,LD - South Locality - Cost of Care,LD - South Cambs - Care,Domiciliary Care
Cambridgeshire County Council,02-Mar-22,51301735870,"-1,583.77",VOYAGE,CARE ESTABLISHMENT,LD - South Locality - Cost of Care,LD - South Cambs - Care,Domiciliary Care
Cambridgeshire County Council,02-Mar-22,51301735870,"-1,583.77",VOYAGE,CARE ESTABLISHMENT,LD - South Locality - Cost of Care,LD - South Cambs - Care,Domiciliary Care
Cambridgeshire County Council,02-Mar-22,51301735870,"-1,583.77",VOYAGE,CARE ESTABLISHMENT,LD - South Locality - Cost of Care,LD - South Cambs - Care,Domiciliary Care
Cambridgeshire County Council,02-Mar-22,51301735870,"-1,583.77",VOYAGE,CARE ESTABLISHMENT,LD - South Locality - Cost of Care,LD - South Cambs - Care,Domiciliary Care
Cambridgeshire County Council,02-Mar-22,51301735870,"-1,583.77",VOYAGE,CARE ESTABLISHMENT,LD - South Locality - Cost of Care,LD - South Cambs - Care,Domiciliary Care
Cambridgeshire County Council,02-Mar-22,51301735870,"-1,583.77",VOYAGE,CARE ESTABLISHMENT,LD - South Locality - Cost of Care,LD - South Cambs - Care,Domiciliary Care
Cambridgeshire County Council,02-Mar-22,51301735870,"-1,583.77",VOYAGE,CARE ESTABLISHMENT,LD - South Locality - Cost of Care,LD - South Cambs - Care,Domiciliary Care
Cambridgeshire County Council,02-Mar-22,51301735870,"-1,583.77",VOYAGE,CARE ESTABLISHMENT,LD - South Locality - Cost of Care,LD - South Cambs - Care,Domiciliary Care
Cambridgeshire County Council,02-Mar-22,51301735870,"-1,583.77",VOYAGE,CARE ESTABLISHMENT,LD - South Locality - Cost of Care,LD - South Cambs - Care,Domiciliary Care
Cambridgeshire County Council,02-Mar-22,51301735870,"-1,583.77",VOYAGE,CARE ESTABLISHMENT,LD - South Locality - Cost of Care,LD - South Cambs - Care,Domiciliary Care
Cambridgeshire County Council,02-Mar-22,51301735870,"-1,583.77",VOYAGE,CARE ESTABLISHMENT,LD - South Locality - Cost of Care,LD - South Cambs - Care,Domiciliary Care
Cambridgeshire County Council,02-Mar-22,51301735870,"-1,583.77",VOYAGE,CARE ESTABLISHMENT,LD - South Locality - Cost of Care,LD - South Cambs - Care,Domiciliary Care
Cambridgeshire County Council,02-Mar-22,51301735870,"-1,583.77",VOYAGE,CARE ESTABLISHMENT,LD - South Locality - Cost of Care,LD - South Cambs - Care,Domiciliary Care
Cambridgeshire County Council,02-Mar-22,51301735870,"-1,583.77",VOYAGE,CARE ESTABLISHMENT,LD - South Locality - Cost of Care,LD - South Cambs - Care,Domiciliary Care
Cambridgeshire County Council,02-Mar-22,51301735870,"-1,583.77",VOYAGE,CARE ESTABLISHMENT,LD - South Locality - Cost of Care,LD - South Cambs - Care,Domiciliary Care
Cambridgeshire County Council,02-Mar-22,51301735870,"-1,583.77",VOYAGE,CARE ESTABLISHMENT,LD - South Locality - Cost of Care,LD - South Cambs - Care,Domiciliary Care
Cambridgeshire County Council,02-Mar-22,51301735870,"-1,583.77",VOYAGE,CARE ESTABLISHMENT,LD - South Locality - Cost of Care,LD - South Cambs - Care,Domiciliary Care
Cambridgeshire County Council,02-Mar-22,51301735870,"-1,583.77",VOYAGE,CARE ESTABLISHMENT,LD - South Locality - Cost of Care,LD - South Cambs - Care,Domiciliary Care
Cambridgeshire County Council,02-Mar-22,51301735870,"-1,583.77",VOYAGE,CARE ESTABLISHMENT,LD - South Locality - Cost of Care,LD - South Cambs - Care,Domiciliary Care
Cambridgeshire County Council,02-Mar-22,51301735870,"-1,583.77",VOYAGE,CARE ESTABLISHMENT,LD - South Locality - Cost of Care,LD - South Cambs - Care,Domiciliary Care
Cambridgeshire County Council,02-Mar-22,51301735870,"-1,583.77",VOYAGE,CARE ESTABLISHMENT,LD - South Locality - Cost of Care,LD - South Cambs - Care,Domiciliary Care
Cambridgeshire County Council,02-Mar-22,51301735826,"-1,579.90",TURNING POINT SERVICES LTD,CARE ESTABLISHMENT,LD - Fenland Locality - Cost of Care,LD - Fenland  - Care,Homecare
Cambridgeshire County Council,02-Mar-22,51301735826,"-1,579.90",TURNING POINT SERVICES LTD,CARE ESTABLISHMENT,LD - Fenland Locality - Cost of Care,LD - Fenland  - Care,Homecare
Cambridgeshire County Council,02-Mar-22,51301735826,"-1,579.90",TURNING POINT SERVICES LTD,CARE ESTABLISHMENT,LD - Fenland Locality - Cost of Care,LD - Fenland  - Care,Homecare
Cambridgeshire County Council,02-Mar-22,51301735826,"-1,579.90",TURNING POINT SERVICES LTD,CARE ESTABLISHMENT,LD - Fenland Locality - Cost of Care,LD - Fenland  - Care,Homecare
Cambridgeshire County Council,02-Mar-22,51301735826,"-1,579.90",TURNING POINT SERVICES LTD,CARE ESTABLISHMENT,LD - Fenland Locality - Cost of Care,LD - Fenland  - Care,Homecare
Cambridgeshire County Council,02-Mar-22,51301735826,"-1,579.90",TURNING POINT SERVICES LTD,CARE ESTABLISHMENT,LD - Fenland Locality - Cost of Care,LD - Fenland  - Care,Homecare
Cambridgeshire County Council,02-Mar-22,51301735826,"-1,579.90",TURNING POINT SERVICES LTD,CARE ESTABLISHMENT,LD - Fenland Locality - Cost of Care,LD - Fenland  - Care,Homecare
Cambridgeshire County Council,02-Mar-22,51301735826,"-1,579.90",TURNING POINT SERVICES LTD,CARE ESTABLISHMENT,LD - Fenland Locality - Cost of Care,LD - Fenland  - Care,Homecare
Cambridgeshire County Council,02-Mar-22,51301735826,"-1,579.90",TURNING POINT SERVICES LTD,CARE ESTABLISHMENT,LD - Fenland Locality - Cost of Care,LD - Fenland  - Care,Homecare
Cambridgeshire County Council,02-Mar-22,51301735826,"-1,579.90",TURNING POINT SERVICES LTD,CARE ESTABLISHMENT,LD - Fenland Locality - Cost of Care,LD - Fenland  - Care,Homecare
Cambridgeshire County Council,02-Mar-22,51301735826,"-1,579.90",TURNING POINT SERVICES LTD,CARE ESTABLISHMENT,LD - Fenland Locality - Cost of Care,LD - Fenland  - Care,Homecare
Cambridgeshire County Council,02-Mar-22,51301735826,"-1,579.90",TURNING POINT SERVICES LTD,CARE ESTABLISHMENT,LD - Fenland Locality - Cost of Care,LD - Fenland  - Care,Homecare
Cambridgeshire County Council,02-Mar-22,51301735826,"-1,579.90",TURNING POINT SERVICES LTD,CARE ESTABLISHMENT,LD - Fenland Locality - Cost of Care,LD - Fenland  - Care,Homecare
Cambridgeshire County Council,02-Mar-22,51301735826,"-1,579.90",TURNING POINT SERVICES LTD,CARE ESTABLISHMENT,LD - Fenland Locality - Cost of Care,LD - Fenland  - Care,Homecare
Cambridgeshire County Council,02-Mar-22,51301735826,"-1,579.90",TURNING POINT SERVICES LTD,CARE ESTABLISHMENT,LD - Fenland Locality - Cost of Care,LD - Fenland  - Care,Homecare
Cambridgeshire County Council,02-Mar-22,51301735826,"-1,579.90",TURNING POINT SERVICES LTD,CARE ESTABLISHMENT,LD - Fenland Locality - Cost of Care,LD - Fenland  - Care,Homecare
Cambridgeshire County Council,02-Mar-22,51301735826,"-1,579.90",TURNING POINT SERVICES LTD,CARE ESTABLISHMENT,LD - Fenland Locality - Cost of Care,LD - Fenland  - Care,Homecare
Cambridgeshire County Council,02-Mar-22,51301735826,"-1,579.90",TURNING POINT SERVICES LTD,CARE ESTABLISHMENT,LD - Fenland Locality - Cost of Care,LD - Fenland  - Care,Homecare
Cambridgeshire County Council,02-Mar-22,51301735826,"-1,579.90",TURNING POINT SERVICES LTD,CARE ESTABLISHMENT,LD - Fenland Locality - Cost of Care,LD - Fenland  - Care,Homecare
Cambridgeshire County Council,02-Mar-22,51301735826,"-1,579.90",TURNING POINT SERVICES LTD,CARE ESTABLISHMENT,LD - Fenland Locality - Cost of Care,LD - Fenland  - Care,Homecare
Cambridgeshire County Council,02-Mar-22,51301735826,"-1,579.90",TURNING POINT SERVICES LTD,CARE ESTABLISHMENT,LD - Fenland Locality - Cost of Care,LD - Fenland  - Care,Homecare
Cambridgeshire County Council,02-Mar-22,51301735826,"-1,579.90",TURNING POINT SERVICES LTD,CARE ESTABLISHMENT,LD - Fenland Locality - Cost of Care,LD - Fenland  - Care,Homecare
Cambridgeshire County Council,02-Mar-22,51301735826,"-1,579.90",TURNING POINT SERVICES LTD,CARE ESTABLISHMENT,LD - Fenland Locality - Cost of Care,LD - Fenland  - Care,Homecare
Cambridgeshire County Council,02-Mar-22,51301735826,"-1,579.90",TURNING POINT SERVICES LTD,CARE ESTABLISHMENT,LD - Fenland Locality - Cost of Care,LD - Fenland  - Care,Homecare
Cambridgeshire County Council,02-Mar-22,51301735826,"-1,579.90",TURNING POINT SERVICES LTD,CARE ESTABLISHMENT,LD - Fenland Locality - Cost of Care,LD - Fenland  - Care,Homecare
Cambridgeshire County Council,02-Mar-22,51301735826,"-1,579.90",TURNING POINT SERVICES LTD,CARE ESTABLISHMENT,LD - Fenland Locality - Cost of Care,LD - Fenland  - Care,Homecare
Cambridgeshire County Council,02-Mar-22,51301735826,"-1,579.90",TURNING POINT SERVICES LTD,CARE ESTABLISHMENT,LD - Fenland Locality - Cost of Care,LD - Fenland  - Care,Homecare
Cambridgeshire County Council,02-Mar-22,51301735826,"-1,579.90",TURNING POINT SERVICES LTD,CARE ESTABLISHMENT,LD - Fenland Locality - Cost of Care,LD - Fenland  - Care,Homecare
Cambridgeshire County Council,02-Mar-22,51301735855,"-1,575.10",VOYAGE,CARE ESTABLISHMENT,LD - South Locality - Cost of Care,LD - South Cambs - Care,Residential Care
Cambridgeshire County Council,02-Mar-22,51301735855,"-1,575.10",VOYAGE,CARE ESTABLISHMENT,LD - South Locality - Cost of Care,LD - South Cambs - Care,Residential Care
Cambridgeshire County Council,02-Mar-22,51301735855,"-1,575.10",VOYAGE,CARE ESTABLISHMENT,LD - South Locality - Cost of Care,LD - South Cambs - Care,Residential Care
Cambridgeshire County Council,02-Mar-22,51301735855,"-1,575.10",VOYAGE,CARE ESTABLISHMENT,LD - South Locality - Cost of Care,LD - South Cambs - Care,Residential Care
Cambridgeshire County Council,02-Mar-22,51301735855,"-1,575.10",VOYAGE,CARE ESTABLISHMENT,LD - South Locality - Cost of Care,LD - South Cambs - Care,Residential Care
Cambridgeshire County Council,02-Mar-22,51301735855,"-1,575.10",VOYAGE,CARE ESTABLISHMENT,LD - South Locality - Cost of Care,LD - South Cambs - Care,Residential Care
Cambridgeshire County Council,02-Mar-22,51301735855,"-1,575.10",VOYAGE,CARE ESTABLISHMENT,LD - South Locality - Cost of Care,LD - South Cambs - Care,Residential Care
Cambridgeshire County Council,02-Mar-22,51301735855,"-1,575.10",VOYAGE,CARE ESTABLISHMENT,LD - South Locality - Cost of Care,LD - South Cambs - Care,Residential Care
Cambridgeshire County Council,02-Mar-22,51301735855,"-1,575.10",VOYAGE,CARE ESTABLISHMENT,LD - South Locality - Cost of Care,LD - South Cambs - Care,Residential Care
Cambridgeshire County Council,02-Mar-22,51301735855,"-1,575.10",VOYAGE,CARE ESTABLISHMENT,LD - South Locality - Cost of Care,LD - South Cambs - Care,Residential Care
Cambridgeshire County Council,02-Mar-22,51301735855,"-1,575.10",VOYAGE,CARE ESTABLISHMENT,LD - South Locality - Cost of Care,LD - South Cambs - Care,Residential Care
Cambridgeshire County Council,02-Mar-22,51301735855,"-1,575.10",VOYAGE,CARE ESTABLISHMENT,LD - South Locality - Cost of Care,LD - South Cambs - Care,Residential Care
Cambridgeshire County Council,02-Mar-22,51301735855,"-1,575.10",VOYAGE,CARE ESTABLISHMENT,LD - South Locality - Cost of Care,LD - South Cambs - Care,Residential Care
Cambridgeshire County Council,02-Mar-22,51301735855,"-1,575.10",VOYAGE,CARE ESTABLISHMENT,LD - South Locality - Cost of Care,LD - South Cambs - Care,Residential Care
Cambridgeshire County Council,02-Mar-22,51301735855,"-1,575.10",VOYAGE,CARE ESTABLISHMENT,LD - South Locality - Cost of Care,LD - South Cambs - Care,Residential Care
Cambridgeshire County Council,02-Mar-22,51301735855,"-1,575.10",VOYAGE,CARE ESTABLISHMENT,LD - South Locality - Cost of Care,LD - South Cambs - Care,Residential Care
Cambridgeshire County Council,02-Mar-22,51301735855,"-1,575.10",VOYAGE,CARE ESTABLISHMENT,LD - South Locality - Cost of Care,LD - South Cambs - Care,Residential Care
Cambridgeshire County Council,02-Mar-22,51301735855,"-1,575.10",VOYAGE,CARE ESTABLISHMENT,LD - South Locality - Cost of Care,LD - South Cambs - Care,Residential Care
Cambridgeshire County Council,02-Mar-22,51301735855,"-1,575.10",VOYAGE,CARE ESTABLISHMENT,LD - South Locality - Cost of Care,LD - South Cambs - Care,Residential Care
Cambridgeshire County Council,02-Mar-22,51301735855,"-1,575.10",VOYAGE,CARE ESTABLISHMENT,LD - South Locality - Cost of Care,LD - South Cambs - Care,Residential Care
Cambridgeshire County Council,02-Mar-22,51301735855,"-1,575.10",VOYAGE,CARE ESTABLISHMENT,LD - South Locality - Cost of Care,LD - South Cambs - Care,Residential Care
Cambridgeshire County Council,02-Mar-22,51301735855,"-1,575.10",VOYAGE,CARE ESTABLISHMENT,LD - South Locality - Cost of Care,LD - South Cambs - Care,Residential Care
Cambridgeshire County Council,02-Mar-22,51301735855,"-1,575.10",VOYAGE,CARE ESTABLISHMENT,LD - South Locality - Cost of Care,LD - South Cambs - Care,Residential Care
Cambridgeshire County Council,02-Mar-22,51301735855,"-1,575.10",VOYAGE,CARE ESTABLISHMENT,LD - South Locality - Cost of Care,LD - South Cambs - Care,Residential Care
Cambridgeshire County Council,02-Mar-22,51301735855,"-1,575.10",VOYAGE,CARE ESTABLISHMENT,LD - South Locality - Cost of Care,LD - South Cambs - Care,Residential Care
Cambridgeshire County Council,02-Mar-22,51301735855,"-1,575.10",VOYAGE,CARE ESTABLISHMENT,LD - South Locality - Cost of Care,LD - South Cambs - Care,Residential Care
Cambridgeshire County Council,02-Mar-22,51301735855,"-1,575.10",VOYAGE,CARE ESTABLISHMENT,LD - South Locality - Cost of Care,LD - South Cambs - Care,Residential Care
Cambridgeshire County Council,02-Mar-22,51301735855,"-1,575.10",VOYAGE,CARE ESTABLISHMENT,LD - South Locality - Cost of Care,LD - South Cambs - Care,Residential Care
Cambridgeshire County Council,02-Mar-22,51301735855,"-1,575.10",VOYAGE,CARE ESTABLISHMENT,LD - South Locality - Cost of Care,LD - South Cambs - Care,Residential Care
Cambridgeshire County Council,02-Mar-22,51301735855,"-1,575.10",VOYAGE,CARE ESTABLISHMENT,LD - South Locality - Cost of Care,LD - South Cambs - Care,Residential Care
Cambridgeshire County Council,02-Mar-22,51301735855,"-1,575.10",VOYAGE,CARE ESTABLISHMENT,LD - South Locality - Cost of Care,LD - South Cambs - Care,Residential Care
Cambridgeshire County Council,02-Mar-22,51301735855,"-1,575.10",VOYAGE,CARE ESTABLISHMENT,LD - South Locality - Cost of Care,LD - South Cambs - Care,Residential Care
Cambridgeshire County Council,02-Mar-22,51301735855,"-1,575.10",VOYAGE,CARE ESTABLISHMENT,LD - South Locality - Cost of Care,LD - South Cambs - Care,Residential Care
Cambridgeshire County Council,02-Mar-22,51301735855,"-1,575.10",VOYAGE,CARE ESTABLISHMENT,LD - South Locality - Cost of Care,LD - South Cambs - Care,Residential Care
Cambridgeshire County Council,02-Mar-22,51301735855,"-1,575.10",VOYAGE,CARE ESTABLISHMENT,LD - South Locality - Cost of Care,LD - South Cambs - Care,Residential Care
Cambridgeshire County Council,02-Mar-22,51301735855,"-1,575.10",VOYAGE,CARE ESTABLISHMENT,LD - South Locality - Cost of Care,LD - South Cambs - Care,Residential Care
Cambridgeshire County Council,02-Mar-22,51301735855,"-1,575.10",VOYAGE,CARE ESTABLISHMENT,LD - South Locality - Cost of Care,LD - South Cambs - Care,Residential Care
Cambridgeshire County Council,02-Mar-22,51301735855,"-1,575.10",VOYAGE,CARE ESTABLISHMENT,LD - South Locality - Cost of Care,LD - South Cambs - Care,Residential Care
Cambridgeshire County Council,02-Mar-22,51301735855,"-1,575.10",VOYAGE,CARE ESTABLISHMENT,LD - South Locality - Cost of Care,LD - South Cambs - Care,Residential Care
Cambridgeshire County Council,02-Mar-22,51301735855,"-1,575.10",VOYAGE,CARE ESTABLISHMENT,LD - South Locality - Cost of Care,LD - South Cambs - Care,Residential Care
Cambridgeshire County Council,02-Mar-22,51301735855,"-1,575.10",VOYAGE,CARE ESTABLISHMENT,LD - South Locality - Cost of Care,LD - South Cambs - Care,Residential Care
Cambridgeshire County Council,02-Mar-22,51301735855,"-1,575.10",VOYAGE,CARE ESTABLISHMENT,LD - South Locality - Cost of Care,LD - South Cambs - Care,Residential Care
Cambridgeshire County Council,02-Mar-22,51301735855,"-1,575.10",VOYAGE,CARE ESTABLISHMENT,LD - South Locality - Cost of Care,LD - South Cambs - Care,Residential Care
Cambridgeshire County Council,02-Mar-22,51301735855,"-1,575.10",VOYAGE,CARE ESTABLISHMENT,LD - South Locality - Cost of Care,LD - South Cambs - Care,Residential Care
Cambridgeshire County Council,02-Mar-22,51301735855,"-1,575.10",VOYAGE,CARE ESTABLISHMENT,LD - South Locality - Cost of Care,LD - South Cambs - Care,Residential Care
Cambridgeshire County Council,02-Mar-22,51301735855,"-1,575.10",VOYAGE,CARE ESTABLISHMENT,LD - South Locality - Cost of Care,LD - South Cambs - Care,Residential Care
Cambridgeshire County Council,02-Mar-22,51301735855,"-1,575.10",VOYAGE,CARE ESTABLISHMENT,LD - South Locality - Cost of Care,LD - South Cambs - Care,Residential Care
Cambridgeshire County Council,02-Mar-22,51301735855,"-1,575.10",VOYAGE,CARE ESTABLISHMENT,LD - South Locality - Cost of Care,LD - South Cambs - Care,Residential Care
Cambridgeshire County Council,02-Mar-22,51301735855,"-1,575.10",VOYAGE,CARE ESTABLISHMENT,LD - South Locality - Cost of Care,LD - South Cambs - Care,Residential Care
Cambridgeshire County Council,02-Mar-22,51301735855,"-1,575.10",VOYAGE,CARE ESTABLISHMENT,LD - South Locality - Cost of Care,LD - South Cambs - Care,Residential Care
Cambridgeshire County Council,02-Mar-22,51301735855,"-1,575.10",VOYAGE,CARE ESTABLISHMENT,LD - South Locality - Cost of Care,LD - South Cambs - Care,Residential Care
Cambridgeshire County Council,02-Mar-22,51301735812,"-1,547.55",AUGUSTA CARE LTD,CARE ESTABLISHMENT,LD - Fenland Locality - Cost of Care,LD - Fenland  - Care,Homecare
Cambridgeshire County Council,02-Mar-22,51301735812,"-1,547.55",AUGUSTA CARE LTD,CARE ESTABLISHMENT,LD - Fenland Locality - Cost of Care,LD - Fenland  - Care,Homecare
Cambridgeshire County Council,02-Mar-22,51301735812,"-1,547.55",AUGUSTA CARE LTD,CARE ESTABLISHMENT,LD - Fenland Locality - Cost of Care,LD - Fenland  - Care,Homecare
Cambridgeshire County Council,02-Mar-22,51301735812,"-1,547.55",AUGUSTA CARE LTD,CARE ESTABLISHMENT,LD - Fenland Locality - Cost of Care,LD - Fenland  - Care,Homecare
Cambridgeshire County Council,02-Mar-22,51301735812,"-1,547.55",AUGUSTA CARE LTD,CARE ESTABLISHMENT,LD - Fenland Locality - Cost of Care,LD - Fenland  - Care,Homecare
Cambridgeshire County Council,02-Mar-22,51301735812,"-1,547.55",AUGUSTA CARE LTD,CARE ESTABLISHMENT,LD - Fenland Locality - Cost of Care,LD - Fenland  - Care,Homecare
Cambridgeshire County Council,02-Mar-22,51301735812,"-1,547.55",AUGUSTA CARE LTD,CARE ESTABLISHMENT,LD - Fenland Locality - Cost of Care,LD - Fenland  - Care,Homecare
Cambridgeshire County Council,02-Mar-22,51301735812,"-1,547.55",AUGUSTA CARE LTD,CARE ESTABLISHMENT,LD - Fenland Locality - Cost of Care,LD - Fenland  - Care,Homecare
Cambridgeshire County Council,02-Mar-22,51301735812,"-1,547.55",AUGUSTA CARE LTD,CARE ESTABLISHMENT,LD - Fenland Locality - Cost of Care,LD - Fenland  - Care,Homecare
Cambridgeshire County Council,02-Mar-22,51301735812,"-1,547.55",AUGUSTA CARE LTD,CARE ESTABLISHMENT,LD - Fenland Locality - Cost of Care,LD - Fenland  - Care,Homecare
Cambridgeshire County Council,02-Mar-22,51301735812,"-1,547.55",AUGUSTA CARE LTD,CARE ESTABLISHMENT,LD - Fenland Locality - Cost of Care,LD - Fenland  - Care,Homecare
Cambridgeshire County Council,02-Mar-22,51301735812,"-1,547.55",AUGUSTA CARE LTD,CARE ESTABLISHMENT,LD - Fenland Locality - Cost of Care,LD - Fenland  - Care,Homecare
Cambridgeshire County Council,02-Mar-22,51301735812,"-1,547.55",AUGUSTA CARE LTD,CARE ESTABLISHMENT,LD - Fenland Locality - Cost of Care,LD - Fenland  - Care,Homecare
Cambridgeshire County Council,02-Mar-22,51301735812,"-1,547.55",AUGUSTA CARE LTD,CARE ESTABLISHMENT,LD - Fenland Locality - Cost of Care,LD - Fenland  - Care,Homecare
Cambridgeshire County Council,02-Mar-22,51301735812,"-1,547.55",AUGUSTA CARE LTD,CARE ESTABLISHMENT,LD - Fenland Locality - Cost of Care,LD - Fenland  - Care,Homecare
Cambridgeshire County Council,02-Mar-22,51301735812,"-1,547.55",AUGUSTA CARE LTD,CARE ESTABLISHMENT,LD - Fenland Locality - Cost of Care,LD - Fenland  - Care,Homecare
Cambridgeshire County Council,02-Mar-22,51301735812,"-1,547.55",AUGUSTA CARE LTD,CARE ESTABLISHMENT,LD - Fenland Locality - Cost of Care,LD - Fenland  - Care,Homecare
Cambridgeshire County Council,02-Mar-22,51301735812,"-1,547.55",AUGUSTA CARE LTD,CARE ESTABLISHMENT,LD - Fenland Locality - Cost of Care,LD - Fenland  - Care,Homecare
Cambridgeshire County Council,02-Mar-22,51301735812,"-1,547.55",AUGUSTA CARE LTD,CARE ESTABLISHMENT,LD - Fenland Locality - Cost of Care,LD - Fenland  - Care,Homecare
Cambridgeshire County Council,02-Mar-22,51301735812,"-1,547.55",AUGUSTA CARE LTD,CARE ESTABLISHMENT,LD - Fenland Locality - Cost of Care,LD - Fenland  - Care,Homecare
Cambridgeshire County Council,02-Mar-22,51301735812,"-1,547.55",AUGUSTA CARE LTD,CARE ESTABLISHMENT,LD - Fenland Locality - Cost of Care,LD - Fenland  - Care,Homecare
Cambridgeshire County Council,02-Mar-22,51301735812,"-1,547.55",AUGUSTA CARE LTD,CARE ESTABLISHMENT,LD - Fenland Locality - Cost of Care,LD - Fenland  - Care,Homecare
Cambridgeshire County Council,02-Mar-22,51301735812,"-1,547.55",AUGUSTA CARE LTD,CARE ESTABLISHMENT,LD - Fenland Locality - Cost of Care,LD - Fenland  - Care,Homecare
Cambridgeshire County Council,02-Mar-22,51301735812,"-1,547.55",AUGUSTA CARE LTD,CARE ESTABLISHMENT,LD - Fenland Locality - Cost of Care,LD - Fenland  - Care,Homecare
Cambridgeshire County Council,02-Mar-22,51301735812,"-1,547.55",AUGUSTA CARE LTD,CARE ESTABLISHMENT,LD - Fenland Locality - Cost of Care,LD - Fenland  - Care,Homecare
Cambridgeshire County Council,02-Mar-22,51301735812,"-1,547.55",AUGUSTA CARE LTD,CARE ESTABLISHMENT,LD - Fenland Locality - Cost of Care,LD - Fenland  - Care,Homecare
Cambridgeshire County Council,02-Mar-22,51301735812,"-1,547.55",AUGUSTA CARE LTD,CARE ESTABLISHMENT,LD - Fenland Locality - Cost of Care,LD - Fenland  - Care,Homecare
Cambridgeshire County Council,02-Mar-22,51301735812,"-1,547.55",AUGUSTA CARE LTD,CARE ESTABLISHMENT,LD - Fenland Locality - Cost of Care,LD - Fenland  - Care,Homecare
Cambridgeshire County Council,02-Mar-22,51301735812,"-1,547.55",AUGUSTA CARE LTD,CARE ESTABLISHMENT,LD - Fenland Locality - Cost of Care,LD - Fenland  - Care,Homecare
Cambridgeshire County Council,02-Mar-22,51301735812,"-1,547.55",AUGUSTA CARE LTD,CARE ESTABLISHMENT,LD - Fenland Locality - Cost of Care,LD - Fenland  - Care,Homecare
Cambridgeshire County Council,02-Mar-22,51301735812,"-1,547.55",AUGUSTA CARE LTD,CARE ESTABLISHMENT,LD - Fenland Locality - Cost of Care,LD - Fenland  - Care,Homecare
Cambridgeshire County Council,02-Mar-22,51301735812,"-1,547.55",AUGUSTA CARE LTD,CARE ESTABLISHMENT,LD - Fenland Locality - Cost of Care,LD - Fenland  - Care,Homecare
Cambridgeshire County Council,02-Mar-22,51301735812,"-1,547.55",AUGUSTA CARE LTD,CARE ESTABLISHMENT,LD - Fenland Locality - Cost of Care,LD - Fenland  - Care,Homecare
Cambridgeshire County Council,02-Mar-22,51301735812,"-1,547.55",AUGUSTA CARE LTD,CARE ESTABLISHMENT,LD - Fenland Locality - Cost of Care,LD - Fenland  - Care,Homecare
Cambridgeshire County Council,02-Mar-22,51301735812,"-1,547.55",AUGUSTA CARE LTD,CARE ESTABLISHMENT,LD - Fenland Locality - Cost of Care,LD - Fenland  - Care,Homecare
Cambridgeshire County Council,02-Mar-22,51301735812,"-1,547.55",AUGUSTA CARE LTD,CARE ESTABLISHMENT,LD - Fenland Locality - Cost of Care,LD - Fenland  - Care,Homecare
Cambridgeshire County Council,02-Mar-22,51301735812,"-1,547.55",AUGUSTA CARE LTD,CARE ESTABLISHMENT,LD - Fenland Locality - Cost of Care,LD - Fenland  - Care,Homecare
Cambridgeshire County Council,02-Mar-22,51301735812,"-1,547.55",AUGUSTA CARE LTD,CARE ESTABLISHMENT,LD - Fenland Locality - Cost of Care,LD - Fenland  - Care,Homecare
Cambridgeshire County Council,02-Mar-22,51301735812,"-1,547.55",AUGUSTA CARE LTD,CARE ESTABLISHMENT,LD - Fenland Locality - Cost of Care,LD - Fenland  - Care,Homecare
Cambridgeshire County Council,02-Mar-22,51301735812,"-1,547.55",AUGUSTA CARE LTD,CARE ESTABLISHMENT,LD - Fenland Locality - Cost of Care,LD - Fenland  - Care,Homecare
Cambridgeshire County Council,02-Mar-22,51301735812,"-1,547.55",AUGUSTA CARE LTD,CARE ESTABLISHMENT,LD - Fenland Locality - Cost of Care,LD - Fenland  - Care,Homecare
Cambridgeshire County Council,02-Mar-22,51301735812,"-1,547.55",AUGUSTA CARE LTD,CARE ESTABLISHMENT,LD - Fenland Locality - Cost of Care,LD - Fenland  - Care,Homecare
Cambridgeshire County Council,02-Mar-22,51301735812,"-1,547.55",AUGUSTA CARE LTD,CARE ESTABLISHMENT,LD - Fenland Locality - Cost of Care,LD - Fenland  - Care,Homecare
Cambridgeshire County Council,02-Mar-22,51301735812,"-1,547.55",AUGUSTA CARE LTD,CARE ESTABLISHMENT,LD - Fenland Locality - Cost of Care,LD - Fenland  - Care,Homecare
Cambridgeshire County Council,02-Mar-22,51301735812,"-1,547.55",AUGUSTA CARE LTD,CARE ESTABLISHMENT,LD - Fenland Locality - Cost of Care,LD - Fenland  - Care,Homecare
Cambridgeshire County Council,02-Mar-22,51301735812,"-1,547.55",AUGUSTA CARE LTD,CARE ESTABLISHMENT,LD - Fenland Locality - Cost of Care,LD - Fenland  - Care,Homecare
Cambridgeshire County Council,02-Mar-22,51301735812,"-1,547.55",AUGUSTA CARE LTD,CARE ESTABLISHMENT,LD - Fenland Locality - Cost of Care,LD - Fenland  - Care,Homecare
Cambridgeshire County Council,02-Mar-22,51301735797,"-1,475.19",AFFINITY TRUST,CARE ESTABLISHMENT,LD - Fenland Locality - Cost of Care,LD - Fenland  - Care,Homecare
Cambridgeshire County Council,02-Mar-22,51301735797,"-1,475.19",AFFINITY TRUST,CARE ESTABLISHMENT,LD - Fenland Locality - Cost of Care,LD - Fenland  - Care,Homecare
Cambridgeshire County Council,02-Mar-22,51301735797,"-1,475.19",AFFINITY TRUST,CARE ESTABLISHMENT,LD - Fenland Locality - Cost of Care,LD - Fenland  - Care,Homecare
Cambridgeshire County Council,02-Mar-22,51301735797,"-1,475.19",AFFINITY TRUST,CARE ESTABLISHMENT,LD - Fenland Locality - Cost of Care,LD - Fenland  - Care,Homecare
Cambridgeshire County Council,02-Mar-22,51301735797,"-1,475.19",AFFINITY TRUST,CARE ESTABLISHMENT,LD - Fenland Locality - Cost of Care,LD - Fenland  - Care,Homecare
Cambridgeshire County Council,02-Mar-22,51301735797,"-1,475.19",AFFINITY TRUST,CARE ESTABLISHMENT,LD - Fenland Locality - Cost of Care,LD - Fenland  - Care,Homecare
Cambridgeshire County Council,02-Mar-22,51301735797,"-1,475.19",AFFINITY TRUST,CARE ESTABLISHMENT,LD - Fenland Locality - Cost of Care,LD - Fenland  - Care,Homecare
Cambridgeshire County Council,02-Mar-22,51301735797,"-1,475.19",AFFINITY TRUST,CARE ESTABLISHMENT,LD - Fenland Locality - Cost of Care,LD - Fenland  - Care,Homecare
Cambridgeshire County Council,02-Mar-22,51301735797,"-1,475.19",AFFINITY TRUST,CARE ESTABLISHMENT,LD - Fenland Locality - Cost of Care,LD - Fenland  - Care,Homecare
Cambridgeshire County Council,02-Mar-22,51301735797,"-1,475.19",AFFINITY TRUST,CARE ESTABLISHMENT,LD - Fenland Locality - Cost of Care,LD - Fenland  - Care,Homecare
Cambridgeshire County Council,02-Mar-22,51301735797,"-1,475.19",AFFINITY TRUST,CARE ESTABLISHMENT,LD - Fenland Locality - Cost of Care,LD - Fenland  - Care,Homecare
Cambridgeshire County Council,02-Mar-22,51301735797,"-1,475.19",AFFINITY TRUST,CARE ESTABLISHMENT,LD - Fenland Locality - Cost of Care,LD - Fenland  - Care,Homecare
Cambridgeshire County Council,02-Mar-22,51301735797,"-1,475.19",AFFINITY TRUST,CARE ESTABLISHMENT,LD - Fenland Locality - Cost of Care,LD - Fenland  - Care,Homecare
Cambridgeshire County Council,02-Mar-22,51301735797,"-1,475.19",AFFINITY TRUST,CARE ESTABLISHMENT,LD - Fenland Locality - Cost of Care,LD - Fenland  - Care,Homecare
Cambridgeshire County Council,02-Mar-22,51301735797,"-1,475.19",AFFINITY TRUST,CARE ESTABLISHMENT,LD - Fenland Locality - Cost of Care,LD - Fenland  - Care,Homecare
Cambridgeshire County Council,02-Mar-22,51301735797,"-1,475.19",AFFINITY TRUST,CARE ESTABLISHMENT,LD - Fenland Locality - Cost of Care,LD - Fenland  - Care,Homecare
Cambridgeshire County Council,02-Mar-22,51301735797,"-1,475.19",AFFINITY TRUST,CARE ESTABLISHMENT,LD - Fenland Locality - Cost of Care,LD - Fenland  - Care,Homecare
Cambridgeshire County Council,02-Mar-22,51301735797,"-1,475.19",AFFINITY TRUST,CARE ESTABLISHMENT,LD - Fenland Locality - Cost of Care,LD - Fenland  - Care,Homecare
Cambridgeshire County Council,02-Mar-22,51301735797,"-1,475.19",AFFINITY TRUST,CARE ESTABLISHMENT,LD - Fenland Locality - Cost of Care,LD - Fenland  - Care,Homecare
Cambridgeshire County Council,02-Mar-22,51301735797,"-1,475.19",AFFINITY TRUST,CARE ESTABLISHMENT,LD - Fenland Locality - Cost of Care,LD - Fenland  - Care,Homecare
Cambridgeshire County Council,02-Mar-22,51301735797,"-1,475.19",AFFINITY TRUST,CARE ESTABLISHMENT,LD - Fenland Locality - Cost of Care,LD - Fenland  - Care,Homecare
Cambridgeshire County Council,02-Mar-22,51301735797,"-1,475.19",AFFINITY TRUST,CARE ESTABLISHMENT,LD - Fenland Locality - Cost of Care,LD - Fenland  - Care,Homecare
Cambridgeshire County Council,02-Mar-22,51301735797,"-1,475.19",AFFINITY TRUST,CARE ESTABLISHMENT,LD - Fenland Locality - Cost of Care,LD - Fenland  - Care,Homecare
Cambridgeshire County Council,02-Mar-22,51301735797,"-1,475.19",AFFINITY TRUST,CARE ESTABLISHMENT,LD - Fenland Locality - Cost of Care,LD - Fenland  - Care,Homecare
Cambridgeshire County Council,02-Mar-22,51301735797,"-1,475.19",AFFINITY TRUST,CARE ESTABLISHMENT,LD - Fenland Locality - Cost of Care,LD - Fenland  - Care,Homecare
Cambridgeshire County Council,02-Mar-22,51301735797,"-1,475.19",AFFINITY TRUST,CARE ESTABLISHMENT,LD - Fenland Locality - Cost of Care,LD - Fenland  - Care,Homecare
Cambridgeshire County Council,02-Mar-22,51301735797,"-1,475.19",AFFINITY TRUST,CARE ESTABLISHMENT,LD - Fenland Locality - Cost of Care,LD - Fenland  - Care,Homecare
Cambridgeshire County Council,02-Mar-22,51301735797,"-1,475.19",AFFINITY TRUST,CARE ESTABLISHMENT,LD - Fenland Locality - Cost of Care,LD - Fenland  - Care,Homecare
Cambridgeshire County Council,02-Mar-22,51301735797,"-1,475.19",AFFINITY TRUST,CARE ESTABLISHMENT,LD - Fenland Locality - Cost of Care,LD - Fenland  - Care,Homecare
Cambridgeshire County Council,02-Mar-22,51301735797,"-1,475.19",AFFINITY TRUST,CARE ESTABLISHMENT,LD - Fenland Locality - Cost of Care,LD - Fenland  - Care,Homecare
Cambridgeshire County Council,02-Mar-22,51301735797,"-1,475.19",AFFINITY TRUST,CARE ESTABLISHMENT,LD - Fenland Locality - Cost of Care,LD - Fenland  - Care,Homecare
Cambridgeshire County Council,02-Mar-22,51301735797,"-1,475.19",AFFINITY TRUST,CARE ESTABLISHMENT,LD - Fenland Locality - Cost of Care,LD - Fenland  - Care,Homecare
Cambridgeshire County Council,02-Mar-22,51301735797,"-1,475.19",AFFINITY TRUST,CARE ESTABLISHMENT,LD - Fenland Locality - Cost of Care,LD - Fenland  - Care,Homecare
Cambridgeshire County Council,02-Mar-22,51301735797,"-1,475.19",AFFINITY TRUST,CARE ESTABLISHMENT,LD - Fenland Locality - Cost of Care,LD - Fenland  - Care,Homecare
Cambridgeshire County Council,02-Mar-22,51301735797,"-1,475.19",AFFINITY TRUST,CARE ESTABLISHMENT,LD - Fenland Locality - Cost of Care,LD - Fenland  - Care,Homecare
Cambridgeshire County Council,02-Mar-22,51301735797,"-1,475.19",AFFINITY TRUST,CARE ESTABLISHMENT,LD - Fenland Locality - Cost of Care,LD - Fenland  - Care,Homecare
Cambridgeshire County Council,02-Mar-22,51301735797,"-1,475.19",AFFINITY TRUST,CARE ESTABLISHMENT,LD - Fenland Locality - Cost of Care,LD - Fenland  - Care,Homecare
Cambridgeshire County Council,02-Mar-22,51301735797,"-1,475.19",AFFINITY TRUST,CARE ESTABLISHMENT,LD - Fenland Locality - Cost of Care,LD - Fenland  - Care,Homecare
Cambridgeshire County Council,02-Mar-22,51301735797,"-1,475.19",AFFINITY TRUST,CARE ESTABLISHMENT,LD - Fenland Locality - Cost of Care,LD - Fenland  - Care,Homecare
Cambridgeshire County Council,02-Mar-22,51301735797,"-1,475.19",AFFINITY TRUST,CARE ESTABLISHMENT,LD - Fenland Locality - Cost of Care,LD - Fenland  - Care,Homecare
Cambridgeshire County Council,02-Mar-22,51301735797,"-1,475.19",AFFINITY TRUST,CARE ESTABLISHMENT,LD - Fenland Locality - Cost of Care,LD - Fenland  - Care,Homecare
Cambridgeshire County Council,02-Mar-22,51301735797,"-1,475.19",AFFINITY TRUST,CARE ESTABLISHMENT,LD - Fenland Locality - Cost of Care,LD - Fenland  - Care,Homecare
Cambridgeshire County Council,02-Mar-22,51301735797,"-1,475.19",AFFINITY TRUST,CARE ESTABLISHMENT,LD - Fenland Locality - Cost of Care,LD - Fenland  - Care,Homecare
Cambridgeshire County Council,02-Mar-22,51301735797,"-1,475.19",AFFINITY TRUST,CARE ESTABLISHMENT,LD - Fenland Locality - Cost of Care,LD - Fenland  - Care,Homecare
Cambridgeshire County Council,02-Mar-22,51301735797,"-1,475.19",AFFINITY TRUST,CARE ESTABLISHMENT,LD - Fenland Locality - Cost of Care,LD - Fenland  - Care,Homecare
Cambridgeshire County Council,02-Mar-22,51301735797,"-1,475.19",AFFINITY TRUST,CARE ESTABLISHMENT,LD - Fenland Locality - Cost of Care,LD - Fenland  - Care,Homecare
Cambridgeshire County Council,02-Mar-22,51301735797,"-1,475.19",AFFINITY TRUST,CARE ESTABLISHMENT,LD - Fenland Locality - Cost of Care,LD - Fenland  - Care,Homecare
Cambridgeshire County Council,02-Mar-22,51301735865,"-1,467.71",VOYAGE,CARE ESTABLISHMENT,LD - Fenland Locality - Cost of Care,LD - Fenland  - Care,Residential Care
Cambridgeshire County Council,02-Mar-22,51301735865,"-1,467.71",VOYAGE,CARE ESTABLISHMENT,LD - Fenland Locality - Cost of Care,LD - Fenland  - Care,Residential Care
Cambridgeshire County Council,02-Mar-22,51301735865,"-1,467.71",VOYAGE,CARE ESTABLISHMENT,LD - Fenland Locality - Cost of Care,LD - Fenland  - Care,Residential Care
Cambridgeshire County Council,02-Mar-22,51301735865,"-1,467.71",VOYAGE,CARE ESTABLISHMENT,LD - Fenland Locality - Cost of Care,LD - Fenland  - Care,Residential Care
Cambridgeshire County Council,02-Mar-22,51301735865,"-1,467.71",VOYAGE,CARE ESTABLISHMENT,LD - Fenland Locality - Cost of Care,LD - Fenland  - Care,Residential Care
Cambridgeshire County Council,02-Mar-22,51301735865,"-1,467.71",VOYAGE,CARE ESTABLISHMENT,LD - Fenland Locality - Cost of Care,LD - Fenland  - Care,Residential Care
Cambridgeshire County Council,02-Mar-22,51301735865,"-1,467.71",VOYAGE,CARE ESTABLISHMENT,LD - Fenland Locality - Cost of Care,LD - Fenland  - Care,Residential Care
Cambridgeshire County Council,02-Mar-22,51301735865,"-1,467.71",VOYAGE,CARE ESTABLISHMENT,LD - Fenland Locality - Cost of Care,LD - Fenland  - Care,Residential Care
Cambridgeshire County Council,02-Mar-22,51301735865,"-1,467.71",VOYAGE,CARE ESTABLISHMENT,LD - Fenland Locality - Cost of Care,LD - Fenland  - Care,Residential Care
Cambridgeshire County Council,02-Mar-22,51301735865,"-1,467.71",VOYAGE,CARE ESTABLISHMENT,LD - Fenland Locality - Cost of Care,LD - Fenland  - Care,Residential Care
Cambridgeshire County Council,02-Mar-22,51301735865,"-1,467.71",VOYAGE,CARE ESTABLISHMENT,LD - Fenland Locality - Cost of Care,LD - Fenland  - Care,Residential Care
Cambridgeshire County Council,02-Mar-22,51301735865,"-1,467.71",VOYAGE,CARE ESTABLISHMENT,LD - Fenland Locality - Cost of Care,LD - Fenland  - Care,Residential Care
Cambridgeshire County Council,02-Mar-22,51301735865,"-1,467.71",VOYAGE,CARE ESTABLISHMENT,LD - Fenland Locality - Cost of Care,LD - Fenland  - Care,Residential Care
Cambridgeshire County Council,02-Mar-22,51301735865,"-1,467.71",VOYAGE,CARE ESTABLISHMENT,LD - Fenland Locality - Cost of Care,LD - Fenland  - Care,Residential Care
Cambridgeshire County Council,02-Mar-22,51301735865,"-1,467.71",VOYAGE,CARE ESTABLISHMENT,LD - Fenland Locality - Cost of Care,LD - Fenland  - Care,Residential Care
Cambridgeshire County Council,02-Mar-22,51301735865,"-1,467.71",VOYAGE,CARE ESTABLISHMENT,LD - Fenland Locality - Cost of Care,LD - Fenland  - Care,Residential Care
Cambridgeshire County Council,02-Mar-22,51301735865,"-1,467.71",VOYAGE,CARE ESTABLISHMENT,LD - Fenland Locality - Cost of Care,LD - Fenland  - Care,Residential Care
Cambridgeshire County Council,02-Mar-22,51301735865,"-1,467.71",VOYAGE,CARE ESTABLISHMENT,LD - Fenland Locality - Cost of Care,LD - Fenland  - Care,Residential Care
Cambridgeshire County Council,02-Mar-22,51301735865,"-1,467.71",VOYAGE,CARE ESTABLISHMENT,LD - Fenland Locality - Cost of Care,LD - Fenland  - Care,Residential Care
Cambridgeshire County Council,02-Mar-22,51301735865,"-1,467.71",VOYAGE,CARE ESTABLISHMENT,LD - Fenland Locality - Cost of Care,LD - Fenland  - Care,Residential Care
Cambridgeshire County Council,02-Mar-22,51301735865,"-1,467.71",VOYAGE,CARE ESTABLISHMENT,LD - Fenland Locality - Cost of Care,LD - Fenland  - Care,Residential Care
Cambridgeshire County Council,02-Mar-22,51301735865,"-1,467.71",VOYAGE,CARE ESTABLISHMENT,LD - Fenland Locality - Cost of Care,LD - Fenland  - Care,Residential Care
Cambridgeshire County Council,02-Mar-22,51301735865,"-1,467.71",VOYAGE,CARE ESTABLISHMENT,LD - Fenland Locality - Cost of Care,LD - Fenland  - Care,Residential Care
Cambridgeshire County Council,02-Mar-22,51301735865,"-1,467.71",VOYAGE,CARE ESTABLISHMENT,LD - Fenland Locality - Cost of Care,LD - Fenland  - Care,Residential Care
Cambridgeshire County Council,02-Mar-22,51301735865,"-1,467.71",VOYAGE,CARE ESTABLISHMENT,LD - Fenland Locality - Cost of Care,LD - Fenland  - Care,Residential Care
Cambridgeshire County Council,02-Mar-22,51301735865,"-1,467.71",VOYAGE,CARE ESTABLISHMENT,LD - Fenland Locality - Cost of Care,LD - Fenland  - Care,Residential Care
Cambridgeshire County Council,02-Mar-22,51301735865,"-1,467.71",VOYAGE,CARE ESTABLISHMENT,LD - Fenland Locality - Cost of Care,LD - Fenland  - Care,Residential Care
Cambridgeshire County Council,02-Mar-22,51301735865,"-1,467.71",VOYAGE,CARE ESTABLISHMENT,LD - Fenland Locality - Cost of Care,LD - Fenland  - Care,Residential Care
Cambridgeshire County Council,02-Mar-22,51301735865,"-1,467.71",VOYAGE,CARE ESTABLISHMENT,LD - Fenland Locality - Cost of Care,LD - Fenland  - Care,Residential Care
Cambridgeshire County Council,02-Mar-22,51301735865,"-1,467.71",VOYAGE,CARE ESTABLISHMENT,LD - Fenland Locality - Cost of Care,LD - Fenland  - Care,Residential Care
Cambridgeshire County Council,02-Mar-22,51301735865,"-1,467.71",VOYAGE,CARE ESTABLISHMENT,LD - Fenland Locality - Cost of Care,LD - Fenland  - Care,Residential Care
Cambridgeshire County Council,02-Mar-22,51301735865,"-1,467.71",VOYAGE,CARE ESTABLISHMENT,LD - Fenland Locality - Cost of Care,LD - Fenland  - Care,Residential Care
Cambridgeshire County Council,02-Mar-22,51301735865,"-1,467.71",VOYAGE,CARE ESTABLISHMENT,LD - Fenland Locality - Cost of Care,LD - Fenland  - Care,Residential Care
Cambridgeshire County Council,02-Mar-22,51301735865,"-1,467.71",VOYAGE,CARE ESTABLISHMENT,LD - Fenland Locality - Cost of Care,LD - Fenland  - Care,Residential Care
Cambridgeshire County Council,02-Mar-22,51301735865,"-1,467.71",VOYAGE,CARE ESTABLISHMENT,LD - Fenland Locality - Cost of Care,LD - Fenland  - Care,Residential Care
Cambridgeshire County Council,02-Mar-22,51301735861,"-1,455.63",VOYAGE,CARE ESTABLISHMENT,LD - South Locality - Cost of Care,LD - South Cambs - Care,Residential Care
Cambridgeshire County Council,02-Mar-22,51301735861,"-1,455.63",VOYAGE,CARE ESTABLISHMENT,LD - South Locality - Cost of Care,LD - South Cambs - Care,Residential Care
Cambridgeshire County Council,02-Mar-22,51301735861,"-1,455.63",VOYAGE,CARE ESTABLISHMENT,LD - South Locality - Cost of Care,LD - South Cambs - Care,Residential Care
Cambridgeshire County Council,02-Mar-22,51301735861,"-1,455.63",VOYAGE,CARE ESTABLISHMENT,LD - South Locality - Cost of Care,LD - South Cambs - Care,Residential Care
Cambridgeshire County Council,02-Mar-22,51301735861,"-1,455.63",VOYAGE,CARE ESTABLISHMENT,LD - South Locality - Cost of Care,LD - South Cambs - Care,Residential Care
Cambridgeshire County Council,02-Mar-22,51301735861,"-1,455.63",VOYAGE,CARE ESTABLISHMENT,LD - South Locality - Cost of Care,LD - South Cambs - Care,Residential Care
Cambridgeshire County Council,02-Mar-22,51301735861,"-1,455.63",VOYAGE,CARE ESTABLISHMENT,LD - South Locality - Cost of Care,LD - South Cambs - Care,Residential Care
Cambridgeshire County Council,02-Mar-22,51301735861,"-1,455.63",VOYAGE,CARE ESTABLISHMENT,LD - South Locality - Cost of Care,LD - South Cambs - Care,Residential Care
Cambridgeshire County Council,02-Mar-22,51301735861,"-1,455.63",VOYAGE,CARE ESTABLISHMENT,LD - South Locality - Cost of Care,LD - South Cambs - Care,Residential Care
Cambridgeshire County Council,02-Mar-22,51301735861,"-1,455.63",VOYAGE,CARE ESTABLISHMENT,LD - South Locality - Cost of Care,LD - South Cambs - Care,Residential Care
Cambridgeshire County Council,02-Mar-22,51301735861,"-1,455.63",VOYAGE,CARE ESTABLISHMENT,LD - South Locality - Cost of Care,LD - South Cambs - Care,Residential Care
Cambridgeshire County Council,02-Mar-22,51301735861,"-1,455.63",VOYAGE,CARE ESTABLISHMENT,LD - South Locality - Cost of Care,LD - South Cambs - Care,Residential Care
Cambridgeshire County Council,02-Mar-22,51301735861,"-1,455.63",VOYAGE,CARE ESTABLISHMENT,LD - South Locality - Cost of Care,LD - South Cambs - Care,Residential Care
Cambridgeshire County Council,02-Mar-22,51301735861,"-1,455.63",VOYAGE,CARE ESTABLISHMENT,LD - South Locality - Cost of Care,LD - South Cambs - Care,Residential Care
Cambridgeshire County Council,02-Mar-22,51301735861,"-1,455.63",VOYAGE,CARE ESTABLISHMENT,LD - South Locality - Cost of Care,LD - South Cambs - Care,Residential Care
Cambridgeshire County Council,02-Mar-22,51301735861,"-1,455.63",VOYAGE,CARE ESTABLISHMENT,LD - South Locality - Cost of Care,LD - South Cambs - Care,Residential Care
Cambridgeshire County Council,02-Mar-22,51301735861,"-1,455.63",VOYAGE,CARE ESTABLISHMENT,LD - South Locality - Cost of Care,LD - South Cambs - Care,Residential Care
Cambridgeshire County Council,02-Mar-22,51301735861,"-1,455.63",VOYAGE,CARE ESTABLISHMENT,LD - South Locality - Cost of Care,LD - South Cambs - Care,Residential Care
Cambridgeshire County Council,02-Mar-22,51301735861,"-1,455.63",VOYAGE,CARE ESTABLISHMENT,LD - South Locality - Cost of Care,LD - South Cambs - Care,Residential Care
Cambridgeshire County Council,02-Mar-22,51301735861,"-1,455.63",VOYAGE,CARE ESTABLISHMENT,LD - South Locality - Cost of Care,LD - South Cambs - Care,Residential Care
Cambridgeshire County Council,02-Mar-22,51301735861,"-1,455.63",VOYAGE,CARE ESTABLISHMENT,LD - South Locality - Cost of Care,LD - South Cambs - Care,Residential Care
Cambridgeshire County Council,02-Mar-22,51301735861,"-1,455.63",VOYAGE,CARE ESTABLISHMENT,LD - South Locality - Cost of Care,LD - South Cambs - Care,Residential Care
Cambridgeshire County Council,02-Mar-22,51301735861,"-1,455.63",VOYAGE,CARE ESTABLISHMENT,LD - South Locality - Cost of Care,LD - South Cambs - Care,Residential Care
Cambridgeshire County Council,02-Mar-22,51301735861,"-1,455.63",VOYAGE,CARE ESTABLISHMENT,LD - South Locality - Cost of Care,LD - South Cambs - Care,Residential Care
Cambridgeshire County Council,02-Mar-22,51301735861,"-1,455.63",VOYAGE,CARE ESTABLISHMENT,LD - South Locality - Cost of Care,LD - South Cambs - Care,Residential Care
Cambridgeshire County Council,02-Mar-22,51301735861,"-1,455.63",VOYAGE,CARE ESTABLISHMENT,LD - South Locality - Cost of Care,LD - South Cambs - Care,Residential Care
Cambridgeshire County Council,02-Mar-22,51301735861,"-1,455.63",VOYAGE,CARE ESTABLISHMENT,LD - South Locality - Cost of Care,LD - South Cambs - Care,Residential Care
Cambridgeshire County Council,02-Mar-22,51301735861,"-1,455.63",VOYAGE,CARE ESTABLISHMENT,LD - South Locality - Cost of Care,LD - South Cambs - Care,Residential Care
Cambridgeshire County Council,02-Mar-22,51301735861,"-1,455.63",VOYAGE,CARE ESTABLISHMENT,LD - South Locality - Cost of Care,LD - South Cambs - Care,Residential Care
Cambridgeshire County Council,02-Mar-22,51301735860,"-1,455.63",VOYAGE,CARE ESTABLISHMENT,LD - South Locality - Cost of Care,LD - South Cambs - Care,Residential Care
Cambridgeshire County Council,02-Mar-22,51301735860,"-1,455.63",VOYAGE,CARE ESTABLISHMENT,LD - South Locality - Cost of Care,LD - South Cambs - Care,Residential Care
Cambridgeshire County Council,02-Mar-22,51301735860,"-1,455.63",VOYAGE,CARE ESTABLISHMENT,LD - South Locality - Cost of Care,LD - South Cambs - Care,Residential Care
Cambridgeshire County Council,02-Mar-22,51301735860,"-1,455.63",VOYAGE,CARE ESTABLISHMENT,LD - South Locality - Cost of Care,LD - South Cambs - Care,Residential Care
Cambridgeshire County Council,02-Mar-22,51301735860,"-1,455.63",VOYAGE,CARE ESTABLISHMENT,LD - South Locality - Cost of Care,LD - South Cambs - Care,Residential Care
Cambridgeshire County Council,02-Mar-22,51301735860,"-1,455.63",VOYAGE,CARE ESTABLISHMENT,LD - South Locality - Cost of Care,LD - South Cambs - Care,Residential Care
Cambridgeshire County Council,02-Mar-22,51301735861,"-1,455.63",VOYAGE,CARE ESTABLISHMENT,LD - South Locality - Cost of Care,LD - South Cambs - Care,Residential Care
Cambridgeshire County Council,02-Mar-22,51301735861,"-1,455.63",VOYAGE,CARE ESTABLISHMENT,LD - South Locality - Cost of Care,LD - South Cambs - Care,Residential Care
Cambridgeshire County Council,02-Mar-22,51301735861,"-1,455.63",VOYAGE,CARE ESTABLISHMENT,LD - South Locality - Cost of Care,LD - South Cambs - Care,Residential Care
Cambridgeshire County Council,02-Mar-22,51301735861,"-1,455.63",VOYAGE,CARE ESTABLISHMENT,LD - South Locality - Cost of Care,LD - South Cambs - Care,Residential Care
Cambridgeshire County Council,02-Mar-22,51301735861,"-1,455.63",VOYAGE,CARE ESTABLISHMENT,LD - South Locality - Cost of Care,LD - South Cambs - Care,Residential Care
Cambridgeshire County Council,02-Mar-22,51301735861,"-1,455.63",VOYAGE,CARE ESTABLISHMENT,LD - South Locality - Cost of Care,LD - South Cambs - Care,Residential Care
Cambridgeshire County Council,02-Mar-22,51301735861,"-1,455.63",VOYAGE,CARE ESTABLISHMENT,LD - South Locality - Cost of Care,LD - South Cambs - Care,Residential Care
Cambridgeshire County Council,02-Mar-22,51301735861,"-1,455.63",VOYAGE,CARE ESTABLISHMENT,LD - South Locality - Cost of Care,LD - South Cambs - Care,Residential Care
Cambridgeshire County Council,02-Mar-22,51301735861,"-1,455.63",VOYAGE,CARE ESTABLISHMENT,LD - South Locality - Cost of Care,LD - South Cambs - Care,Residential Care
Cambridgeshire County Council,02-Mar-22,51301735861,"-1,455.63",VOYAGE,CARE ESTABLISHMENT,LD - South Locality - Cost of Care,LD - South Cambs - Care,Residential Care
Cambridgeshire County Council,02-Mar-22,51301735861,"-1,455.63",VOYAGE,CARE ESTABLISHMENT,LD - South Locality - Cost of Care,LD - South Cambs - Care,Residential Care
Cambridgeshire County Council,02-Mar-22,51301735861,"-1,455.63",VOYAGE,CARE ESTABLISHMENT,LD - South Locality - Cost of Care,LD - South Cambs - Care,Residential Care
Cambridgeshire County Council,02-Mar-22,51301735861,"-1,455.63",VOYAGE,CARE ESTABLISHMENT,LD - South Locality - Cost of Care,LD - South Cambs - Care,Residential Care
Cambridgeshire County Council,02-Mar-22,51301735861,"-1,455.63",VOYAGE,CARE ESTABLISHMENT,LD - South Locality - Cost of Care,LD - South Cambs - Care,Residential Care
Cambridgeshire County Council,02-Mar-22,51301735861,"-1,455.63",VOYAGE,CARE ESTABLISHMENT,LD - South Locality - Cost of Care,LD - South Cambs - Care,Residential Care
Cambridgeshire County Council,02-Mar-22,51301735861,"-1,455.63",VOYAGE,CARE ESTABLISHMENT,LD - South Locality - Cost of Care,LD - South Cambs - Care,Residential Care
Cambridgeshire County Council,02-Mar-22,51301735861,"-1,455.63",VOYAGE,CARE ESTABLISHMENT,LD - South Locality - Cost of Care,LD - South Cambs - Care,Residential Care
Cambridgeshire County Council,02-Mar-22,51301735861,"-1,455.63",VOYAGE,CARE ESTABLISHMENT,LD - South Locality - Cost of Care,LD - South Cambs - Care,Residential Care
Cambridgeshire County Council,02-Mar-22,51301735861,"-1,455.63",VOYAGE,CARE ESTABLISHMENT,LD - South Locality - Cost of Care,LD - South Cambs - Care,Residential Care
Cambridgeshire County Council,02-Mar-22,51301735861,"-1,455.63",VOYAGE,CARE ESTABLISHMENT,LD - South Locality - Cost of Care,LD - South Cambs - Care,Residential Care
Cambridgeshire County Council,02-Mar-22,51301735861,"-1,455.63",VOYAGE,CARE ESTABLISHMENT,LD - South Locality - Cost of Care,LD - South Cambs - Care,Residential Care
Cambridgeshire County Council,02-Mar-22,51301735861,"-1,455.63",VOYAGE,CARE ESTABLISHMENT,LD - South Locality - Cost of Care,LD - South Cambs - Care,Residential Care
Cambridgeshire County Council,02-Mar-22,51301735860,"-1,455.63",VOYAGE,CARE ESTABLISHMENT,LD - South Locality - Cost of Care,LD - South Cambs - Care,Residential Care
Cambridgeshire County Council,02-Mar-22,51301735860,"-1,455.63",VOYAGE,CARE ESTABLISHMENT,LD - South Locality - Cost of Care,LD - South Cambs - Care,Residential Care
Cambridgeshire County Council,02-Mar-22,51301735860,"-1,455.63",VOYAGE,CARE ESTABLISHMENT,LD - South Locality - Cost of Care,LD - South Cambs - Care,Residential Care
Cambridgeshire County Council,02-Mar-22,51301735860,"-1,455.63",VOYAGE,CARE ESTABLISHMENT,LD - South Locality - Cost of Care,LD - South Cambs - Care,Residential Care
Cambridgeshire County Council,02-Mar-22,51301735860,"-1,455.63",VOYAGE,CARE ESTABLISHMENT,LD - South Locality - Cost of Care,LD - South Cambs - Care,Residential Care
Cambridgeshire County Council,02-Mar-22,51301735860,"-1,455.63",VOYAGE,CARE ESTABLISHMENT,LD - South Locality - Cost of Care,LD - South Cambs - Care,Residential Care
Cambridgeshire County Council,02-Mar-22,51301735860,"-1,455.63",VOYAGE,CARE ESTABLISHMENT,LD - South Locality - Cost of Care,LD - South Cambs - Care,Residential Care
Cambridgeshire County Council,02-Mar-22,51301735860,"-1,455.63",VOYAGE,CARE ESTABLISHMENT,LD - South Locality - Cost of Care,LD - South Cambs - Care,Residential Care
Cambridgeshire County Council,02-Mar-22,51301735860,"-1,455.63",VOYAGE,CARE ESTABLISHMENT,LD - South Locality - Cost of Care,LD - South Cambs - Care,Residential Care
Cambridgeshire County Council,02-Mar-22,51301735860,"-1,455.63",VOYAGE,CARE ESTABLISHMENT,LD - South Locality - Cost of Care,LD - South Cambs - Care,Residential Care
Cambridgeshire County Council,02-Mar-22,51301735860,"-1,455.63",VOYAGE,CARE ESTABLISHMENT,LD - South Locality - Cost of Care,LD - South Cambs - Care,Residential Care
Cambridgeshire County Council,02-Mar-22,51301735860,"-1,455.63",VOYAGE,CARE ESTABLISHMENT,LD - South Locality - Cost of Care,LD - South Cambs - Care,Residential Care
Cambridgeshire County Council,02-Mar-22,51301735860,"-1,455.63",VOYAGE,CARE ESTABLISHMENT,LD - South Locality - Cost of Care,LD - South Cambs - Care,Residential Care
Cambridgeshire County Council,02-Mar-22,51301735860,"-1,455.63",VOYAGE,CARE ESTABLISHMENT,LD - South Locality - Cost of Care,LD - South Cambs - Care,Residential Care
Cambridgeshire County Council,02-Mar-22,51301735860,"-1,455.63",VOYAGE,CARE ESTABLISHMENT,LD - South Locality - Cost of Care,LD - South Cambs - Care,Residential Care
Cambridgeshire County Council,02-Mar-22,51301735860,"-1,455.63",VOYAGE,CARE ESTABLISHMENT,LD - South Locality - Cost of Care,LD - South Cambs - Care,Residential Care
Cambridgeshire County Council,02-Mar-22,51301735860,"-1,455.63",VOYAGE,CARE ESTABLISHMENT,LD - South Locality - Cost of Care,LD - South Cambs - Care,Residential Care
Cambridgeshire County Council,02-Mar-22,51301735860,"-1,455.63",VOYAGE,CARE ESTABLISHMENT,LD - South Locality - Cost of Care,LD - South Cambs - Care,Residential Care
Cambridgeshire County Council,02-Mar-22,51301735860,"-1,455.63",VOYAGE,CARE ESTABLISHMENT,LD - South Locality - Cost of Care,LD - South Cambs - Care,Residential Care
Cambridgeshire County Council,02-Mar-22,51301735860,"-1,455.63",VOYAGE,CARE ESTABLISHMENT,LD - South Locality - Cost of Care,LD - South Cambs - Care,Residential Care
Cambridgeshire County Council,02-Mar-22,51301735860,"-1,455.63",VOYAGE,CARE ESTABLISHMENT,LD - South Locality - Cost of Care,LD - South Cambs - Care,Residential Care
Cambridgeshire County Council,02-Mar-22,51301735860,"-1,455.63",VOYAGE,CARE ESTABLISHMENT,LD - South Locality - Cost of Care,LD - South Cambs - Care,Residential Care
Cambridgeshire County Council,02-Mar-22,51301735860,"-1,455.63",VOYAGE,CARE ESTABLISHMENT,LD - South Locality - Cost of Care,LD - South Cambs - Care,Residential Care
Cambridgeshire County Council,02-Mar-22,51301735860,"-1,455.63",VOYAGE,CARE ESTABLISHMENT,LD - South Locality - Cost of Care,LD - South Cambs - Care,Residential Care
Cambridgeshire County Council,02-Mar-22,51301735860,"-1,455.63",VOYAGE,CARE ESTABLISHMENT,LD - South Locality - Cost of Care,LD - South Cambs - Care,Residential Care
Cambridgeshire County Council,02-Mar-22,51301735860,"-1,455.63",VOYAGE,CARE ESTABLISHMENT,LD - South Locality - Cost of Care,LD - South Cambs - Care,Residential Care
Cambridgeshire County Council,02-Mar-22,51301735860,"-1,455.63",VOYAGE,CARE ESTABLISHMENT,LD - South Locality - Cost of Care,LD - South Cambs - Care,Residential Care
Cambridgeshire County Council,02-Mar-22,51301735860,"-1,455.63",VOYAGE,CARE ESTABLISHMENT,LD - South Locality - Cost of Care,LD - South Cambs - Care,Residential Care
Cambridgeshire County Council,02-Mar-22,51301735860,"-1,455.63",VOYAGE,CARE ESTABLISHMENT,LD - South Locality - Cost of Care,LD - South Cambs - Care,Residential Care
Cambridgeshire County Council,02-Mar-22,51301735860,"-1,455.63",VOYAGE,CARE ESTABLISHMENT,LD - South Locality - Cost of Care,LD - South Cambs - Care,Residential Care
Cambridgeshire County Council,02-Mar-22,51301735860,"-1,455.63",VOYAGE,CARE ESTABLISHMENT,LD - South Locality - Cost of Care,LD - South Cambs - Care,Residential Care
Cambridgeshire County Council,02-Mar-22,51301735860,"-1,455.63",VOYAGE,CARE ESTABLISHMENT,LD - South Locality - Cost of Care,LD - South Cambs - Care,Residential Care
Cambridgeshire County Council,02-Mar-22,51301735860,"-1,455.63",VOYAGE,CARE ESTABLISHMENT,LD - South Locality - Cost of Care,LD - South Cambs - Care,Residential Care
Cambridgeshire County Council,02-Mar-22,51301735860,"-1,455.63",VOYAGE,CARE ESTABLISHMENT,LD - South Locality - Cost of Care,LD - South Cambs - Care,Residential Care
Cambridgeshire County Council,02-Mar-22,51301735860,"-1,455.63",VOYAGE,CARE ESTABLISHMENT,LD - South Locality - Cost of Care,LD - South Cambs - Care,Residential Care
Cambridgeshire County Council,02-Mar-22,51301735860,"-1,455.63",VOYAGE,CARE ESTABLISHMENT,LD - South Locality - Cost of Care,LD - South Cambs - Care,Residential Care
Cambridgeshire County Council,02-Mar-22,51301735860,"-1,455.63",VOYAGE,CARE ESTABLISHMENT,LD - South Locality - Cost of Care,LD - South Cambs - Care,Residential Care
Cambridgeshire County Council,02-Mar-22,51301735860,"-1,455.63",VOYAGE,CARE ESTABLISHMENT,LD - South Locality - Cost of Care,LD - South Cambs - Care,Residential Care
Cambridgeshire County Council,02-Mar-22,51301735860,"-1,455.63",VOYAGE,CARE ESTABLISHMENT,LD - South Locality - Cost of Care,LD - South Cambs - Care,Residential Care
Cambridgeshire County Council,02-Mar-22,51301735860,"-1,455.63",VOYAGE,CARE ESTABLISHMENT,LD - South Locality - Cost of Care,LD - South Cambs - Care,Residential Care
Cambridgeshire County Council,02-Mar-22,51301735860,"-1,455.63",VOYAGE,CARE ESTABLISHMENT,LD - South Locality - Cost of Care,LD - South Cambs - Care,Residential Care
Cambridgeshire County Council,02-Mar-22,51301735860,"-1,455.63",VOYAGE,CARE ESTABLISHMENT,LD - South Locality - Cost of Care,LD - South Cambs - Care,Residential Care
Cambridgeshire County Council,02-Mar-22,51301735860,"-1,455.63",VOYAGE,CARE ESTABLISHMENT,LD - South Locality - Cost of Care,LD - South Cambs - Care,Residential Care
Cambridgeshire County Council,02-Mar-22,51301735860,"-1,455.63",VOYAGE,CARE ESTABLISHMENT,LD - South Locality - Cost of Care,LD - South Cambs - Care,Residential Care
Cambridgeshire County Council,02-Mar-22,51301735860,"-1,455.63",VOYAGE,CARE ESTABLISHMENT,LD - South Locality - Cost of Care,LD - South Cambs - Care,Residential Care
Cambridgeshire County Council,02-Mar-22,51301735811,"-1,398.43",AUGUSTA CARE LTD,CARE ESTABLISHMENT,LD - Fenland Locality - Cost of Care,LD - Fenland  - Care,Homecare
Cambridgeshire County Council,02-Mar-22,51301735811,"-1,398.43",AUGUSTA CARE LTD,CARE ESTABLISHMENT,LD - Fenland Locality - Cost of Care,LD - Fenland  - Care,Homecare
Cambridgeshire County Council,02-Mar-22,51301735811,"-1,398.43",AUGUSTA CARE LTD,CARE ESTABLISHMENT,LD - Fenland Locality - Cost of Care,LD - Fenland  - Care,Homecare
Cambridgeshire County Council,02-Mar-22,51301735811,"-1,398.43",AUGUSTA CARE LTD,CARE ESTABLISHMENT,LD - Fenland Locality - Cost of Care,LD - Fenland  - Care,Homecare
Cambridgeshire County Council,02-Mar-22,51301735811,"-1,398.43",AUGUSTA CARE LTD,CARE ESTABLISHMENT,LD - Fenland Locality - Cost of Care,LD - Fenland  - Care,Homecare
Cambridgeshire County Council,02-Mar-22,51301735811,"-1,398.43",AUGUSTA CARE LTD,CARE ESTABLISHMENT,LD - Fenland Locality - Cost of Care,LD - Fenland  - Care,Homecare
Cambridgeshire County Council,02-Mar-22,51301735811,"-1,398.43",AUGUSTA CARE LTD,CARE ESTABLISHMENT,LD - Fenland Locality - Cost of Care,LD - Fenland  - Care,Homecare
Cambridgeshire County Council,02-Mar-22,51301735811,"-1,398.43",AUGUSTA CARE LTD,CARE ESTABLISHMENT,LD - Fenland Locality - Cost of Care,LD - Fenland  - Care,Homecare
Cambridgeshire County Council,02-Mar-22,51301735811,"-1,398.43",AUGUSTA CARE LTD,CARE ESTABLISHMENT,LD - Fenland Locality - Cost of Care,LD - Fenland  - Care,Homecare
Cambridgeshire County Council,02-Mar-22,51301735811,"-1,398.43",AUGUSTA CARE LTD,CARE ESTABLISHMENT,LD - Fenland Locality - Cost of Care,LD - Fenland  - Care,Homecare
Cambridgeshire County Council,02-Mar-22,51301735811,"-1,398.43",AUGUSTA CARE LTD,CARE ESTABLISHMENT,LD - Fenland Locality - Cost of Care,LD - Fenland  - Care,Homecare
Cambridgeshire County Council,02-Mar-22,51301735811,"-1,398.43",AUGUSTA CARE LTD,CARE ESTABLISHMENT,LD - Fenland Locality - Cost of Care,LD - Fenland  - Care,Homecare
Cambridgeshire County Council,02-Mar-22,51301735811,"-1,398.43",AUGUSTA CARE LTD,CARE ESTABLISHMENT,LD - Fenland Locality - Cost of Care,LD - Fenland  - Care,Homecare
Cambridgeshire County Council,02-Mar-22,51301735811,"-1,398.43",AUGUSTA CARE LTD,CARE ESTABLISHMENT,LD - Fenland Locality - Cost of Care,LD - Fenland  - Care,Homecare
Cambridgeshire County Council,02-Mar-22,51301735811,"-1,398.43",AUGUSTA CARE LTD,CARE ESTABLISHMENT,LD - Fenland Locality - Cost of Care,LD - Fenland  - Care,Homecare
Cambridgeshire County Council,02-Mar-22,51301735811,"-1,398.43",AUGUSTA CARE LTD,CARE ESTABLISHMENT,LD - Fenland Locality - Cost of Care,LD - Fenland  - Care,Homecare
Cambridgeshire County Council,02-Mar-22,51301735811,"-1,398.43",AUGUSTA CARE LTD,CARE ESTABLISHMENT,LD - Fenland Locality - Cost of Care,LD - Fenland  - Care,Homecare
Cambridgeshire County Council,02-Mar-22,51301735811,"-1,398.43",AUGUSTA CARE LTD,CARE ESTABLISHMENT,LD - Fenland Locality - Cost of Care,LD - Fenland  - Care,Homecare
Cambridgeshire County Council,02-Mar-22,51301735811,"-1,398.43",AUGUSTA CARE LTD,CARE ESTABLISHMENT,LD - Fenland Locality - Cost of Care,LD - Fenland  - Care,Homecare
Cambridgeshire County Council,02-Mar-22,51301735811,"-1,398.43",AUGUSTA CARE LTD,CARE ESTABLISHMENT,LD - Fenland Locality - Cost of Care,LD - Fenland  - Care,Homecare
Cambridgeshire County Council,02-Mar-22,51301735811,"-1,398.43",AUGUSTA CARE LTD,CARE ESTABLISHMENT,LD - Fenland Locality - Cost of Care,LD - Fenland  - Care,Homecare
Cambridgeshire County Council,02-Mar-22,51301735811,"-1,398.43",AUGUSTA CARE LTD,CARE ESTABLISHMENT,LD - Fenland Locality - Cost of Care,LD - Fenland  - Care,Homecare
Cambridgeshire County Council,02-Mar-22,51301735811,"-1,398.43",AUGUSTA CARE LTD,CARE ESTABLISHMENT,LD - Fenland Locality - Cost of Care,LD - Fenland  - Care,Homecare
Cambridgeshire County Council,02-Mar-22,51301735811,"-1,398.43",AUGUSTA CARE LTD,CARE ESTABLISHMENT,LD - Fenland Locality - Cost of Care,LD - Fenland  - Care,Homecare
Cambridgeshire County Council,02-Mar-22,51301735811,"-1,398.43",AUGUSTA CARE LTD,CARE ESTABLISHMENT,LD - Fenland Locality - Cost of Care,LD - Fenland  - Care,Homecare
Cambridgeshire County Council,02-Mar-22,51301735811,"-1,398.43",AUGUSTA CARE LTD,CARE ESTABLISHMENT,LD - Fenland Locality - Cost of Care,LD - Fenland  - Care,Homecare
Cambridgeshire County Council,02-Mar-22,51301735811,"-1,398.43",AUGUSTA CARE LTD,CARE ESTABLISHMENT,LD - Fenland Locality - Cost of Care,LD - Fenland  - Care,Homecare
Cambridgeshire County Council,02-Mar-22,51301735811,"-1,398.43",AUGUSTA CARE LTD,CARE ESTABLISHMENT,LD - Fenland Locality - Cost of Care,LD - Fenland  - Care,Homecare
Cambridgeshire County Council,02-Mar-22,51301735811,"-1,398.43",AUGUSTA CARE LTD,CARE ESTABLISHMENT,LD - Fenland Locality - Cost of Care,LD - Fenland  - Care,Homecare
Cambridgeshire County Council,02-Mar-22,51301735811,"-1,398.43",AUGUSTA CARE LTD,CARE ESTABLISHMENT,LD - Fenland Locality - Cost of Care,LD - Fenland  - Care,Homecare
Cambridgeshire County Council,02-Mar-22,51301735811,"-1,398.43",AUGUSTA CARE LTD,CARE ESTABLISHMENT,LD - Fenland Locality - Cost of Care,LD - Fenland  - Care,Homecare
Cambridgeshire County Council,02-Mar-22,51301735811,"-1,398.43",AUGUSTA CARE LTD,CARE ESTABLISHMENT,LD - Fenland Locality - Cost of Care,LD - Fenland  - Care,Homecare
Cambridgeshire County Council,02-Mar-22,51301735811,"-1,398.43",AUGUSTA CARE LTD,CARE ESTABLISHMENT,LD - Fenland Locality - Cost of Care,LD - Fenland  - Care,Homecare
Cambridgeshire County Council,02-Mar-22,51301735811,"-1,398.43",AUGUSTA CARE LTD,CARE ESTABLISHMENT,LD - Fenland Locality - Cost of Care,LD - Fenland  - Care,Homecare
Cambridgeshire County Council,02-Mar-22,51301735811,"-1,398.43",AUGUSTA CARE LTD,CARE ESTABLISHMENT,LD - Fenland Locality - Cost of Care,LD - Fenland  - Care,Homecare
Cambridgeshire County Council,02-Mar-22,51301735811,"-1,398.43",AUGUSTA CARE LTD,CARE ESTABLISHMENT,LD - Fenland Locality - Cost of Care,LD - Fenland  - Care,Homecare
Cambridgeshire County Council,02-Mar-22,51301735811,"-1,398.43",AUGUSTA CARE LTD,CARE ESTABLISHMENT,LD - Fenland Locality - Cost of Care,LD - Fenland  - Care,Homecare
Cambridgeshire County Council,02-Mar-22,51301735811,"-1,398.43",AUGUSTA CARE LTD,CARE ESTABLISHMENT,LD - Fenland Locality - Cost of Care,LD - Fenland  - Care,Homecare
Cambridgeshire County Council,02-Mar-22,51301735811,"-1,398.43",AUGUSTA CARE LTD,CARE ESTABLISHMENT,LD - Fenland Locality - Cost of Care,LD - Fenland  - Care,Homecare
Cambridgeshire County Council,02-Mar-22,51301735808,"-1,395.67",Ambito Care and Education,COMPANY,LD - South Locality - Cost of Care,LD - South Cambs - Care,Domiciliary Care
Cambridgeshire County Council,02-Mar-22,51301735808,"-1,395.67",Ambito Care and Education,COMPANY,LD - South Locality - Cost of Care,LD - South Cambs - Care,Domiciliary Care
Cambridgeshire County Council,02-Mar-22,51301735808,"-1,395.67",Ambito Care and Education,COMPANY,LD - South Locality - Cost of Care,LD - South Cambs - Care,Domiciliary Care
Cambridgeshire County Council,02-Mar-22,51301735808,"-1,395.67",Ambito Care and Education,COMPANY,LD - South Locality - Cost of Care,LD - South Cambs - Care,Domiciliary Care
Cambridgeshire County Council,02-Mar-22,51301735808,"-1,395.67",Ambito Care and Education,COMPANY,LD - South Locality - Cost of Care,LD - South Cambs - Care,Domiciliary Care
Cambridgeshire County Council,02-Mar-22,51301735808,"-1,395.67",Ambito Care and Education,COMPANY,LD - South Locality - Cost of Care,LD - South Cambs - Care,Domiciliary Care
Cambridgeshire County Council,02-Mar-22,51301735808,"-1,395.67",Ambito Care and Education,COMPANY,LD - South Locality - Cost of Care,LD - South Cambs - Care,Domiciliary Care
Cambridgeshire County Council,02-Mar-22,51301735808,"-1,395.67",Ambito Care and Education,COMPANY,LD - South Locality - Cost of Care,LD - South Cambs - Care,Domiciliary Care
Cambridgeshire County Council,02-Mar-22,51301735808,"-1,395.67",Ambito Care and Education,COMPANY,LD - South Locality - Cost of Care,LD - South Cambs - Care,Domiciliary Care
Cambridgeshire County Council,02-Mar-22,51301735808,"-1,395.67",Ambito Care and Education,COMPANY,LD - South Locality - Cost of Care,LD - South Cambs - Care,Domiciliary Care
Cambridgeshire County Council,02-Mar-22,51301735808,"-1,395.67",Ambito Care and Education,COMPANY,LD - South Locality - Cost of Care,LD - South Cambs - Care,Domiciliary Care
Cambridgeshire County Council,02-Mar-22,51301735808,"-1,395.67",Ambito Care and Education,COMPANY,LD - South Locality - Cost of Care,LD - South Cambs - Care,Domiciliary Care
Cambridgeshire County Council,02-Mar-22,51301735808,"-1,395.67",Ambito Care and Education,COMPANY,LD - South Locality - Cost of Care,LD - South Cambs - Care,Domiciliary Care
Cambridgeshire County Council,02-Mar-22,51301735808,"-1,395.67",Ambito Care and Education,COMPANY,LD - South Locality - Cost of Care,LD - South Cambs - Care,Domiciliary Care
Cambridgeshire County Council,02-Mar-22,51301735808,"-1,395.67",Ambito Care and Education,COMPANY,LD - South Locality - Cost of Care,LD - South Cambs - Care,Domiciliary Care
Cambridgeshire County Council,02-Mar-22,51301735808,"-1,395.67",Ambito Care and Education,COMPANY,LD - South Locality - Cost of Care,LD - South Cambs - Care,Domiciliary Care
Cambridgeshire County Council,02-Mar-22,51301735808,"-1,395.67",Ambito Care and Education,COMPANY,LD - South Locality - Cost of Care,LD - South Cambs - Care,Domiciliary Care
Cambridgeshire County Council,02-Mar-22,51301735808,"-1,395.67",Ambito Care and Education,COMPANY,LD - South Locality - Cost of Care,LD - South Cambs - Care,Domiciliary Care
Cambridgeshire County Council,02-Mar-22,51301735808,"-1,395.67",Ambito Care and Education,COMPANY,LD - South Locality - Cost of Care,LD - South Cambs - Care,Domiciliary Care
Cambridgeshire County Council,02-Mar-22,51301735808,"-1,395.67",Ambito Care and Education,COMPANY,LD - South Locality - Cost of Care,LD - South Cambs - Care,Domiciliary Care
Cambridgeshire County Council,02-Mar-22,51301735808,"-1,395.67",Ambito Care and Education,COMPANY,LD - South Locality - Cost of Care,LD - South Cambs - Care,Domiciliary Care
Cambridgeshire County Council,02-Mar-22,51301735808,"-1,395.67",Ambito Care and Education,COMPANY,LD - South Locality - Cost of Care,LD - South Cambs - Care,Domiciliary Care
Cambridgeshire County Council,02-Mar-22,51301735808,"-1,395.67",Ambito Care and Education,COMPANY,LD - South Locality - Cost of Care,LD - South Cambs - Care,Domiciliary Care
Cambridgeshire County Council,02-Mar-22,51301735808,"-1,395.67",Ambito Care and Education,COMPANY,LD - South Locality - Cost of Care,LD - South Cambs - Care,Domiciliary Care
Cambridgeshire County Council,02-Mar-22,51301735808,"-1,395.67",Ambito Care and Education,COMPANY,LD - South Locality - Cost of Care,LD - South Cambs - Care,Domiciliary Care
Cambridgeshire County Council,02-Mar-22,51301735808,"-1,395.67",Ambito Care and Education,COMPANY,LD - South Locality - Cost of Care,LD - South Cambs - Care,Domiciliary Care
Cambridgeshire County Council,02-Mar-22,51301735808,"-1,395.67",Ambito Care and Education,COMPANY,LD - South Locality - Cost of Care,LD - South Cambs - Care,Domiciliary Care
Cambridgeshire County Council,02-Mar-22,51301735808,"-1,395.67",Ambito Care and Education,COMPANY,LD - South Locality - Cost of Care,LD - South Cambs - Care,Domiciliary Care
Cambridgeshire County Council,02-Mar-22,51301735808,"-1,395.67",Ambito Care and Education,COMPANY,LD - South Locality - Cost of Care,LD - South Cambs - Care,Domiciliary Care
Cambridgeshire County Council,02-Mar-22,51301735808,"-1,395.67",Ambito Care and Education,COMPANY,LD - South Locality - Cost of Care,LD - South Cambs - Care,Domiciliary Care
Cambridgeshire County Council,02-Mar-22,51301735808,"-1,395.67",Ambito Care and Education,COMPANY,LD - South Locality - Cost of Care,LD - South Cambs - Care,Domiciliary Care
Cambridgeshire County Council,02-Mar-22,51301735808,"-1,395.67",Ambito Care and Education,COMPANY,LD - South Locality - Cost of Care,LD - South Cambs - Care,Domiciliary Care
Cambridgeshire County Council,02-Mar-22,51301735808,"-1,395.67",Ambito Care and Education,COMPANY,LD - South Locality - Cost of Care,LD - South Cambs - Care,Domiciliary Care
Cambridgeshire County Council,02-Mar-22,51301735808,"-1,395.67",Ambito Care and Education,COMPANY,LD - South Locality - Cost of Care,LD - South Cambs - Care,Domiciliary Care
Cambridgeshire County Council,02-Mar-22,51301735808,"-1,395.67",Ambito Care and Education,COMPANY,LD - South Locality - Cost of Care,LD - South Cambs - Care,Domiciliary Care
Cambridgeshire County Council,02-Mar-22,51301735808,"-1,395.67",Ambito Care and Education,COMPANY,LD - South Locality - Cost of Care,LD - South Cambs - Care,Domiciliary Care
Cambridgeshire County Council,02-Mar-22,51301735808,"-1,395.67",Ambito Care and Education,COMPANY,LD - South Locality - Cost of Care,LD - South Cambs - Care,Domiciliary Care
Cambridgeshire County Council,02-Mar-22,51301735808,"-1,395.67",Ambito Care and Education,COMPANY,LD - South Locality - Cost of Care,LD - South Cambs - Care,Domiciliary Care
Cambridgeshire County Council,02-Mar-22,51301735808,"-1,395.67",Ambito Care and Education,COMPANY,LD - South Locality - Cost of Care,LD - South Cambs - Care,Domiciliary Care
Cambridgeshire County Council,02-Mar-22,51301735808,"-1,395.67",Ambito Care and Education,COMPANY,LD - South Locality - Cost of Care,LD - South Cambs - Care,Domiciliary Care
Cambridgeshire County Council,02-Mar-22,51301735808,"-1,395.67",Ambito Care and Education,COMPANY,LD - South Locality - Cost of Care,LD - South Cambs - Care,Domiciliary Care
Cambridgeshire County Council,02-Mar-22,51301735808,"-1,395.67",Ambito Care and Education,COMPANY,LD - South Locality - Cost of Care,LD - South Cambs - Care,Domiciliary Care
Cambridgeshire County Council,02-Mar-22,51301735808,"-1,395.67",Ambito Care and Education,COMPANY,LD - South Locality - Cost of Care,LD - South Cambs - Care,Domiciliary Care
Cambridgeshire County Council,02-Mar-22,51301735808,"-1,395.67",Ambito Care and Education,COMPANY,LD - South Locality - Cost of Care,LD - South Cambs - Care,Domiciliary Care
Cambridgeshire County Council,02-Mar-22,51301735808,"-1,395.67",Ambito Care and Education,COMPANY,LD - South Locality - Cost of Care,LD - South Cambs - Care,Domiciliary Care
Cambridgeshire County Council,02-Mar-22,51301735808,"-1,395.67",Ambito Care and Education,COMPANY,LD - South Locality - Cost of Care,LD - South Cambs - Care,Domiciliary Care
Cambridgeshire County Council,02-Mar-22,51301735808,"-1,395.67",Ambito Care and Education,COMPANY,LD - South Locality - Cost of Care,LD - South Cambs - Care,Domiciliary Care
Cambridgeshire County Council,02-Mar-22,51301735826,"-1,354.20",TURNING POINT SERVICES LTD,CARE ESTABLISHMENT,LD - Fenland Locality - Cost of Care,LD - Fenland  - Care,Homecare
Cambridgeshire County Council,02-Mar-22,51301735864,"-1,339.31",VOYAGE,CARE ESTABLISHMENT,LD - South Locality - Cost of Care,LD - South Cambs - Care,Residential Care
Cambridgeshire County Council,02-Mar-22,51301735864,"-1,339.31",VOYAGE,CARE ESTABLISHMENT,LD - South Locality - Cost of Care,LD - South Cambs - Care,Residential Care
Cambridgeshire County Council,02-Mar-22,51301735864,"-1,339.31",VOYAGE,CARE ESTABLISHMENT,LD - South Locality - Cost of Care,LD - South Cambs - Care,Residential Care
Cambridgeshire County Council,02-Mar-22,51301735864,"-1,339.31",VOYAGE,CARE ESTABLISHMENT,LD - South Locality - Cost of Care,LD - South Cambs - Care,Residential Care
Cambridgeshire County Council,02-Mar-22,51301735864,"-1,339.31",VOYAGE,CARE ESTABLISHMENT,LD - South Locality - Cost of Care,LD - South Cambs - Care,Residential Care
Cambridgeshire County Council,02-Mar-22,51301735864,"-1,339.31",VOYAGE,CARE ESTABLISHMENT,LD - South Locality - Cost of Care,LD - South Cambs - Care,Residential Care
Cambridgeshire County Council,02-Mar-22,51301735864,"-1,339.31",VOYAGE,CARE ESTABLISHMENT,LD - South Locality - Cost of Care,LD - South Cambs - Care,Residential Care
Cambridgeshire County Council,02-Mar-22,51301735864,"-1,339.31",VOYAGE,CARE ESTABLISHMENT,LD - South Locality - Cost of Care,LD - South Cambs - Care,Residential Care
Cambridgeshire County Council,02-Mar-22,51301735864,"-1,339.31",VOYAGE,CARE ESTABLISHMENT,LD - South Locality - Cost of Care,LD - South Cambs - Care,Residential Care
Cambridgeshire County Council,02-Mar-22,51301735864,"-1,339.31",VOYAGE,CARE ESTABLISHMENT,LD - South Locality - Cost of Care,LD - South Cambs - Care,Residential Care
Cambridgeshire County Council,02-Mar-22,51301735864,"-1,339.31",VOYAGE,CARE ESTABLISHMENT,LD - South Locality - Cost of Care,LD - South Cambs - Care,Residential Care
Cambridgeshire County Council,02-Mar-22,51301735864,"-1,339.31",VOYAGE,CARE ESTABLISHMENT,LD - South Locality - Cost of Care,LD - South Cambs - Care,Residential Care
Cambridgeshire County Council,02-Mar-22,51301735864,"-1,339.31",VOYAGE,CARE ESTABLISHMENT,LD - South Locality - Cost of Care,LD - South Cambs - Care,Residential Care
Cambridgeshire County Council,02-Mar-22,51301735864,"-1,339.31",VOYAGE,CARE ESTABLISHMENT,LD - South Locality - Cost of Care,LD - South Cambs - Care,Residential Care
Cambridgeshire County Council,02-Mar-22,51301735864,"-1,339.31",VOYAGE,CARE ESTABLISHMENT,LD - South Locality - Cost of Care,LD - South Cambs - Care,Residential Care
Cambridgeshire County Council,02-Mar-22,51301735864,"-1,339.31",VOYAGE,CARE ESTABLISHMENT,LD - South Locality - Cost of Care,LD - South Cambs - Care,Residential Care
Cambridgeshire County Council,02-Mar-22,51301735864,"-1,339.31",VOYAGE,CARE ESTABLISHMENT,LD - South Locality - Cost of Care,LD - South Cambs - Care,Residential Care
Cambridgeshire County Council,02-Mar-22,51301735864,"-1,339.31",VOYAGE,CARE ESTABLISHMENT,LD - South Locality - Cost of Care,LD - South Cambs - Care,Residential Care
Cambridgeshire County Council,02-Mar-22,51301735864,"-1,339.31",VOYAGE,CARE ESTABLISHMENT,LD - South Locality - Cost of Care,LD - South Cambs - Care,Residential Care
Cambridgeshire County Council,02-Mar-22,51301735864,"-1,339.31",VOYAGE,CARE ESTABLISHMENT,LD - South Locality - Cost of Care,LD - South Cambs - Care,Residential Care
Cambridgeshire County Council,02-Mar-22,51301735864,"-1,339.31",VOYAGE,CARE ESTABLISHMENT,LD - South Locality - Cost of Care,LD - South Cambs - Care,Residential Care
Cambridgeshire County Council,02-Mar-22,51301735864,"-1,339.31",VOYAGE,CARE ESTABLISHMENT,LD - South Locality - Cost of Care,LD - South Cambs - Care,Residential Care
Cambridgeshire County Council,02-Mar-22,51301735864,"-1,339.31",VOYAGE,CARE ESTABLISHMENT,LD - South Locality - Cost of Care,LD - South Cambs - Care,Residential Care
Cambridgeshire County Council,02-Mar-22,51301735864,"-1,339.31",VOYAGE,CARE ESTABLISHMENT,LD - South Locality - Cost of Care,LD - South Cambs - Care,Residential Care
Cambridgeshire County Council,02-Mar-22,51301735864,"-1,339.31",VOYAGE,CARE ESTABLISHMENT,LD - South Locality - Cost of Care,LD - South Cambs - Care,Residential Care
Cambridgeshire County Council,02-Mar-22,51301735864,"-1,339.31",VOYAGE,CARE ESTABLISHMENT,LD - South Locality - Cost of Care,LD - South Cambs - Care,Residential Care
Cambridgeshire County Council,02-Mar-22,51301735864,"-1,339.31",VOYAGE,CARE ESTABLISHMENT,LD - South Locality - Cost of Care,LD - South Cambs - Care,Residential Care
Cambridgeshire County Council,02-Mar-22,51301735864,"-1,339.31",VOYAGE,CARE ESTABLISHMENT,LD - South Locality - Cost of Care,LD - South Cambs - Care,Residential Care
Cambridgeshire County Council,02-Mar-22,51301735864,"-1,339.31",VOYAGE,CARE ESTABLISHMENT,LD - South Locality - Cost of Care,LD - South Cambs - Care,Residential Care
Cambridgeshire County Council,02-Mar-22,51301735864,"-1,339.31",VOYAGE,CARE ESTABLISHMENT,LD - South Locality - Cost of Care,LD - South Cambs - Care,Residential Care
Cambridgeshire County Council,02-Mar-22,51301735864,"-1,339.31",VOYAGE,CARE ESTABLISHMENT,LD - South Locality - Cost of Care,LD - South Cambs - Care,Residential Care
Cambridgeshire County Council,02-Mar-22,51301735864,"-1,339.31",VOYAGE,CARE ESTABLISHMENT,LD - South Locality - Cost of Care,LD - South Cambs - Care,Residential Care
Cambridgeshire County Council,02-Mar-22,51301735864,"-1,339.31",VOYAGE,CARE ESTABLISHMENT,LD - South Locality - Cost of Care,LD - South Cambs - Care,Residential Care
Cambridgeshire County Council,02-Mar-22,51301735864,"-1,339.31",VOYAGE,CARE ESTABLISHMENT,LD - South Locality - Cost of Care,LD - South Cambs - Care,Residential Care
Cambridgeshire County Council,02-Mar-22,51301735864,"-1,339.31",VOYAGE,CARE ESTABLISHMENT,LD - South Locality - Cost of Care,LD - South Cambs - Care,Residential Care
Cambridgeshire County Council,02-Mar-22,51301735864,"-1,339.31",VOYAGE,CARE ESTABLISHMENT,LD - South Locality - Cost of Care,LD - South Cambs - Care,Residential Care
Cambridgeshire County Council,02-Mar-22,51301735864,"-1,339.31",VOYAGE,CARE ESTABLISHMENT,LD - South Locality - Cost of Care,LD - South Cambs - Care,Residential Care
Cambridgeshire County Council,02-Mar-22,51301735864,"-1,339.31",VOYAGE,CARE ESTABLISHMENT,LD - South Locality - Cost of Care,LD - South Cambs - Care,Residential Care
Cambridgeshire County Council,02-Mar-22,51301735864,"-1,339.31",VOYAGE,CARE ESTABLISHMENT,LD - South Locality - Cost of Care,LD - South Cambs - Care,Residential Care
Cambridgeshire County Council,02-Mar-22,51301735864,"-1,339.31",VOYAGE,CARE ESTABLISHMENT,LD - South Locality - Cost of Care,LD - South Cambs - Care,Residential Care
Cambridgeshire County Council,02-Mar-22,51301735864,"-1,339.31",VOYAGE,CARE ESTABLISHMENT,LD - South Locality - Cost of Care,LD - South Cambs - Care,Residential Care
Cambridgeshire County Council,02-Mar-22,51301735864,"-1,339.31",VOYAGE,CARE ESTABLISHMENT,LD - South Locality - Cost of Care,LD - South Cambs - Care,Residential Care
Cambridgeshire County Council,02-Mar-22,51301735864,"-1,339.31",VOYAGE,CARE ESTABLISHMENT,LD - South Locality - Cost of Care,LD - South Cambs - Care,Residential Care
Cambridgeshire County Council,02-Mar-22,51301735864,"-1,339.31",VOYAGE,CARE ESTABLISHMENT,LD - South Locality - Cost of Care,LD - South Cambs - Care,Residential Care
Cambridgeshire County Council,02-Mar-22,51301735864,"-1,339.31",VOYAGE,CARE ESTABLISHMENT,LD - South Locality - Cost of Care,LD - South Cambs - Care,Residential Care
Cambridgeshire County Council,02-Mar-22,51301735864,"-1,339.31",VOYAGE,CARE ESTABLISHMENT,LD - South Locality - Cost of Care,LD - South Cambs - Care,Residential Care
Cambridgeshire County Council,02-Mar-22,51301735864,"-1,339.31",VOYAGE,CARE ESTABLISHMENT,LD - South Locality - Cost of Care,LD - South Cambs - Care,Residential Care
Cambridgeshire County Council,02-Mar-22,51301735864,"-1,339.31",VOYAGE,CARE ESTABLISHMENT,LD - South Locality - Cost of Care,LD - South Cambs - Care,Residential Care
Cambridgeshire County Council,02-Mar-22,51301735864,"-1,339.31",VOYAGE,CARE ESTABLISHMENT,LD - South Locality - Cost of Care,LD - South Cambs - Care,Residential Care
Cambridgeshire County Council,02-Mar-22,51301735864,"-1,339.31",VOYAGE,CARE ESTABLISHMENT,LD - South Locality - Cost of Care,LD - South Cambs - Care,Residential Care
Cambridgeshire County Council,02-Mar-22,51301735864,"-1,339.31",VOYAGE,CARE ESTABLISHMENT,LD - South Locality - Cost of Care,LD - South Cambs - Care,Residential Care
Cambridgeshire County Council,02-Mar-22,51301735792,"-1,332.76",AFFINITY TRUST,CARE ESTABLISHMENT,LD - Fenland Locality - Cost of Care,LD - Fenland  - Care,Homecare
Cambridgeshire County Council,02-Mar-22,51301735792,"-1,332.76",AFFINITY TRUST,CARE ESTABLISHMENT,LD - Fenland Locality - Cost of Care,LD - Fenland  - Care,Homecare
Cambridgeshire County Council,02-Mar-22,51301735792,"-1,332.76",AFFINITY TRUST,CARE ESTABLISHMENT,LD - Fenland Locality - Cost of Care,LD - Fenland  - Care,Homecare
Cambridgeshire County Council,02-Mar-22,51301735792,"-1,332.76",AFFINITY TRUST,CARE ESTABLISHMENT,LD - Fenland Locality - Cost of Care,LD - Fenland  - Care,Homecare
Cambridgeshire County Council,02-Mar-22,51301735792,"-1,332.76",AFFINITY TRUST,CARE ESTABLISHMENT,LD - Fenland Locality - Cost of Care,LD - Fenland  - Care,Homecare
Cambridgeshire County Council,02-Mar-22,51301735792,"-1,332.76",AFFINITY TRUST,CARE ESTABLISHMENT,LD - Fenland Locality - Cost of Care,LD - Fenland  - Care,Homecare
Cambridgeshire County Council,02-Mar-22,51301735792,"-1,332.76",AFFINITY TRUST,CARE ESTABLISHMENT,LD - Fenland Locality - Cost of Care,LD - Fenland  - Care,Homecare
Cambridgeshire County Council,02-Mar-22,51301735792,"-1,332.76",AFFINITY TRUST,CARE ESTABLISHMENT,LD - Fenland Locality - Cost of Care,LD - Fenland  - Care,Homecare
Cambridgeshire County Council,02-Mar-22,51301735792,"-1,332.76",AFFINITY TRUST,CARE ESTABLISHMENT,LD - Fenland Locality - Cost of Care,LD - Fenland  - Care,Homecare
Cambridgeshire County Council,02-Mar-22,51301735792,"-1,332.76",AFFINITY TRUST,CARE ESTABLISHMENT,LD - Fenland Locality - Cost of Care,LD - Fenland  - Care,Homecare
Cambridgeshire County Council,02-Mar-22,51301735792,"-1,332.76",AFFINITY TRUST,CARE ESTABLISHMENT,LD - Fenland Locality - Cost of Care,LD - Fenland  - Care,Homecare
Cambridgeshire County Council,02-Mar-22,51301735792,"-1,332.76",AFFINITY TRUST,CARE ESTABLISHMENT,LD - Fenland Locality - Cost of Care,LD - Fenland  - Care,Homecare
Cambridgeshire County Council,02-Mar-22,51301735792,"-1,332.76",AFFINITY TRUST,CARE ESTABLISHMENT,LD - Fenland Locality - Cost of Care,LD - Fenland  - Care,Homecare
Cambridgeshire County Council,02-Mar-22,51301735792,"-1,332.76",AFFINITY TRUST,CARE ESTABLISHMENT,LD - Fenland Locality - Cost of Care,LD - Fenland  - Care,Homecare
Cambridgeshire County Council,02-Mar-22,51301735792,"-1,332.76",AFFINITY TRUST,CARE ESTABLISHMENT,LD - Fenland Locality - Cost of Care,LD - Fenland  - Care,Homecare
Cambridgeshire County Council,02-Mar-22,51301735792,"-1,332.76",AFFINITY TRUST,CARE ESTABLISHMENT,LD - Fenland Locality - Cost of Care,LD - Fenland  - Care,Homecare
Cambridgeshire County Council,02-Mar-22,51301735792,"-1,332.76",AFFINITY TRUST,CARE ESTABLISHMENT,LD - Fenland Locality - Cost of Care,LD - Fenland  - Care,Homecare
Cambridgeshire County Council,02-Mar-22,51301735792,"-1,332.76",AFFINITY TRUST,CARE ESTABLISHMENT,LD - Fenland Locality - Cost of Care,LD - Fenland  - Care,Homecare
Cambridgeshire County Council,02-Mar-22,51301735792,"-1,332.76",AFFINITY TRUST,CARE ESTABLISHMENT,LD - Fenland Locality - Cost of Care,LD - Fenland  - Care,Homecare
Cambridgeshire County Council,02-Mar-22,51301735792,"-1,332.76",AFFINITY TRUST,CARE ESTABLISHMENT,LD - Fenland Locality - Cost of Care,LD - Fenland  - Care,Homecare
Cambridgeshire County Council,02-Mar-22,51301735792,"-1,332.76",AFFINITY TRUST,CARE ESTABLISHMENT,LD - Fenland Locality - Cost of Care,LD - Fenland  - Care,Homecare
Cambridgeshire County Council,02-Mar-22,51301735792,"-1,332.76",AFFINITY TRUST,CARE ESTABLISHMENT,LD - Fenland Locality - Cost of Care,LD - Fenland  - Care,Homecare
Cambridgeshire County Council,02-Mar-22,51301735792,"-1,332.76",AFFINITY TRUST,CARE ESTABLISHMENT,LD - Fenland Locality - Cost of Care,LD - Fenland  - Care,Homecare
Cambridgeshire County Council,02-Mar-22,51301735792,"-1,332.76",AFFINITY TRUST,CARE ESTABLISHMENT,LD - Fenland Locality - Cost of Care,LD - Fenland  - Care,Homecare
Cambridgeshire County Council,02-Mar-22,51301735792,"-1,332.76",AFFINITY TRUST,CARE ESTABLISHMENT,LD - Fenland Locality - Cost of Care,LD - Fenland  - Care,Homecare
Cambridgeshire County Council,02-Mar-22,51301735792,"-1,332.76",AFFINITY TRUST,CARE ESTABLISHMENT,LD - Fenland Locality - Cost of Care,LD - Fenland  - Care,Homecare
Cambridgeshire County Council,02-Mar-22,51301735792,"-1,332.76",AFFINITY TRUST,CARE ESTABLISHMENT,LD - Fenland Locality - Cost of Care,LD - Fenland  - Care,Homecare
Cambridgeshire County Council,02-Mar-22,51301735792,"-1,332.76",AFFINITY TRUST,CARE ESTABLISHMENT,LD - Fenland Locality - Cost of Care,LD - Fenland  - Care,Homecare
Cambridgeshire County Council,02-Mar-22,51301735792,"-1,332.76",AFFINITY TRUST,CARE ESTABLISHMENT,LD - Fenland Locality - Cost of Care,LD - Fenland  - Care,Homecare
Cambridgeshire County Council,02-Mar-22,51301735792,"-1,332.76",AFFINITY TRUST,CARE ESTABLISHMENT,LD - Fenland Locality - Cost of Care,LD - Fenland  - Care,Homecare
Cambridgeshire County Council,02-Mar-22,51301735792,"-1,332.76",AFFINITY TRUST,CARE ESTABLISHMENT,LD - Fenland Locality - Cost of Care,LD - Fenland  - Care,Homecare
Cambridgeshire County Council,02-Mar-22,51301735792,"-1,332.76",AFFINITY TRUST,CARE ESTABLISHMENT,LD - Fenland Locality - Cost of Care,LD - Fenland  - Care,Homecare
Cambridgeshire County Council,02-Mar-22,51301735792,"-1,332.76",AFFINITY TRUST,CARE ESTABLISHMENT,LD - Fenland Locality - Cost of Care,LD - Fenland  - Care,Homecare
Cambridgeshire County Council,02-Mar-22,51301735792,"-1,332.76",AFFINITY TRUST,CARE ESTABLISHMENT,LD - Fenland Locality - Cost of Care,LD - Fenland  - Care,Homecare
Cambridgeshire County Council,02-Mar-22,51301735792,"-1,332.76",AFFINITY TRUST,CARE ESTABLISHMENT,LD - Fenland Locality - Cost of Care,LD - Fenland  - Care,Homecare
Cambridgeshire County Council,02-Mar-22,51301735792,"-1,332.76",AFFINITY TRUST,CARE ESTABLISHMENT,LD - Fenland Locality - Cost of Care,LD - Fenland  - Care,Homecare
Cambridgeshire County Council,02-Mar-22,51301735792,"-1,332.76",AFFINITY TRUST,CARE ESTABLISHMENT,LD - Fenland Locality - Cost of Care,LD - Fenland  - Care,Homecare
Cambridgeshire County Council,02-Mar-22,51301735792,"-1,332.76",AFFINITY TRUST,CARE ESTABLISHMENT,LD - Fenland Locality - Cost of Care,LD - Fenland  - Care,Homecare
Cambridgeshire County Council,02-Mar-22,51301735792,"-1,332.76",AFFINITY TRUST,CARE ESTABLISHMENT,LD - Fenland Locality - Cost of Care,LD - Fenland  - Care,Homecare
Cambridgeshire County Council,02-Mar-22,51301735792,"-1,332.76",AFFINITY TRUST,CARE ESTABLISHMENT,LD - Fenland Locality - Cost of Care,LD - Fenland  - Care,Homecare
Cambridgeshire County Council,02-Mar-22,51301735792,"-1,332.76",AFFINITY TRUST,CARE ESTABLISHMENT,LD - Fenland Locality - Cost of Care,LD - Fenland  - Care,Homecare
Cambridgeshire County Council,02-Mar-22,51301735792,"-1,332.76",AFFINITY TRUST,CARE ESTABLISHMENT,LD - Fenland Locality - Cost of Care,LD - Fenland  - Care,Homecare
Cambridgeshire County Council,02-Mar-22,51301735792,"-1,332.76",AFFINITY TRUST,CARE ESTABLISHMENT,LD - Fenland Locality - Cost of Care,LD - Fenland  - Care,Homecare
Cambridgeshire County Council,02-Mar-22,51301735792,"-1,332.76",AFFINITY TRUST,CARE ESTABLISHMENT,LD - Fenland Locality - Cost of Care,LD - Fenland  - Care,Homecare
Cambridgeshire County Council,02-Mar-22,51301735792,"-1,332.76",AFFINITY TRUST,CARE ESTABLISHMENT,LD - Fenland Locality - Cost of Care,LD - Fenland  - Care,Homecare
Cambridgeshire County Council,02-Mar-22,51301735792,"-1,332.76",AFFINITY TRUST,CARE ESTABLISHMENT,LD - Fenland Locality - Cost of Care,LD - Fenland  - Care,Homecare
Cambridgeshire County Council,02-Mar-22,51301735792,"-1,332.76",AFFINITY TRUST,CARE ESTABLISHMENT,LD - Fenland Locality - Cost of Care,LD - Fenland  - Care,Homecare
Cambridgeshire County Council,02-Mar-22,51301735875,"-1,314.46",VOYAGE,CARE ESTABLISHMENT,LD - South Locality - Cost of Care,LD - South Cambs - Care,Domiciliary Care
Cambridgeshire County Council,02-Mar-22,51301735875,"-1,314.46",VOYAGE,CARE ESTABLISHMENT,LD - South Locality - Cost of Care,LD - South Cambs - Care,Domiciliary Care
Cambridgeshire County Council,02-Mar-22,51301735875,"-1,314.46",VOYAGE,CARE ESTABLISHMENT,LD - South Locality - Cost of Care,LD - South Cambs - Care,Domiciliary Care
Cambridgeshire County Council,02-Mar-22,51301735875,"-1,314.46",VOYAGE,CARE ESTABLISHMENT,LD - South Locality - Cost of Care,LD - South Cambs - Care,Domiciliary Care
Cambridgeshire County Council,02-Mar-22,51301735875,"-1,314.46",VOYAGE,CARE ESTABLISHMENT,LD - South Locality - Cost of Care,LD - South Cambs - Care,Domiciliary Care
Cambridgeshire County Council,02-Mar-22,51301735875,"-1,314.46",VOYAGE,CARE ESTABLISHMENT,LD - South Locality - Cost of Care,LD - South Cambs - Care,Domiciliary Care
Cambridgeshire County Council,02-Mar-22,51301735875,"-1,314.46",VOYAGE,CARE ESTABLISHMENT,LD - South Locality - Cost of Care,LD - South Cambs - Care,Domiciliary Care
Cambridgeshire County Council,02-Mar-22,51301735875,"-1,314.46",VOYAGE,CARE ESTABLISHMENT,LD - South Locality - Cost of Care,LD - South Cambs - Care,Domiciliary Care
Cambridgeshire County Council,02-Mar-22,51301735875,"-1,314.46",VOYAGE,CARE ESTABLISHMENT,LD - South Locality - Cost of Care,LD - South Cambs - Care,Domiciliary Care
Cambridgeshire County Council,02-Mar-22,51301735875,"-1,314.46",VOYAGE,CARE ESTABLISHMENT,LD - South Locality - Cost of Care,LD - South Cambs - Care,Domiciliary Care
Cambridgeshire County Council,02-Mar-22,51301735875,"-1,314.46",VOYAGE,CARE ESTABLISHMENT,LD - South Locality - Cost of Care,LD - South Cambs - Care,Domiciliary Care
Cambridgeshire County Council,02-Mar-22,51301735875,"-1,314.46",VOYAGE,CARE ESTABLISHMENT,LD - South Locality - Cost of Care,LD - South Cambs - Care,Domiciliary Care
Cambridgeshire County Council,02-Mar-22,51301735875,"-1,314.46",VOYAGE,CARE ESTABLISHMENT,LD - South Locality - Cost of Care,LD - South Cambs - Care,Domiciliary Care
Cambridgeshire County Council,02-Mar-22,51301735875,"-1,314.46",VOYAGE,CARE ESTABLISHMENT,LD - South Locality - Cost of Care,LD - South Cambs - Care,Domiciliary Care
Cambridgeshire County Council,02-Mar-22,51301735875,"-1,314.46",VOYAGE,CARE ESTABLISHMENT,LD - South Locality - Cost of Care,LD - South Cambs - Care,Domiciliary Care
Cambridgeshire County Council,02-Mar-22,51301735875,"-1,314.46",VOYAGE,CARE ESTABLISHMENT,LD - South Locality - Cost of Care,LD - South Cambs - Care,Domiciliary Care
Cambridgeshire County Council,02-Mar-22,51301735875,"-1,314.46",VOYAGE,CARE ESTABLISHMENT,LD - South Locality - Cost of Care,LD - South Cambs - Care,Domiciliary Care
Cambridgeshire County Council,02-Mar-22,51301735875,"-1,314.46",VOYAGE,CARE ESTABLISHMENT,LD - South Locality - Cost of Care,LD - South Cambs - Care,Domiciliary Care
Cambridgeshire County Council,02-Mar-22,51301735875,"-1,314.46",VOYAGE,CARE ESTABLISHMENT,LD - South Locality - Cost of Care,LD - South Cambs - Care,Domiciliary Care
Cambridgeshire County Council,02-Mar-22,51301735875,"-1,314.46",VOYAGE,CARE ESTABLISHMENT,LD - South Locality - Cost of Care,LD - South Cambs - Care,Domiciliary Care
Cambridgeshire County Council,02-Mar-22,51301735875,"-1,314.46",VOYAGE,CARE ESTABLISHMENT,LD - South Locality - Cost of Care,LD - South Cambs - Care,Domiciliary Care
Cambridgeshire County Council,02-Mar-22,51301735875,"-1,314.46",VOYAGE,CARE ESTABLISHMENT,LD - South Locality - Cost of Care,LD - South Cambs - Care,Domiciliary Care
Cambridgeshire County Council,02-Mar-22,51301735875,"-1,314.46",VOYAGE,CARE ESTABLISHMENT,LD - South Locality - Cost of Care,LD - South Cambs - Care,Domiciliary Care
Cambridgeshire County Council,02-Mar-22,51301735875,"-1,314.46",VOYAGE,CARE ESTABLISHMENT,LD - South Locality - Cost of Care,LD - South Cambs - Care,Domiciliary Care
Cambridgeshire County Council,02-Mar-22,51301735875,"-1,314.46",VOYAGE,CARE ESTABLISHMENT,LD - South Locality - Cost of Care,LD - South Cambs - Care,Domiciliary Care
Cambridgeshire County Council,02-Mar-22,51301735875,"-1,314.46",VOYAGE,CARE ESTABLISHMENT,LD - South Locality - Cost of Care,LD - South Cambs - Care,Domiciliary Care
Cambridgeshire County Council,02-Mar-22,51301735875,"-1,314.46",VOYAGE,CARE ESTABLISHMENT,LD - South Locality - Cost of Care,LD - South Cambs - Care,Domiciliary Care
Cambridgeshire County Council,02-Mar-22,51301735875,"-1,314.46",VOYAGE,CARE ESTABLISHMENT,LD - South Locality - Cost of Care,LD - South Cambs - Care,Domiciliary Care
Cambridgeshire County Council,02-Mar-22,51301735875,"-1,314.46",VOYAGE,CARE ESTABLISHMENT,LD - South Locality - Cost of Care,LD - South Cambs - Care,Domiciliary Care
Cambridgeshire County Council,02-Mar-22,51301735875,"-1,314.46",VOYAGE,CARE ESTABLISHMENT,LD - South Locality - Cost of Care,LD - South Cambs - Care,Domiciliary Care
Cambridgeshire County Council,02-Mar-22,51301735875,"-1,314.46",VOYAGE,CARE ESTABLISHMENT,LD - South Locality - Cost of Care,LD - South Cambs - Care,Domiciliary Care
Cambridgeshire County Council,02-Mar-22,51301735875,"-1,314.46",VOYAGE,CARE ESTABLISHMENT,LD - South Locality - Cost of Care,LD - South Cambs - Care,Domiciliary Care
